{"text_format":"1","workbook":"xlsx","n_sheets":3,"sheets":["Sheet1","Sheet2","Sheet3"],"not_rendered":{"charts":0,"images":0,"macros":0,"external_links":1,"defined_names":2,"comments":0,"pivot_tables":0},"unopened":[],"bounds":{"document_bytes":16777216,"sheet_cells":100000,"rows_first":2000,"rows_last":500,"rows_between":2000,"halvings":0,"cell_chars":16384,"cell_head_chars":4096},"cells_cut":0,"cells_raw":0,"read":"whole","date_system":"1900"}

{"sheet":"Sheet1","index":0,"n_rows":2158,"n_cols":11,"rows_kept":2158,"cut":false,"hidden":false,"merged":[[3,9,3,10],[2,2,2,3],[2,4,3,4],[2,5,3,5],[2,6,3,6],[2,7,3,7],[2,8,3,8]]}
[]
[]
[null,null,"الحساب",null,"رقم القيد","التاريــخ","حساب فرعي مدين","حساب فرعي دائن "]
[null,null,"المدين ","الدائن",null,null,null,null,null,"المطلوب نقلهم هنا "]
[null,null,"الصندوق","الايرادات",1,"2018-07-01","الصندوق","حسن فلاح عبد الكاظم",5000,{"$f":"IF(H5<>\"\",INDEX($H$5:$H$6000,MATCH(0,COUNTIF($J$4:J4,$H$5:$H$6000),0)),\"\")","v":"حسن فلاح عبد الكاظم"},{"$f":"SUMPRODUCT(--($H$5:$H$1636=J5),$I$5:$I$1636)","v":5000}]
[null,null,"الصندوق","الايرادات",2,"2018-07-01","الصندوق","كاظم فلاح عبد الكاظم",6000,{"$f":"IF(H6<>\"\",INDEX($H$5:$H$6000,MATCH(0,COUNTIF($J$4:J5,$H$5:$H$6000),0)),\"\")","v":"كاظم فلاح عبد الكاظم"},{"$f":"SUMPRODUCT(--($H$5:$H$1636=J6),$I$5:$I$1636)","v":6000}]
[null,null,"الصندوق","الايرادات",3,"2018-07-25","الصندوق","زيد منقذ سلمان",600,{"$f":"IF(H7<>\"\",INDEX($H$5:$H$6000,MATCH(0,COUNTIF($J$4:J6,$H$5:$H$6000),0)),\"\")","v":"زيد منقذ سلمان"},600]
[null,null,"الصندوق","الايرادات",4,"2018-07-25","الصندوق","مصطفى صباح عبد الهادي",800,{"$f":"IF(H8<>\"\",INDEX($H$5:$H$6000,MATCH(0,COUNTIF($J$4:J7,$H$5:$H$6000),0)),\"\")","v":"مصطفى صباح عبد الهادي"},800]
[null,null,"الصندوق","الايرادات",5,"2018-03-01","الصندوق","مرتضى ارؤكان بديوي",5000,{"$f":"IF(H9<>\"\",INDEX($H$5:$H$6000,MATCH(0,COUNTIF($J$4:J8,$H$5:$H$6000),0)),\"\")","v":"مرتضى ارؤكان بديوي"},5000]
[null,null,"الصندوق","الايرادات",6,"2018-04-01","الصندوق","سجاد مشتاق حافظ",4000,{"$f":"IF(H10<>\"\",INDEX($H$5:$H$6000,MATCH(0,COUNTIF($J$4:J9,$H$5:$H$6000),0)),\"\")","v":"سجاد مشتاق حافظ"},4000]
[null,null,"الصندوق","الايرادات",7,"2018-05-01","الصندوق","عبد الل..كاظم هاتف",11000,{"$f":"IF(H11<>\"\",INDEX($H$5:$H$6000,MATCH(0,COUNTIF($J$4:J10,$H$5:$H$6000),0)),\"\")","v":"عبد الل..كاظم هاتف"},11000]
[null,null,"الصندوق","الايرادات",8,"2018-05-01","الصندوق","حسن هيثم جابر محمود",3000,{"$f":"IF(H12<>\"\",INDEX($H$5:$H$6000,MATCH(0,COUNTIF($J$4:J11,$H$5:$H$6000),0)),\"\")","v":"حسن هيثم جابر محمود"},3000]
[null,null,"الصندوق","الايرادات",9,"2018-06-03","الصندوق","نبأ فائز كامل",16000,{"$f":"IF(H13<>\"\",INDEX($H$5:$H$6000,MATCH(0,COUNTIF($J$4:J12,$H$5:$H$6000),0)),\"\")","v":"نبأ فائز كامل"},16000]
[null,null,"الصندوق","الايرادات",10,"2018-07-02","الصندوق","علي عبد الكريم مهدي",1500,{"$f":"IF(H14<>\"\",INDEX($H$5:$H$6000,MATCH(0,COUNTIF($J$4:J13,$H$5:$H$6000),0)),\"\")","v":"علي عبد الكريم مهدي"},1500]
[null,null,"الصندوق","الايرادات",11,"2018-07-02","الصندوق","حسين اغار صبيح",300,{"$f":"IF(H15<>\"\",INDEX($H$5:$H$6000,MATCH(0,COUNTIF($J$4:J14,$H$5:$H$6000),0)),\"\")","v":"حسين اغار صبيح"},300]
[null,null,"الصندوق","الايرادات",12,"2018-07-02","الصندوق","احمد يعسوب  صبيح",1100,{"$f":"IF(H16<>\"\",INDEX($H$5:$H$6000,MATCH(0,COUNTIF($J$4:J15,$H$5:$H$6000),0)),\"\")","v":"احمد يعسوب  صبيح"},1100]
[null,null,"الصندوق","الايرادات",13,"2018-07-02","الصندوق","الكرار محمد رضا تركي",650,{"$f":"IF(H17<>\"\",INDEX($H$5:$H$6000,MATCH(0,COUNTIF($J$4:J16,$H$5:$H$6000),0)),\"\")","v":"الكرار محمد رضا تركي"},650]
[null,null,"الصندوق","الايرادات",14,"2018-07-02","الصندوق","يوسف مكي شاكر",7500,{"$f":"IF(H18<>\"\",INDEX($H$5:$H$6000,MATCH(0,COUNTIF($J$4:J17,$H$5:$H$6000),0)),\"\")","v":"يوسف مكي شاكر"},7500]
[null,null,"الصندوق","الايرادات",15,"2018-07-03","الصندوق","رضا كاظم ناصر ",600,{"$f":"IF(H19<>\"\",INDEX($H$5:$H$6000,MATCH(0,COUNTIF($J$4:J18,$H$5:$H$6000),0)),\"\")","v":"رضا كاظم ناصر "},600]
[null,null,"الصندوق","الايرادات",16,"2018-07-03","الصندوق","مرتضى رحيم حسين",300,{"$f":"IF(H20<>\"\",INDEX($H$5:$H$6000,MATCH(0,COUNTIF($J$4:J19,$H$5:$H$6000),0)),\"\")","v":"مرتضى رحيم حسين"},300]
[null,null,"الصندوق","الايرادات",17,"2018-07-01","الصندوق","حسن المضي جبار زامل",1000,{"$f":"IF(H21<>\"\",INDEX($H$5:$H$6000,MATCH(0,COUNTIF($J$4:J20,$H$5:$H$6000),0)),\"\")","v":"حسن المضي جبار زامل"},1000]
[null,null,"الصندوق","الايرادات",18,"2018-06-01","الصندوق","مرتجى تحرير حميد",1500,{"$f":"IF(H22<>\"\",INDEX($H$5:$H$6000,MATCH(0,COUNTIF($J$4:J21,$H$5:$H$6000),0)),\"\")","v":"مرتجى تحرير حميد"},1500]
[null,null,"الصندوق","الايرادات",19,"2018-06-01","الصندوق","محمد حسن قنان",1500,{"$f":"IF(H23<>\"\",INDEX($H$5:$H$6000,MATCH(0,COUNTIF($J$4:J22,$H$5:$H$6000),0)),\"\")","v":"محمد حسن قنان"},1500]
[null,null,"الصندوق","الايرادات",20,"2018-06-01","الصندوق","منتظر عبد الرحيم",1500,{"$f":"IF(H24<>\"\",INDEX($H$5:$H$6000,MATCH(0,COUNTIF($J$4:J23,$H$5:$H$6000),0)),\"\")","v":"منتظر عبد الرحيم"},1500]
[null,null,"الصندوق","الايرادات",21,"2018-06-01","الصندوق","كرار جاسم جواد",1500,{"$f":"IF(H25<>\"\",INDEX($H$5:$H$6000,MATCH(0,COUNTIF($J$4:J24,$H$5:$H$6000),0)),\"\")","v":"كرار جاسم جواد"},1500]
[null,null,"الصندوق","الايرادات",22,"2018-06-01","الصندوق","منتظر احمد هاشم",1500,{"$f":"IF(H26<>\"\",INDEX($H$5:$H$6000,MATCH(0,COUNTIF($J$4:J25,$H$5:$H$6000),0)),\"\")","v":"منتظر احمد هاشم"},1500]
[null,null,"الصندوق","الايرادات",23,"2018-06-01","الصندوق","علي نوري خضير",1500,{"$f":"IF(H27<>\"\",INDEX($H$5:$H$6000,MATCH(0,COUNTIF($J$4:J26,$H$5:$H$6000),0)),\"\")","v":"علي نوري خضير"},3000]
[null,null,"الصندوق","الايرادات",24,"2018-06-01","الصندوق","علي حسين رشيد",1500,{"$f":"IF(H28<>\"\",INDEX($H$5:$H$6000,MATCH(0,COUNTIF($J$4:J27,$H$5:$H$6000),0)),\"\")","v":"علي حسين رشيد"},1500]
[null,null,"الصندوق","الايرادات",25,"2018-06-01","الصندوق","مريم ضياء شسعيد",1500,{"$f":"IF(H29<>\"\",INDEX($H$5:$H$6000,MATCH(0,COUNTIF($J$4:J28,$H$5:$H$6000),0)),\"\")","v":"مريم ضياء شسعيد"},1500]
[null,null,"الصندوق","الايرادات",26,"2018-06-01","الصندوق","محمد رضا فائز مرتضى",1500,{"$f":"IF(H30<>\"\",INDEX($H$5:$H$6000,MATCH(0,COUNTIF($J$4:J29,$H$5:$H$6000),0)),\"\")","v":"محمد رضا فائز مرتضى"},1500]
[null,null,"الصندوق","الايرادات",27,"2018-06-01","الصندوق","عمار علي خيون",1500,{"$f":"IF(H31<>\"\",INDEX($H$5:$H$6000,MATCH(0,COUNTIF($J$4:J30,$H$5:$H$6000),0)),\"\")","v":"عمار علي خيون"},1500]
[null,null,"الصندوق","الايرادات",28,"2018-07-07","الصندوق","محمد علي حسين صالح",1500,{"$f":"IF(H32<>\"\",INDEX($H$5:$H$6000,MATCH(0,COUNTIF($J$4:J31,$H$5:$H$6000),0)),\"\")","v":"محمد علي حسين صالح"},1500]
[null,null,"الصندوق","الايرادات",29,"2018-07-07","الصندوق","رزاق حيدر رزاق",1500,{"$f":"IF(H33<>\"\",INDEX($H$5:$H$6000,MATCH(0,COUNTIF($J$4:J32,$H$5:$H$6000),0)),\"\")","v":"رزاق حيدر رزاق"},1500]
[null,null,"الصندوق","الايرادات",30,"2018-07-07","الصندوق","علي عامر محمد موسى كاظم",1500,{"$f":"IF(H34<>\"\",INDEX($H$5:$H$6000,MATCH(0,COUNTIF($J$4:J33,$H$5:$H$6000),0)),\"\")","v":"علي عامر محمد موسى كاظم"},1500]
[null,null,"الصندوق","الايرادات",31,"2018-07-07","الصندوق","محمد حسن عبد الهادي",1500,{"$f":"IF(H35<>\"\",INDEX($H$5:$H$6000,MATCH(0,COUNTIF($J$4:J34,$H$5:$H$6000),0)),\"\")","v":"محمد حسن عبد الهادي"},1500]
[null,null,"الصندوق","الايرادات",32,"2018-07-01","الصندوق","علاء الدين حسين اسماعيل",1500,{"$f":"IF(H36<>\"\",INDEX($H$5:$H$6000,MATCH(0,COUNTIF($J$4:J35,$H$5:$H$6000),0)),\"\")","v":"علاء الدين حسين اسماعيل"},1500]
[null,null,"الصندوق","الايرادات",33,"2018-07-24","الصندوق","صفاء الدين حسين اسماعيل",1500,{"$f":"IF(H37<>\"\",INDEX($H$5:$H$6000,MATCH(0,COUNTIF($J$4:J36,$H$5:$H$6000),0)),\"\")","v":"صفاء الدين حسين اسماعيل"},1500]
[null,null,"الصندوق","الايرادات",34,"2018-07-01","الصندوق","علي الكرار حيدر علي",1500,{"$f":"IF(H38<>\"\",INDEX($H$5:$H$6000,MATCH(0,COUNTIF($J$4:J37,$H$5:$H$6000),0)),\"\")","v":"علي الكرار حيدر علي"},1500]
[null,null,"الصندوق","الايرادات",35,"2018-07-09","الصندوق","يوسف حيدر محمد  رضا",1500,{"$f":"IF(H39<>\"\",INDEX($H$5:$H$6000,MATCH(0,COUNTIF($J$4:J38,$H$5:$H$6000),0)),\"\")","v":"يوسف حيدر محمد  رضا"},1500]
[null,null,"الصندوق","الايرادات",36,"2018-07-09","الصندوق","محمد رضا حيدر محمد رضا",1500,{"$f":"IF(H40<>\"\",INDEX($H$5:$H$6000,MATCH(0,COUNTIF($J$4:J39,$H$5:$H$6000),0)),\"\")","v":"محمد رضا حيدر محمد رضا"},1500]
[null,null,"الصندوق","الايرادات",37,"2018-07-01","الصندوق","محمد علي سيف حسين",1500,{"$f":"IF(H41<>\"\",INDEX($H$5:$H$6000,MATCH(0,COUNTIF($J$4:J40,$H$5:$H$6000),0)),\"\")","v":"محمد علي سيف حسين"},1500]
[null,null,"الصندوق","الايرادات",38,"2018-07-01","الصندوق","حسن صلاح حسن",1500,{"$f":"IF(H42<>\"\",INDEX($H$5:$H$6000,MATCH(0,COUNTIF($J$4:J41,$H$5:$H$6000),0)),\"\")","v":"حسن صلاح حسن"},1500]
[null,null,"الصندوق","الايرادات",39,"2018-07-01","الصندوق","علي نبيل عبد الهادي",1500,{"$f":"IF(H43<>\"\",INDEX($H$5:$H$6000,MATCH(0,COUNTIF($J$4:J42,$H$5:$H$6000),0)),\"\")","v":"علي نبيل عبد الهادي"},1500]
[null,null,"الصندوق","الايرادات",40,"2018-07-01","الصندوق","محمد رضا علي حسين",1500,{"$f":"IF(H44<>\"\",INDEX($H$5:$H$6000,MATCH(0,COUNTIF($J$4:J43,$H$5:$H$6000),0)),\"\")","v":"محمد رضا علي حسين"},1500]
[null,null,"الصندوق","الايرادات",41,"2018-07-01","الصندوق","محمد رضا مصطفى سعد",1500,{"$f":"IF(H45<>\"\",INDEX($H$5:$H$6000,MATCH(0,COUNTIF($J$4:J44,$H$5:$H$6000),0)),\"\")","v":"محمد رضا مصطفى سعد"},1500]
[null,null,"الصندوق","الايرادات",42,"2018-07-01","الصندوق","زيد مجيد عبد الكاظم",1500,{"$f":"IF(H46<>\"\",INDEX($H$5:$H$6000,MATCH(0,COUNTIF($J$4:J45,$H$5:$H$6000),0)),\"\")","v":"زيد مجيد عبد الكاظم"},1500]
[null,null,"الصندوق","الايرادات",43,"2018-07-01","الصندوق","علي الرضا فلاح حسن",1500,{"$f":"IF(H47<>\"\",INDEX($H$5:$H$6000,MATCH(0,COUNTIF($J$4:J46,$H$5:$H$6000),0)),\"\")","v":"علي الرضا فلاح حسن"},1500]
[null,null,"الصندوق","الايرادات",44,"2018-07-01","الصندوق","حسين عماد هاشم",1500,{"$f":"IF(H48<>\"\",INDEX($H$5:$H$6000,MATCH(0,COUNTIF($J$4:J47,$H$5:$H$6000),0)),\"\")","v":"حسين عماد هاشم"},1500]
[null,null,"الصندوق","الايرادات",45,"2018-07-01","الصندوق","زيد سعيد جبار ",1500,{"$f":"IF(H49<>\"\",INDEX($H$5:$H$6000,MATCH(0,COUNTIF($J$4:J48,$H$5:$H$6000),0)),\"\")","v":"زيد سعيد جبار "},1500]
[null,null,"الصندوق","الايرادات",46,"2018-08-01","الصندوق","مهدي حيدر محمد جلاب ",1500,{"$f":"IF(H50<>\"\",INDEX($H$5:$H$6000,MATCH(0,COUNTIF($J$4:J49,$H$5:$H$6000),0)),\"\")","v":"مهدي حيدر محمد جلاب "},1500]
[null,null,"الصندوق","الايرادات",47,"2018-08-05","الصندوق","مقتدى نعمان محمد",1500,{"$f":"IF(H51<>\"\",INDEX($H$5:$H$6000,MATCH(0,COUNTIF($J$4:J50,$H$5:$H$6000),0)),\"\")","v":"مقتدى نعمان محمد"},1500]
[null,null,"الصندوق","الايرادات",48,"2018-06-08","الصندوق","محمد رضا محمد مطلب",1500,{"$f":"IF(H52<>\"\",INDEX($H$5:$H$6000,MATCH(0,COUNTIF($J$4:J51,$H$5:$H$6000),0)),\"\")","v":"محمد رضا محمد مطلب"},1500]
[null,null,"الصندوق","الايرادات",49,"2018-07-08","الصندوق","مهيمن فراس سليم",1500,{"$f":"IF(H53<>\"\",INDEX($H$5:$H$6000,MATCH(0,COUNTIF($J$4:J52,$H$5:$H$6000),0)),\"\")","v":"مهيمن فراس سليم"},1500]
[null,null,"الصندوق","الايرادات",50,"2018-07-08","الصندوق","محمد سعيد عامر كاظم ",1500,{"$f":"IF(H54<>\"\",INDEX($H$5:$H$6000,MATCH(0,COUNTIF($J$4:J53,$H$5:$H$6000),0)),\"\")","v":"محمد سعيد عامر كاظم "},1500]
[null,null,"الصندوق","الايرادات",51,"2018-07-08","الصندوق","يوسف محمد صالح ",1500,{"$f":"IF(H55<>\"\",INDEX($H$5:$H$6000,MATCH(0,COUNTIF($J$4:J54,$H$5:$H$6000),0)),\"\")","v":"يوسف محمد صالح "},1500]
[null,null,"الصندوق","الايرادات",52,"2018-08-08","الصندوق","محمد حسن جواد كاظم ",1500,{"$f":"IF(H56<>\"\",INDEX($H$5:$H$6000,MATCH(0,COUNTIF($J$4:J55,$H$5:$H$6000),0)),\"\")","v":"محمد حسن جواد كاظم "},1500]
[null,null,"الصندوق","الايرادات",53,"2018-08-01","الصندوق","حسن محمد ناجي ",1500,{"$f":"IF(H57<>\"\",INDEX($H$5:$H$6000,MATCH(0,COUNTIF($J$4:J56,$H$5:$H$6000),0)),\"\")","v":"حسن محمد ناجي "},3000]
[null,null,"الصندوق","الايرادات",54,"2018-08-04","الصندوق","مرتضى محمد علي حسن ",1500,{"$f":"IF(H58<>\"\",INDEX($H$5:$H$6000,MATCH(0,COUNTIF($J$4:J57,$H$5:$H$6000),0)),\"\")","v":"مرتضى محمد علي حسن "},1500]
[null,null,"الصندوق","الايرادات",55,"2018-08-12","الصندوق","حسين نوماس نبهان",1500,{"$f":"IF(H59<>\"\",INDEX($H$5:$H$6000,MATCH(0,COUNTIF($J$4:J58,$H$5:$H$6000),0)),\"\")","v":"حسين نوماس نبهان"},1500]
[null,null,"الصندوق","الايرادات",56,"2018-08-12","الصندوق","حسنين حسين محسن",1500,{"$f":"IF(H60<>\"\",INDEX($H$5:$H$6000,MATCH(0,COUNTIF($J$4:J59,$H$5:$H$6000),0)),\"\")","v":"حسنين حسين محسن"},1500]
[null,null,"الصندوق","الايرادات",57,"2018-07-01","الصندوق","علي حسن نجم",1500,{"$f":"IF(H61<>\"\",INDEX($H$5:$H$6000,MATCH(0,COUNTIF($J$4:J60,$H$5:$H$6000),0)),\"\")","v":"علي حسن نجم"},1500]
[null,null,"الصندوق","الايرادات",58,"2018-07-01","الصندوق","عز الدين مشتاق عبد المطلب",1500,{"$f":"IF(H62<>\"\",INDEX($H$5:$H$6000,MATCH(0,COUNTIF($J$4:J61,$H$5:$H$6000),0)),\"\")","v":"عز الدين مشتاق عبد المطلب"},1500]
[null,null,"الصندوق","الايرادات",59,"2018-07-01","الصندوق","امير محمد رضا مهدي",1500,{"$f":"IF(H63<>\"\",INDEX($H$5:$H$6000,MATCH(0,COUNTIF($J$4:J62,$H$5:$H$6000),0)),\"\")","v":"امير محمد رضا مهدي"},1500]
[null,null,"الصندوق","الايرادات",60,"2018-08-04","الصندوق","حسين عباس كريم",1500,{"$f":"IF(H64<>\"\",INDEX($H$5:$H$6000,MATCH(0,COUNTIF($J$4:J63,$H$5:$H$6000),0)),\"\")","v":"حسين عباس كريم"},1500]
[null,null,"الصندوق","الايرادات",61,"2018-08-06","الصندوق","محمد مهدي منتظر",1500,{"$f":"IF(H65<>\"\",INDEX($H$5:$H$6000,MATCH(0,COUNTIF($J$4:J64,$H$5:$H$6000),0)),\"\")","v":"محمد مهدي منتظر"},1500]
[null,null,"الصندوق","الايرادات",62,"2018-08-08","الصندوق","علي سعد وحيد",1500,{"$f":"IF(H66<>\"\",INDEX($H$5:$H$6000,MATCH(0,COUNTIF($J$4:J65,$H$5:$H$6000),0)),\"\")","v":"علي سعد وحيد"},1500]
[null,null,"الصندوق","الايرادات",63,"2018-08-05","الصندوق","علي عبد المحسن ",1500,{"$f":"IF(H67<>\"\",INDEX($H$5:$H$6000,MATCH(0,COUNTIF($J$4:J66,$H$5:$H$6000),0)),\"\")","v":"علي عبد المحسن "},1500]
[null,null,"الصندوق","الايرادات",64,"2018-08-05","الصندوق","علي درع جبار",1500,{"$f":"IF(H68<>\"\",INDEX($H$5:$H$6000,MATCH(0,COUNTIF($J$4:J67,$H$5:$H$6000),0)),\"\")","v":"علي درع جبار"},1500]
[null,null,"الصندوق","الايرادات",65,"2018-07-01","الصندوق","محمد باقر درع جبار",1500,{"$f":"IF(H69<>\"\",INDEX($H$5:$H$6000,MATCH(0,COUNTIF($J$4:J68,$H$5:$H$6000),0)),\"\")","v":"محمد باقر درع جبار"},1500]
[null,null,"الصندوق","الايرادات",66,"2018-08-01","الصندوق","فضل الله عبد الحسين ناهي",1500,{"$f":"IF(H70<>\"\",INDEX($H$5:$H$6000,MATCH(0,COUNTIF($J$4:J69,$H$5:$H$6000),0)),\"\")","v":"فضل الله عبد الحسين ناهي"},{"$f":"SUMPRODUCT(--($H$5:$H$1636=J70),$I$5:$I$1636)","v":1500}]
[null,null,"الصندوق","الايرادات",67,"2018-08-01","الصندوق","سالم قاسم محسن ",1500,{"$f":"IF(H71<>\"\",INDEX($H$5:$H$6000,MATCH(0,COUNTIF($J$4:J70,$H$5:$H$6000),0)),\"\")","v":"سالم قاسم محسن "},1500]
[null,null,"الصندوق","الايرادات",68,"2018-08-01","الصندوق","يزن ازار محمد رضا",1500,{"$f":"IF(H72<>\"\",INDEX($H$5:$H$6000,MATCH(0,COUNTIF($J$4:J71,$H$5:$H$6000),0)),\"\")","v":"يزن ازار محمد رضا"},1500]
[null,null,"الصندوق","الايرادات",69,"2018-08-01","الصندوق","مسلم عمار عبد ال...",1500,{"$f":"IF(H73<>\"\",INDEX($H$5:$H$6000,MATCH(0,COUNTIF($J$4:J72,$H$5:$H$6000),0)),\"\")","v":"مسلم عمار عبد ال..."},1500]
[null,null,"الصندوق","الايرادات",70,"2018-08-01","الصندوق","علي اكبر علي ابراهيم ",1500,{"$f":"IF(H74<>\"\",INDEX($H$5:$H$6000,MATCH(0,COUNTIF($J$4:J73,$H$5:$H$6000),0)),\"\")","v":"علي اكبر علي ابراهيم "},1500]
[null,null,"الصندوق","الايرادات",71,"2018-08-01","الصندوق","مهدي ستار عبد الساده ",1500,{"$f":"IF(H75<>\"\",INDEX($H$5:$H$6000,MATCH(0,COUNTIF($J$4:J74,$H$5:$H$6000),0)),\"\")","v":"مهدي ستار عبد الساده "},1500]
[null,null,"الصندوق","الايرادات",72,"2018-08-01","الصندوق","سجاد ماجد عكله ",1500,{"$f":"IF(H76<>\"\",INDEX($H$5:$H$6000,MATCH(0,COUNTIF($J$4:J75,$H$5:$H$6000),0)),\"\")","v":"سجاد ماجد عكله "},1500]
[null,null,"الصندوق","الايرادات",73,"2018-08-01","الصندوق","علي ماجد عكله ",1500,{"$f":"IF(H77<>\"\",INDEX($H$5:$H$6000,MATCH(0,COUNTIF($J$4:J76,$H$5:$H$6000),0)),\"\")","v":"علي ماجد عكله "},1500]
[null,null,"الصندوق","الايرادات",74,"2018-08-01","الصندوق","احمد ماجد عكله",1500,{"$f":"IF(H78<>\"\",INDEX($H$5:$H$6000,MATCH(0,COUNTIF($J$4:J77,$H$5:$H$6000),0)),\"\")","v":"احمد ماجد عكله"},1500]
[null,null,"الصندوق","الايرادات",75,"2018-08-01","الصندوق","ضرغام عبد المنعم عبد الرحيم ",1500,{"$f":"IF(H79<>\"\",INDEX($H$5:$H$6000,MATCH(0,COUNTIF($J$4:J78,$H$5:$H$6000),0)),\"\")","v":"ضرغام عبد المنعم عبد الرحيم "},1500]
[null,null,"الصندوق","الايرادات",76,"2018-08-01","الصندوق","ظافر حسين كريم ",1500,{"$f":"IF(H80<>\"\",INDEX($H$5:$H$6000,MATCH(0,COUNTIF($J$4:J79,$H$5:$H$6000),0)),\"\")","v":"ظافر حسين كريم "},1500]
[null,null,"الصندوق","الايرادات",77,"2018-08-01","الصندوق","احمد وسيم كفاح ",1500,{"$f":"IF(H81<>\"\",INDEX($H$5:$H$6000,MATCH(0,COUNTIF($J$4:J80,$H$5:$H$6000),0)),\"\")","v":"احمد وسيم كفاح "},1500]
[null,null,"الصندوق","الايرادات",78,"2018-08-01","الصندوق","رسول محمد عبد الله",1500,{"$f":"IF(H82<>\"\",INDEX($H$5:$H$6000,MATCH(0,COUNTIF($J$4:J81,$H$5:$H$6000),0)),\"\")","v":"رسول محمد عبد الله"},1500]
[null,null,"الصندوق","الايرادات",79,"2018-08-01","الصندوق","ليث محمد عبد الله",1500,{"$f":"IF(H83<>\"\",INDEX($H$5:$H$6000,MATCH(0,COUNTIF($J$4:J82,$H$5:$H$6000),0)),\"\")","v":"ليث محمد عبد الله"},1500]
[null,null,"الصندوق","الايرادات",80,"2018-08-01","الصندوق","عبد الله حيدر عبد كاضم",1500,{"$f":"IF(H84<>\"\",INDEX($H$5:$H$6000,MATCH(0,COUNTIF($J$4:J83,$H$5:$H$6000),0)),\"\")","v":"عبد الله حيدر عبد كاضم"},1500]
[null,null,"الصندوق","الايرادات",81,"2018-08-01","الصندوق","عباس نوفل منتضر",1500,{"$f":"IF(H85<>\"\",INDEX($H$5:$H$6000,MATCH(0,COUNTIF($J$4:J84,$H$5:$H$6000),0)),\"\")","v":"عباس نوفل منتضر"},1500]
[null,null,"الصندوق","الايرادات",82,"2018-08-01","الصندوق","حسين صفاء عبد الله",1500,{"$f":"IF(H86<>\"\",INDEX($H$5:$H$6000,MATCH(0,COUNTIF($J$4:J85,$H$5:$H$6000),0)),\"\")","v":"حسين صفاء عبد الله"},1500]
[null,null,"الصندوق","الايرادات",83,"2018-08-01","الصندوق","حسين شاكر عوده",1500,{"$f":"IF(H87<>\"\",INDEX($H$5:$H$6000,MATCH(0,COUNTIF($J$4:J86,$H$5:$H$6000),0)),\"\")","v":"حسين شاكر عوده"},1500]
[null,null,"الصندوق","الايرادات",84,"2018-08-19","الصندوق","محمد اياد محمد",1500,{"$f":"IF(H88<>\"\",INDEX($H$5:$H$6000,MATCH(0,COUNTIF($J$4:J87,$H$5:$H$6000),0)),\"\")","v":"محمد اياد محمد"},3000]
[null,null,"الصندوق","الايرادات",85,"2018-08-01","الصندوق","محمد نبيل مرعي حسن",1500,{"$f":"IF(H89<>\"\",INDEX($H$5:$H$6000,MATCH(0,COUNTIF($J$4:J88,$H$5:$H$6000),0)),\"\")","v":"محمد نبيل مرعي حسن"},1500]
[null,null,"الصندوق","الايرادات",86,"2018-08-01","الصندوق","مصطفى حيدر فرحان ",1500,{"$f":"IF(H90<>\"\",INDEX($H$5:$H$6000,MATCH(0,COUNTIF($J$4:J89,$H$5:$H$6000),0)),\"\")","v":"مصطفى حيدر فرحان "},1500]
[null,null,"الصندوق","الايرادات",87,"2018-08-01","الصندوق","محمد جميل رحيم ",1500,{"$f":"IF(H91<>\"\",INDEX($H$5:$H$6000,MATCH(0,COUNTIF($J$4:J90,$H$5:$H$6000),0)),\"\")","v":"محمد جميل رحيم "},1500]
[null,null,"الصندوق","الايرادات",88,"2018-08-01","الصندوق","عباس حيدر جودي ",1500,{"$f":"IF(H92<>\"\",INDEX($H$5:$H$6000,MATCH(0,COUNTIF($J$4:J91,$H$5:$H$6000),0)),\"\")","v":"عباس حيدر جودي "},1500]
[null,null,"الصندوق","الايرادات",89,"2018-08-01","الصندوق","مصطفى موسى جعفر ",1500,{"$f":"IF(H93<>\"\",INDEX($H$5:$H$6000,MATCH(0,COUNTIF($J$4:J92,$H$5:$H$6000),0)),\"\")","v":"مصطفى موسى جعفر "},1500]
[null,null,"الصندوق","الايرادات",90,"2018-08-01","الصندوق","امير عبد الله عبيد ",1500,{"$f":"IF(H94<>\"\",INDEX($H$5:$H$6000,MATCH(0,COUNTIF($J$4:J93,$H$5:$H$6000),0)),\"\")","v":"امير عبد الله عبيد "},1500]
[null,null,"الصندوق","الايرادات",91,"2018-08-01","الصندوق","محمد حسن مجتبى محمد رضا ",1500,{"$f":"IF(H95<>\"\",INDEX($H$5:$H$6000,MATCH(0,COUNTIF($J$4:J94,$H$5:$H$6000),0)),\"\")","v":"محمد حسن مجتبى محمد رضا "},1500]
[null,null,"الصندوق","الايرادات",92,"2018-08-01","الصندوق","بنين منذر صاحب محمد ",1500,{"$f":"IF(H96<>\"\",INDEX($H$5:$H$6000,MATCH(0,COUNTIF($J$4:J95,$H$5:$H$6000),0)),\"\")","v":"بنين منذر صاحب محمد "},1500]
[null,null,"الصندوق","الايرادات",93,"2018-08-01","الصندوق","نهى حسن سودي ",1500,{"$f":"IF(H97<>\"\",INDEX($H$5:$H$6000,MATCH(0,COUNTIF($J$4:J96,$H$5:$H$6000),0)),\"\")","v":"نهى حسن سودي "},1500]
[null,null,"الصندوق","الايرادات",94,"2018-08-01","الصندوق","جمانه حسن سودي ",1500,{"$f":"IF(H98<>\"\",INDEX($H$5:$H$6000,MATCH(0,COUNTIF($J$4:J97,$H$5:$H$6000),0)),\"\")","v":"جمانه حسن سودي "},1500]
[null,null,"الصندوق","الايرادات",95,"2018-08-01","الصندوق","فضه سلام عباس ",1500,{"$f":"IF(H99<>\"\",INDEX($H$5:$H$6000,MATCH(0,COUNTIF($J$4:J98,$H$5:$H$6000),0)),\"\")","v":"فضه سلام عباس "},1500]
[null,null,"الصندوق","الايرادات",96,"2018-08-01","الصندوق","حسين يحي عبد الحسين ",1500,{"$f":"IF(H100<>\"\",INDEX($H$5:$H$6000,MATCH(0,COUNTIF($J$4:J99,$H$5:$H$6000),0)),\"\")","v":"حسين يحي عبد الحسين "},1500]
[null,null,"الصندوق","الايرادات",97,"2018-08-01","الصندوق","محمود سعد عبود ",1500,{"$f":"IF(H101<>\"\",INDEX($H$5:$H$6000,MATCH(0,COUNTIF($J$4:J100,$H$5:$H$6000),0)),\"\")","v":"محمود سعد عبود "},1500]
[null,null,"الصندوق","الايرادات",98,"2018-08-01","الصندوق","يوسف حسين حمودي ",1500,{"$f":"IF(H102<>\"\",INDEX($H$5:$H$6000,MATCH(0,COUNTIF($J$4:J101,$H$5:$H$6000),0)),\"\")","v":"يوسف حسين حمودي "},1500]
[null,null,"الصندوق","الايرادات",99,"2018-08-01","الصندوق","ضياء كريم رسول ",1500,{"$f":"IF(H103<>\"\",INDEX($H$5:$H$6000,MATCH(0,COUNTIF($J$4:J102,$H$5:$H$6000),0)),\"\")","v":"ضياء كريم رسول "},1500]
[null,null,"الصندوق","الايرادات",100,"2018-09-01","الصندوق","محمد رضا منذر نعمان ",1500,{"$f":"IF(H104<>\"\",INDEX($H$5:$H$6000,MATCH(0,COUNTIF($J$4:J103,$H$5:$H$6000),0)),\"\")","v":"محمد رضا منذر نعمان "},1500]
[null,null,"الصندوق","الايرادات",101,"2018-09-01","الصندوق","امير محمد مايح ",1500,{"$f":"IF(H105<>\"\",INDEX($H$5:$H$6000,MATCH(0,COUNTIF($J$4:J104,$H$5:$H$6000),0)),\"\")","v":"امير محمد مايح "},1500]
[null,null,"الصندوق","الايرادات",102,"2018-09-02","الصندوق","حسين رحيم حسين ",1500,{"$f":"IF(H106<>\"\",INDEX($H$5:$H$6000,MATCH(0,COUNTIF($J$4:J105,$H$5:$H$6000),0)),\"\")","v":"حسين رحيم حسين "},1500]
[null,null,"الصندوق","الايرادات",103,"2018-09-02","الصندوق","مسلم عقيل ابراهيم ",1500,{"$f":"IF(H107<>\"\",INDEX($H$5:$H$6000,MATCH(0,COUNTIF($J$4:J106,$H$5:$H$6000),0)),\"\")","v":"مسلم عقيل ابراهيم "},1500]
[null,null,"الصندوق","الايرادات",104,"2018-09-02","الصندوق","حسين عقيل ابراهيم ",1500,{"$f":"IF(H108<>\"\",INDEX($H$5:$H$6000,MATCH(0,COUNTIF($J$4:J107,$H$5:$H$6000),0)),\"\")","v":"حسين عقيل ابراهيم "},1500]
[null,null,"الصندوق","الايرادات",105,"2018-09-02","الصندوق","عبد الله عقيل ابراهيم ",1500,{"$f":"IF(H109<>\"\",INDEX($H$5:$H$6000,MATCH(0,COUNTIF($J$4:J108,$H$5:$H$6000),0)),\"\")","v":"عبد الله عقيل ابراهيم "},1500]
[null,null,"الصندوق","الايرادات",106,"2018-09-02","الصندوق","منتظر عبد العباس عبد الله ",1500,{"$f":"IF(H110<>\"\",INDEX($H$5:$H$6000,MATCH(0,COUNTIF($J$4:J109,$H$5:$H$6000),0)),\"\")","v":"منتظر عبد العباس عبد الله "},1500]
[null,null,"الصندوق","الايرادات",107,"2018-09-02","الصندوق","حسن قاسم خلف ",1500,{"$f":"IF(H111<>\"\",INDEX($H$5:$H$6000,MATCH(0,COUNTIF($J$4:J110,$H$5:$H$6000),0)),\"\")","v":"حسن قاسم خلف "},1500]
[null,null,"الصندوق","الايرادات",108,"2018-09-02","الصندوق","فاطمه عباس حسن ",1500,{"$f":"IF(H112<>\"\",INDEX($H$5:$H$6000,MATCH(0,COUNTIF($J$4:J111,$H$5:$H$6000),0)),\"\")","v":"فاطمه عباس حسن "},1500]
[null,null,"الصندوق","الايرادات",109,"2018-09-02","الصندوق","محمد باقر عباس ",1500,{"$f":"IF(H113<>\"\",INDEX($H$5:$H$6000,MATCH(0,COUNTIF($J$4:J112,$H$5:$H$6000),0)),\"\")","v":"محمد باقر عباس "},1500]
[null,null,"الصندوق","الايرادات",110,"2018-09-02","الصندوق","جعفر عباس حسن ",1500,{"$f":"IF(H114<>\"\",INDEX($H$5:$H$6000,MATCH(0,COUNTIF($J$4:J113,$H$5:$H$6000),0)),\"\")","v":"جعفر عباس حسن "},1500]
[null,null,"الصندوق","الايرادات",111,"2018-09-02","الصندوق","همام قصي نعمه حسون ",1500,{"$f":"IF(H115<>\"\",INDEX($H$5:$H$6000,MATCH(0,COUNTIF($J$4:J114,$H$5:$H$6000),0)),\"\")","v":"همام قصي نعمه حسون "},1500]
[null,null,"الصندوق","الايرادات",112,"2018-09-02","الصندوق","مؤمل قصي نعمه حسون ",1500,{"$f":"IF(H116<>\"\",INDEX($H$5:$H$6000,MATCH(0,COUNTIF($J$4:J115,$H$5:$H$6000),0)),\"\")","v":"مؤمل قصي نعمه حسون "},1500]
[null,null,"الصندوق","الايرادات",113,"2018-09-03","الصندوق","رضا نبيل محمد حسن ",1500,{"$f":"IF(H117<>\"\",INDEX($H$5:$H$6000,MATCH(0,COUNTIF($J$4:J116,$H$5:$H$6000),0)),\"\")","v":"رضا نبيل محمد حسن "},1500]
[null,null,"الصندوق","الايرادات",114,"2018-09-03","الصندوق","محمد رضا بهاء محمد علي ",1500,{"$f":"IF(H118<>\"\",INDEX($H$5:$H$6000,MATCH(0,COUNTIF($J$4:J117,$H$5:$H$6000),0)),\"\")","v":"محمد رضا بهاء محمد علي "},1500]
[null,null,"الصندوق","الايرادات",115,"2018-09-03","الصندوق","محمد علي حيدر صباح ",1500,{"$f":"IF(H119<>\"\",INDEX($H$5:$H$6000,MATCH(0,COUNTIF($J$4:J118,$H$5:$H$6000),0)),\"\")","v":"محمد علي حيدر صباح "},1500]
[null,null,"الصندوق","الايرادات",116,"2018-09-03","الصندوق","حسين علي رحيم ",1500,{"$f":"IF(H120<>\"\",INDEX($H$5:$H$6000,MATCH(0,COUNTIF($J$4:J119,$H$5:$H$6000),0)),\"\")","v":"حسين علي رحيم "},1500]
[null,null,"الصندوق","الايرادات",117,"2018-09-03","الصندوق","حسن احمد علي محمد ",1500,{"$f":"IF(H121<>\"\",INDEX($H$5:$H$6000,MATCH(0,COUNTIF($J$4:J120,$H$5:$H$6000),0)),\"\")","v":"حسن احمد علي محمد "},1500]
[null,null,"الصندوق","الايرادات",118,"2018-09-10","الصندوق","مجتبى باسم مرهون ",1500,{"$f":"IF(H122<>\"\",INDEX($H$5:$H$6000,MATCH(0,COUNTIF($J$4:J121,$H$5:$H$6000),0)),\"\")","v":"مجتبى باسم مرهون "},1500]
[null,null,"الصندوق","الايرادات",119,"2018-09-10","الصندوق","مهدي منتظر رعد ",1500,{"$f":"IF(H123<>\"\",INDEX($H$5:$H$6000,MATCH(0,COUNTIF($J$4:J122,$H$5:$H$6000),0)),\"\")","v":"مهدي منتظر رعد "},1500]
[null,null,"الصندوق","الايرادات",120,"2018-09-10","الصندوق","حسين جبار عبد الحسين ",1500,{"$f":"IF(H124<>\"\",INDEX($H$5:$H$6000,MATCH(0,COUNTIF($J$4:J123,$H$5:$H$6000),0)),\"\")","v":"حسين جبار عبد الحسين "},1500]
[null,null,"الصندوق","الايرادات",121,"2018-09-10","الصندوق","عباس حسن عبد الله ",1500,{"$f":"IF(H125<>\"\",INDEX($H$5:$H$6000,MATCH(0,COUNTIF($J$4:J124,$H$5:$H$6000),0)),\"\")","v":"عباس حسن عبد الله "},1500]
[null,null,"الصندوق","الايرادات",122,"2018-09-10","الصندوق","رضا حسين عبد الله ",1500,{"$f":"IF(H126<>\"\",INDEX($H$5:$H$6000,MATCH(0,COUNTIF($J$4:J125,$H$5:$H$6000),0)),\"\")","v":"رضا حسين عبد الله "},1500]
[null,null,"الصندوق","الايرادات",123,"2018-09-10","الصندوق","عبد الله علي محمد ",1500,{"$f":"IF(H127<>\"\",INDEX($H$5:$H$6000,MATCH(0,COUNTIF($J$4:J126,$H$5:$H$6000),0)),\"\")","v":"عبد الله علي محمد "},1500]
[null,null,"الصندوق","الايرادات",124,"2018-09-10","الصندوق","رضا حيدر هادي ",1500,{"$f":"IF(H128<>\"\",INDEX($H$5:$H$6000,MATCH(0,COUNTIF($J$4:J127,$H$5:$H$6000),0)),\"\")","v":"رضا حيدر هادي "},1500]
[null,null,"الصندوق","الايرادات",125,"2018-06-09","الصندوق","مجتبى حسن جاسم ",1500,{"$f":"IF(H129<>\"\",INDEX($H$5:$H$6000,MATCH(0,COUNTIF($J$4:J128,$H$5:$H$6000),0)),\"\")","v":"مجتبى حسن جاسم "},1500]
[null,null,"الصندوق","الايرادات",126,"2018-05-09","الصندوق","محمد مهنا حمود حمادي ",1500,{"$f":"IF(H130<>\"\",INDEX($H$5:$H$6000,MATCH(0,COUNTIF($J$4:J129,$H$5:$H$6000),0)),\"\")","v":"محمد مهنا حمود حمادي "},1500]
[null,null,"الصندوق","الايرادات",127,"2018-05-09","الصندوق","مصطفى توفيق عبد الرحيم ",1500,{"$f":"IF(H131<>\"\",INDEX($H$5:$H$6000,MATCH(0,COUNTIF($J$4:J130,$H$5:$H$6000),0)),\"\")","v":"مصطفى توفيق عبد الرحيم "},1500]
[null,null,"الصندوق","الايرادات",128,"2018-05-09","الصندوق","شهد محمد مهدي محي الدين ",1500,{"$f":"IF(H132<>\"\",INDEX($H$5:$H$6000,MATCH(0,COUNTIF($J$4:J131,$H$5:$H$6000),0)),\"\")","v":"شهد محمد مهدي محي الدين "},1500]
[null,null,"الصندوق","الايرادات",129,"2018-05-09","الصندوق","ضرغام مهند محمد زاير ",1500,{"$f":"IF(H133<>\"\",INDEX($H$5:$H$6000,MATCH(0,COUNTIF($J$4:J132,$H$5:$H$6000),0)),\"\")","v":"ضرغام مهند محمد زاير "},1500]
[null,null,"الصندوق","الايرادات",130,"2018-05-09","الصندوق","عباس اسعد قاسم ",1500,{"$f":"IF(H134<>\"\",INDEX($H$5:$H$6000,MATCH(0,COUNTIF($J$4:J133,$H$5:$H$6000),0)),\"\")","v":"عباس اسعد قاسم "},{"$f":"SUMPRODUCT(--($H$5:$H$1636=J134),$I$5:$I$1636)","v":1500}]
[null,null,"الصندوق","الايرادات",131,"2018-05-09","الصندوق","روح الله اسامه سلمان ",1500,{"$f":"IF(H135<>\"\",INDEX($H$5:$H$6000,MATCH(0,COUNTIF($J$4:J134,$H$5:$H$6000),0)),\"\")","v":"روح الله اسامه سلمان "},1500]
[null,null,"الصندوق","الايرادات",132,"2018-09-09","الصندوق","اسد ضرغام رزاق ",1500,{"$f":"IF(H136<>\"\",INDEX($H$5:$H$6000,MATCH(0,COUNTIF($J$4:J135,$H$5:$H$6000),0)),\"\")","v":"اسد ضرغام رزاق "},1500]
[null,null,"الصندوق","الايرادات",133,"2018-09-09","الصندوق","محمد رؤوف محمد",1500,{"$f":"IF(H137<>\"\",INDEX($H$5:$H$6000,MATCH(0,COUNTIF($J$4:J136,$H$5:$H$6000),0)),\"\")","v":"محمد رؤوف محمد"},1500]
[null,null,"الصندوق","الايرادات",134,"2018-09-09","الصندوق","المصطفى كرار فاضل ",1500,{"$f":"IF(H138<>\"\",INDEX($H$5:$H$6000,MATCH(0,COUNTIF($J$4:J137,$H$5:$H$6000),0)),\"\")","v":"المصطفى كرار فاضل "},1500]
[null,null,"الصندوق","الايرادات",135,"2018-09-09","الصندوق","حسن احمد جبار ",1500,{"$f":"IF(H139<>\"\",INDEX($H$5:$H$6000,MATCH(0,COUNTIF($J$4:J138,$H$5:$H$6000),0)),\"\")","v":"حسن احمد جبار "},1500]
[null,null,"الصندوق","الايرادات",136,"2018-09-09","الصندوق","محمد حيدر مسافر ",1500,{"$f":"IF(H140<>\"\",INDEX($H$5:$H$6000,MATCH(0,COUNTIF($J$4:J139,$H$5:$H$6000),0)),\"\")","v":"محمد حيدر مسافر "},1500]
[null,null,"الصندوق","الايرادات",137,"2018-09-09","الصندوق","مهدي منتظر محمد ",1500,{"$f":"IF(H141<>\"\",INDEX($H$5:$H$6000,MATCH(0,COUNTIF($J$4:J140,$H$5:$H$6000),0)),\"\")","v":"مهدي منتظر محمد "},1500]
[null,null,"الصندوق","الايرادات",138,"2018-09-09","الصندوق","منتظر احمد عبد الرحمن ",1500,{"$f":"IF(H142<>\"\",INDEX($H$5:$H$6000,MATCH(0,COUNTIF($J$4:J141,$H$5:$H$6000),0)),\"\")","v":"منتظر احمد عبد الرحمن "},1500]
[null,null,"الصندوق","الايرادات",139,"2018-09-11","الصندوق","محمد حسين طيب ",1500,{"$f":"IF(H143<>\"\",INDEX($H$5:$H$6000,MATCH(0,COUNTIF($J$4:J142,$H$5:$H$6000),0)),\"\")","v":"محمد حسين طيب "},1500]
[null,null,"الصندوق","الايرادات",140,"2018-09-15","الصندوق","حسن علي صاحب ",1500,{"$f":"IF(H144<>\"\",INDEX($H$5:$H$6000,MATCH(0,COUNTIF($J$4:J143,$H$5:$H$6000),0)),\"\")","v":"حسن علي صاحب "},1500]
[null,null,"الصندوق","الايرادات",141,"2018-09-15","الصندوق","زهراء علي صاحب ",1500,{"$f":"IF(H145<>\"\",INDEX($H$5:$H$6000,MATCH(0,COUNTIF($J$4:J144,$H$5:$H$6000),0)),\"\")","v":"زهراء علي صاحب "},1500]
[null,null,"الصندوق","الايرادات",142,"2018-09-13","الصندوق","حسنين علي عبد الزهره ",1500,{"$f":"IF(H146<>\"\",INDEX($H$5:$H$6000,MATCH(0,COUNTIF($J$4:J145,$H$5:$H$6000),0)),\"\")","v":"حسنين علي عبد الزهره "},1500]
[null,null,"الصندوق","الايرادات",143,"2018-09-13","الصندوق","حوراء حيدر محمد موسى ",1500,{"$f":"IF(H147<>\"\",INDEX($H$5:$H$6000,MATCH(0,COUNTIF($J$4:J146,$H$5:$H$6000),0)),\"\")","v":"حوراء حيدر محمد موسى "},1500]
[null,null,"الصندوق","الايرادات",144,"2018-09-13","الصندوق","حذيفه حيدر عليوي ",1500,{"$f":"IF(H148<>\"\",INDEX($H$5:$H$6000,MATCH(0,COUNTIF($J$4:J147,$H$5:$H$6000),0)),\"\")","v":"حذيفه حيدر عليوي "},1500]
[null,null,"الصندوق","الايرادات",145,"2018-09-13","الصندوق","عليوي حيدر عليوي ",1500,{"$f":"IF(H149<>\"\",INDEX($H$5:$H$6000,MATCH(0,COUNTIF($J$4:J148,$H$5:$H$6000),0)),\"\")","v":"عليوي حيدر عليوي "},1500]
[null,null,"الصندوق","الايرادات",146,"2018-09-13","الصندوق","سراء عبد الرسول صالح ",1500,{"$f":"IF(H150<>\"\",INDEX($H$5:$H$6000,MATCH(0,COUNTIF($J$4:J149,$H$5:$H$6000),0)),\"\")","v":"سراء عبد الرسول صالح "},1500]
[null,null,"الصندوق","الايرادات",147,"2018-09-13","الصندوق","مصطفى حيدر ميثم عبد الله ",1500,{"$f":"IF(H151<>\"\",INDEX($H$5:$H$6000,MATCH(0,COUNTIF($J$4:J150,$H$5:$H$6000),0)),\"\")","v":"مصطفى حيدر ميثم عبد الله "},1500]
[null,null,"الصندوق","الايرادات",148,"2018-09-13","الصندوق","رقيه حيدر ميثم عبد الله ",1500,{"$f":"IF(H152<>\"\",INDEX($H$5:$H$6000,MATCH(0,COUNTIF($J$4:J151,$H$5:$H$6000),0)),\"\")","v":"رقيه حيدر ميثم عبد الله "},1500]
[null,null,"الصندوق","الايرادات",149,"2018-09-13","الصندوق","محمد باقر حيدر اسماعيل ",1500,{"$f":"IF(H153<>\"\",INDEX($H$5:$H$6000,MATCH(0,COUNTIF($J$4:J152,$H$5:$H$6000),0)),\"\")","v":"محمد باقر حيدر اسماعيل "},1500]
[null,null,"الصندوق","الايرادات",150,"2018-09-13","الصندوق","ملك عبد الله عبد الكريم بلال ",1500,{"$f":"IF(H154<>\"\",INDEX($H$5:$H$6000,MATCH(0,COUNTIF($J$4:J153,$H$5:$H$6000),0)),\"\")","v":"ملك عبد الله عبد الكريم بلال "},1500]
[null,null,"الصندوق","الايرادات",151,"2018-09-13","الصندوق","مهدي عبد الكريم بلال ",1500,{"$f":"IF(H155<>\"\",INDEX($H$5:$H$6000,MATCH(0,COUNTIF($J$4:J154,$H$5:$H$6000),0)),\"\")","v":"مهدي عبد الكريم بلال "},1500]
[null,null,"الصندوق","الايرادات",152,"2018-09-13","الصندوق","نرجس عبد الله عبد الكريم بلال ",1500,{"$f":"IF(H156<>\"\",INDEX($H$5:$H$6000,MATCH(0,COUNTIF($J$4:J155,$H$5:$H$6000),0)),\"\")","v":"نرجس عبد الله عبد الكريم بلال "},1500]
[null,null,"الصندوق","الايرادات",153,"2018-09-13","الصندوق","جعفر مهدي ابراهيم ",1500,{"$f":"IF(H157<>\"\",INDEX($H$5:$H$6000,MATCH(0,COUNTIF($J$4:J156,$H$5:$H$6000),0)),\"\")","v":"جعفر مهدي ابراهيم "},1500]
[null,null,"الصندوق","الايرادات",154,"2018-09-13","الصندوق","صادق حيدر ابراهيم ",1500,{"$f":"IF(H158<>\"\",INDEX($H$5:$H$6000,MATCH(0,COUNTIF($J$4:J157,$H$5:$H$6000),0)),\"\")","v":"صادق حيدر ابراهيم "},1500]
[null,null,"الصندوق","الايرادات",155,"2018-09-13","الصندوق","علي خليل ابراهيم ",1500,{"$f":"IF(H159<>\"\",INDEX($H$5:$H$6000,MATCH(0,COUNTIF($J$4:J158,$H$5:$H$6000),0)),\"\")","v":"علي خليل ابراهيم "},1500]
[null,null,"الصندوق","الايرادات",156,"2018-09-13","الصندوق","ميار اجود محسن عبد الصاحب",1500,{"$f":"IF(H160<>\"\",INDEX($H$5:$H$6000,MATCH(0,COUNTIF($J$4:J159,$H$5:$H$6000),0)),\"\")","v":"ميار اجود محسن عبد الصاحب"},1500]
[null,null,"الصندوق","الايرادات",157,"2018-09-13","الصندوق","ياسين اجود محسن عبد الصاحب",1500,{"$f":"IF(H161<>\"\",INDEX($H$5:$H$6000,MATCH(0,COUNTIF($J$4:J160,$H$5:$H$6000),0)),\"\")","v":"ياسين اجود محسن عبد الصاحب"},1500]
[null,null,"الصندوق","الايرادات",158,"2018-09-13","الصندوق","فاطمه منتظر هدي صاحب ",1500,{"$f":"IF(H162<>\"\",INDEX($H$5:$H$6000,MATCH(0,COUNTIF($J$4:J161,$H$5:$H$6000),0)),\"\")","v":"فاطمه منتظر هدي صاحب "},1500]
[null,null,"الصندوق","الايرادات",159,"2018-09-13","الصندوق","رويده علاء رحيم ",1500,{"$f":"IF(H163<>\"\",INDEX($H$5:$H$6000,MATCH(0,COUNTIF($J$4:J162,$H$5:$H$6000),0)),\"\")","v":"رويده علاء رحيم "},1500]
[null,null,"الصندوق","الايرادات",160,"2018-09-15","الصندوق","مقداد اسعد رشاد ",1500,{"$f":"IF(H164<>\"\",INDEX($H$5:$H$6000,MATCH(0,COUNTIF($J$4:J163,$H$5:$H$6000),0)),\"\")","v":"مقداد اسعد رشاد "},1500]
[null,null,"الصندوق","الايرادات",161,"2018-09-16","الصندوق","محمد عقيل حسن ",1500,{"$f":"IF(H165<>\"\",INDEX($H$5:$H$6000,MATCH(0,COUNTIF($J$4:J164,$H$5:$H$6000),0)),\"\")","v":"محمد عقيل حسن "},1500]
[null,null,"الصندوق","الايرادات",162,"2018-09-16","الصندوق","رضا اثير يوسف ",1500,{"$f":"IF(H166<>\"\",INDEX($H$5:$H$6000,MATCH(0,COUNTIF($J$4:J165,$H$5:$H$6000),0)),\"\")","v":"رضا اثير يوسف "},1500]
[null,null,"الصندوق","الايرادات",163,"2018-09-16","الصندوق","علي رضا مسلم طالب ",1500,{"$f":"IF(H167<>\"\",INDEX($H$5:$H$6000,MATCH(0,COUNTIF($J$4:J166,$H$5:$H$6000),0)),\"\")","v":"علي رضا مسلم طالب "},1500]
[null,null,"الصندوق","الايرادات",164,"2018-09-16","الصندوق","امين ناجي محسن ",1500,{"$f":"IF(H168<>\"\",INDEX($H$5:$H$6000,MATCH(0,COUNTIF($J$4:J167,$H$5:$H$6000),0)),\"\")","v":"امين ناجي محسن "},1500]
[null,null,"الصندوق","الايرادات",165,"2018-09-13","الصندوق","كميل زيد عباس ",1500,{"$f":"IF(H169<>\"\",INDEX($H$5:$H$6000,MATCH(0,COUNTIF($J$4:J168,$H$5:$H$6000),0)),\"\")","v":"كميل زيد عباس "},1500]
[null,null,"الصندوق","الايرادات",166,"2018-09-13","الصندوق","ذو الفقار علي وميض حامد ",1500,{"$f":"IF(H170<>\"\",INDEX($H$5:$H$6000,MATCH(0,COUNTIF($J$4:J169,$H$5:$H$6000),0)),\"\")","v":"ذو الفقار علي وميض حامد "},1500]
[null,null,"الصندوق","الايرادات",167,"2018-09-13","الصندوق","حوراء محمد علي هاشم ",1500,{"$f":"IF(H171<>\"\",INDEX($H$5:$H$6000,MATCH(0,COUNTIF($J$4:J170,$H$5:$H$6000),0)),\"\")","v":"حوراء محمد علي هاشم "},1500]
[null,null,"الصندوق","الايرادات",168,"2018-09-13","الصندوق","هاشم محمد علي هاشم ",1500,{"$f":"IF(H172<>\"\",INDEX($H$5:$H$6000,MATCH(0,COUNTIF($J$4:J171,$H$5:$H$6000),0)),\"\")","v":"هاشم محمد علي هاشم "},1500]
[null,null,"الصندوق","الايرادات",169,"2018-09-13","الصندوق","حسين محمد عبد الحمزه مهدي ",1500,{"$f":"IF(H173<>\"\",INDEX($H$5:$H$6000,MATCH(0,COUNTIF($J$4:J172,$H$5:$H$6000),0)),\"\")","v":"حسين محمد عبد الحمزه مهدي "},1500]
[null,null,"الصندوق","الايرادات",170,"2018-09-13","الصندوق","بنين احمد عبد الامير ",1500,{"$f":"IF(H174<>\"\",INDEX($H$5:$H$6000,MATCH(0,COUNTIF($J$4:J173,$H$5:$H$6000),0)),\"\")","v":"بنين احمد عبد الامير "},1500]
[null,null,"الصندوق","الايرادات",171,"2018-09-13","الصندوق","نرجس احمد عبد الامير ",1500,{"$f":"IF(H175<>\"\",INDEX($H$5:$H$6000,MATCH(0,COUNTIF($J$4:J174,$H$5:$H$6000),0)),\"\")","v":"نرجس احمد عبد الامير "},1500]
[null,null,"الصندوق","الايرادات",172,"2018-09-13","الصندوق","محمد احمد عبد الامير ",1500,{"$f":"IF(H176<>\"\",INDEX($H$5:$H$6000,MATCH(0,COUNTIF($J$4:J175,$H$5:$H$6000),0)),\"\")","v":"محمد احمد عبد الامير "},1500]
[null,null,"الصندوق","الايرادات",173,"2018-09-13","الصندوق","حسين نصير جبر ",1500,{"$f":"IF(H177<>\"\",INDEX($H$5:$H$6000,MATCH(0,COUNTIF($J$4:J176,$H$5:$H$6000),0)),\"\")","v":"حسين نصير جبر "},1500]
[null,null,"الصندوق","الايرادات",174,"2018-09-13","الصندوق","رضا ميثم حسن ",1500,{"$f":"IF(H178<>\"\",INDEX($H$5:$H$6000,MATCH(0,COUNTIF($J$4:J177,$H$5:$H$6000),0)),\"\")","v":"رضا ميثم حسن "},1500]
[null,null,"الصندوق","الايرادات",175,"2018-09-13","الصندوق","كميل ميثم حسن راضي ",1500,{"$f":"IF(H179<>\"\",INDEX($H$5:$H$6000,MATCH(0,COUNTIF($J$4:J178,$H$5:$H$6000),0)),\"\")","v":"كميل ميثم حسن راضي "},1500]
[null,null,"الصندوق","الايرادات",176,"2018-09-13","الصندوق","عباس ميثم حسن راضي ",1500,{"$f":"IF(H180<>\"\",INDEX($H$5:$H$6000,MATCH(0,COUNTIF($J$4:J179,$H$5:$H$6000),0)),\"\")","v":"عباس ميثم حسن راضي "},1500]
[null,null,"الصندوق","الايرادات",177,"2018-09-12","الصندوق","زهراء راهي منصور ",1500,{"$f":"IF(H181<>\"\",INDEX($H$5:$H$6000,MATCH(0,COUNTIF($J$4:J180,$H$5:$H$6000),0)),\"\")","v":"زهراء راهي منصور "},1500]
[null,null,"الصندوق","الايرادات",178,"2018-09-12","الصندوق","علي هادي راهي ",1500,{"$f":"IF(H182<>\"\",INDEX($H$5:$H$6000,MATCH(0,COUNTIF($J$4:J181,$H$5:$H$6000),0)),\"\")","v":"علي هادي راهي "},1500]
[null,null,"الصندوق","الايرادات",179,"2018-09-12","الصندوق","حسين راهي منصور ",1500,{"$f":"IF(H183<>\"\",INDEX($H$5:$H$6000,MATCH(0,COUNTIF($J$4:J182,$H$5:$H$6000),0)),\"\")","v":"حسين راهي منصور "},1500]
[null,null,"الصندوق","الايرادات",180,"2018-09-12","الصندوق","غيث عمار عبد علي ",1500,{"$f":"IF(H184<>\"\",INDEX($H$5:$H$6000,MATCH(0,COUNTIF($J$4:J183,$H$5:$H$6000),0)),\"\")","v":"غيث عمار عبد علي "},1500]
[null,null,"الصندوق","الايرادات",181,"2018-09-12","الصندوق","علي بهاء مهدي ",1500,{"$f":"IF(H185<>\"\",INDEX($H$5:$H$6000,MATCH(0,COUNTIF($J$4:J184,$H$5:$H$6000),0)),\"\")","v":"علي بهاء مهدي "},1500]
[null,null,"الصندوق","الايرادات",182,"2018-09-12","الصندوق","نرجس عباس جاسم حسن ",1500,{"$f":"IF(H186<>\"\",INDEX($H$5:$H$6000,MATCH(0,COUNTIF($J$4:J185,$H$5:$H$6000),0)),\"\")","v":"نرجس عباس جاسم حسن "},1500]
[null,null,"الصندوق","الايرادات",183,"2018-09-12","الصندوق","نور الهدى عباس جاسم ",1500,{"$f":"IF(H187<>\"\",INDEX($H$5:$H$6000,MATCH(0,COUNTIF($J$4:J186,$H$5:$H$6000),0)),\"\")","v":"نور الهدى عباس جاسم "},1500]
[null,null,"الصندوق","الايرادات",184,"2018-09-12","الصندوق","حوراء عباس جاسم ",1500,{"$f":"IF(H188<>\"\",INDEX($H$5:$H$6000,MATCH(0,COUNTIF($J$4:J187,$H$5:$H$6000),0)),\"\")","v":"حوراء عباس جاسم "},1500]
[null,null,"الصندوق","الايرادات",185,"2018-09-12","الصندوق","زهراء عباس جاسم حسن ",1500,{"$f":"IF(H189<>\"\",INDEX($H$5:$H$6000,MATCH(0,COUNTIF($J$4:J188,$H$5:$H$6000),0)),\"\")","v":"زهراء عباس جاسم حسن "},1500]
[null,null,"الصندوق","الايرادات",186,"2018-09-12","الصندوق","محمد اياد محمد",1500,{"$f":"IF(H190<>\"\",INDEX($H$5:$H$6000,MATCH(0,COUNTIF($J$4:J189,$H$5:$H$6000),0)),\"\")","v":"علي عادل محمد "},1500]
[null,null,"الصندوق","الايرادات",187,"2018-09-12","الصندوق","علي عادل محمد ",1500,{"$f":"IF(H191<>\"\",INDEX($H$5:$H$6000,MATCH(0,COUNTIF($J$4:J190,$H$5:$H$6000),0)),\"\")","v":"محمد عادل محمد "},1500]
[null,null,"الصندوق","الايرادات",188,"2018-09-12","الصندوق","محمد عادل محمد ",1500,{"$f":"IF(H192<>\"\",INDEX($H$5:$H$6000,MATCH(0,COUNTIF($J$4:J191,$H$5:$H$6000),0)),\"\")","v":"طارق هشام حميد "},1500]
[null,null,"الصندوق","الايرادات",189,"2018-09-12","الصندوق","طارق هشام حميد ",1500,{"$f":"IF(H193<>\"\",INDEX($H$5:$H$6000,MATCH(0,COUNTIF($J$4:J192,$H$5:$H$6000),0)),\"\")","v":"مصطفى رائد لطيف "},1500]
[null,null,"الصندوق","الايرادات",190,"2018-09-12","الصندوق","مصطفى رائد لطيف ",1500,{"$f":"IF(H194<>\"\",INDEX($H$5:$H$6000,MATCH(0,COUNTIF($J$4:J193,$H$5:$H$6000),0)),\"\")","v":"ايسار يوسف حمود عبد الامير "},1500]
[null,null,"الصندوق","الايرادات",191,"2018-09-12","الصندوق","ايسار يوسف حمود عبد الامير ",1500,{"$f":"IF(H195<>\"\",INDEX($H$5:$H$6000,MATCH(0,COUNTIF($J$4:J194,$H$5:$H$6000),0)),\"\")","v":"حيدر يوسف حمود عبد الامير "},1500]
[null,null,"الصندوق","الايرادات",192,"2018-09-12","الصندوق","حيدر يوسف حمود عبد الامير ",1500,{"$f":"IF(H196<>\"\",INDEX($H$5:$H$6000,MATCH(0,COUNTIF($J$4:J195,$H$5:$H$6000),0)),\"\")","v":"محمد باقر سعد هاتف "},1500]
[null,null,"الصندوق","الايرادات",193,"2018-09-12","الصندوق","محمد باقر سعد هاتف ",1500,{"$f":"IF(H197<>\"\",INDEX($H$5:$H$6000,MATCH(0,COUNTIF($J$4:J196,$H$5:$H$6000),0)),\"\")","v":"محمد رضا يوسف حمود "},1500]
[null,null,"الصندوق","الايرادات",194,"2018-09-12","الصندوق","محمد رضا يوسف حمود ",1500,{"$f":"IF(H198<>\"\",INDEX($H$5:$H$6000,MATCH(0,COUNTIF($J$4:J197,$H$5:$H$6000),0)),\"\")","v":"جعفر محمد باقر ياسين "},{"$f":"SUMPRODUCT(--($H$5:$H$1636=J198),$I$5:$I$1636)","v":1500}]
[null,null,"الصندوق","الايرادات",195,"2018-09-12","الصندوق","جعفر محمد باقر ياسين ",1500,{"$f":"IF(H199<>\"\",INDEX($H$5:$H$6000,MATCH(0,COUNTIF($J$4:J198,$H$5:$H$6000),0)),\"\")","v":"مريم حيدر ابراهيم "},1500]
[null,null,"الصندوق","الايرادات",196,"2018-09-12","الصندوق","مريم حيدر ابراهيم ",1500,{"$f":"IF(H200<>\"\",INDEX($H$5:$H$6000,MATCH(0,COUNTIF($J$4:J199,$H$5:$H$6000),0)),\"\")","v":"ياسمين حسنين حيدر "},1500]
[null,null,"الصندوق","الايرادات",197,"2018-09-12","الصندوق","ياسمين حسنين حيدر ",1500,{"$f":"IF(H201<>\"\",INDEX($H$5:$H$6000,MATCH(0,COUNTIF($J$4:J200,$H$5:$H$6000),0)),\"\")","v":"رقيه ضرغام حميد "},1500]
[null,null,"الصندوق","الايرادات",198,"2018-09-12","الصندوق","رقيه ضرغام حميد ",1500,{"$f":"IF(H202<>\"\",INDEX($H$5:$H$6000,MATCH(0,COUNTIF($J$4:J201,$H$5:$H$6000),0)),\"\")","v":"سناريا معن نعمه "},1500]
[null,null,"الصندوق","الايرادات",199,"2018-09-12","الصندوق","سناريا معن نعمه ",1500,{"$f":"IF(H203<>\"\",INDEX($H$5:$H$6000,MATCH(0,COUNTIF($J$4:J202,$H$5:$H$6000),0)),\"\")","v":"سماره معن نعمه "},1500]
[null,null,"الصندوق","الايرادات",200,"2018-09-12","الصندوق","سماره معن نعمه ",1500,{"$f":"IF(H204<>\"\",INDEX($H$5:$H$6000,MATCH(0,COUNTIF($J$4:J203,$H$5:$H$6000),0)),\"\")","v":"علي احمد جعفر "},1500]
[null,null,"الصندوق","الايرادات",201,"2018-09-16","الصندوق","علي احمد جعفر ",1500,{"$f":"IF(H205<>\"\",INDEX($H$5:$H$6000,MATCH(0,COUNTIF($J$4:J204,$H$5:$H$6000),0)),\"\")","v":"محمد علي ثائر بركه "},1500]
[null,null,"الصندوق","الايرادات",202,"2018-09-16","الصندوق","محمد علي ثائر بركه ",1500,{"$f":"IF(H206<>\"\",INDEX($H$5:$H$6000,MATCH(0,COUNTIF($J$4:J205,$H$5:$H$6000),0)),\"\")","v":"حسين ثائر بركه "},1500]
[null,null,"الصندوق","الايرادات",203,"2018-09-16","الصندوق","حسين ثائر بركه ",1500,{"$f":"IF(H207<>\"\",INDEX($H$5:$H$6000,MATCH(0,COUNTIF($J$4:J206,$H$5:$H$6000),0)),\"\")","v":"محمد رضا مهند قاسم "},1500]
[null,null,"الصندوق","الايرادات",204,"2018-09-16","الصندوق","محمد رضا مهند قاسم ",1500,{"$f":"IF(H208<>\"\",INDEX($H$5:$H$6000,MATCH(0,COUNTIF($J$4:J207,$H$5:$H$6000),0)),\"\")","v":"علي حسين سليم "},1500]
[null,null,"الصندوق","الايرادات",205,"2018-09-16","الصندوق","علي حسين سليم ",1500,{"$f":"IF(H209<>\"\",INDEX($H$5:$H$6000,MATCH(0,COUNTIF($J$4:J208,$H$5:$H$6000),0)),\"\")","v":"جعفر حكيم سلمان "},1500]
[null,null,"الصندوق","الايرادات",206,"2018-09-17","الصندوق","جعفر حكيم سلمان ",1500,{"$f":"IF(H210<>\"\",INDEX($H$5:$H$6000,MATCH(0,COUNTIF($J$4:J209,$H$5:$H$6000),0)),\"\")","v":"احمد حيدر قيس "},1500]
[null,null,"الصندوق","الايرادات",207,"2018-09-17","الصندوق","احمد حيدر قيس ",1500,{"$f":"IF(H211<>\"\",INDEX($H$5:$H$6000,MATCH(0,COUNTIF($J$4:J210,$H$5:$H$6000),0)),\"\")","v":"علي زيد نوري"},1500]
[null,null,"الصندوق","الايرادات",208,"2018-09-17","الصندوق","علي زيد نوري",1500,{"$f":"IF(H212<>\"\",INDEX($H$5:$H$6000,MATCH(0,COUNTIF($J$4:J211,$H$5:$H$6000),0)),\"\")","v":"محمد زيد نوري"},1500]
[null,null,"الصندوق","الايرادات",209,"2018-09-17","الصندوق","محمد زيد نوري",1500,{"$f":"IF(H213<>\"\",INDEX($H$5:$H$6000,MATCH(0,COUNTIF($J$4:J212,$H$5:$H$6000),0)),\"\")","v":"محمد حسين كاظم مريوم "},1500]
[null,null,"الصندوق","الايرادات",210,"2018-09-17","الصندوق","محمد حسين كاظم مريوم ",1500,{"$f":"IF(H214<>\"\",INDEX($H$5:$H$6000,MATCH(0,COUNTIF($J$4:J213,$H$5:$H$6000),0)),\"\")","v":"يوسف احمد شاكر "},1500]
[null,null,"الصندوق","الايرادات",211,"2018-09-17","الصندوق","يوسف احمد شاكر ",1500,{"$f":"IF(H215<>\"\",INDEX($H$5:$H$6000,MATCH(0,COUNTIF($J$4:J214,$H$5:$H$6000),0)),\"\")","v":"علي عبد الحكيم عامر "},1500]
[null,null,"الصندوق","الايرادات",212,"2018-09-17","الصندوق","علي عبد الحكيم عامر ",1500,{"$f":"IF(H216<>\"\",INDEX($H$5:$H$6000,MATCH(0,COUNTIF($J$4:J215,$H$5:$H$6000),0)),\"\")","v":"حسن عبد الحكيم عامر "},1500]
[null,null,"الصندوق","الايرادات",213,"2018-09-17","الصندوق","حسن عبد الحكيم عامر ",1500,{"$f":"IF(H217<>\"\",INDEX($H$5:$H$6000,MATCH(0,COUNTIF($J$4:J216,$H$5:$H$6000),0)),\"\")","v":"محمد رضا عبد الحكيم "},1500]
[null,null,"الصندوق","الايرادات",214,"2018-09-17","الصندوق","محمد رضا عبد الحكيم ",1500,{"$f":"IF(H218<>\"\",INDEX($H$5:$H$6000,MATCH(0,COUNTIF($J$4:J217,$H$5:$H$6000),0)),\"\")","v":"زهراء عبد الحكيم عمار "},1500]
[null,null,"الصندوق","الايرادات",215,"2018-09-17","الصندوق","زهراء عبد الحكيم عمار ",1500,{"$f":"IF(H219<>\"\",INDEX($H$5:$H$6000,MATCH(0,COUNTIF($J$4:J218,$H$5:$H$6000),0)),\"\")","v":"حيدر سعيد حسين "},1500]
[null,null,"الصندوق","الايرادات",216,"2018-09-17","الصندوق","حيدر سعيد حسين ",1500,{"$f":"IF(H220<>\"\",INDEX($H$5:$H$6000,MATCH(0,COUNTIF($J$4:J219,$H$5:$H$6000),0)),\"\")","v":"مصطفى عباس كريم "},1500]
[null,null,"الصندوق","الايرادات",217,"2018-09-17","الصندوق","مصطفى عباس كريم ",1500,{"$f":"IF(H221<>\"\",INDEX($H$5:$H$6000,MATCH(0,COUNTIF($J$4:J220,$H$5:$H$6000),0)),\"\")","v":"حيدر عباس كريم "},1500]
[null,null,"الصندوق","الايرادات",218,"2018-09-17","الصندوق","حيدر عباس كريم ",1500,{"$f":"IF(H222<>\"\",INDEX($H$5:$H$6000,MATCH(0,COUNTIF($J$4:J221,$H$5:$H$6000),0)),\"\")","v":"حيدر محمد عبد الزهره "},1500]
[null,null,"الصندوق","الايرادات",219,"2018-09-17","الصندوق","حيدر محمد عبد الزهره ",1500,{"$f":"IF(H223<>\"\",INDEX($H$5:$H$6000,MATCH(0,COUNTIF($J$4:J222,$H$5:$H$6000),0)),\"\")","v":"عبد الله صفاء شهيد "},1500]
[null,null,"الصندوق","الايرادات",220,"2018-09-17","الصندوق","عبد الله صفاء شهيد ",1500,{"$f":"IF(H224<>\"\",INDEX($H$5:$H$6000,MATCH(0,COUNTIF($J$4:J223,$H$5:$H$6000),0)),\"\")","v":"ليث طالب هادي "},1500]
[null,null,"الصندوق","الايرادات",221,"2018-09-18","الصندوق","ليث طالب هادي ",1500,{"$f":"IF(H225<>\"\",INDEX($H$5:$H$6000,MATCH(0,COUNTIF($J$4:J224,$H$5:$H$6000),0)),\"\")","v":"محمد عبد الكاظم كريم "},1500]
[null,null,"الصندوق","الايرادات",222,"2018-09-18","الصندوق","محمد عبد الكاظم كريم ",1500,{"$f":"IF(H226<>\"\",INDEX($H$5:$H$6000,MATCH(0,COUNTIF($J$4:J225,$H$5:$H$6000),0)),\"\")","v":"منتظر صادق جعفر "},1500]
[null,null,"الصندوق","الايرادات",223,"2018-09-18","الصندوق","منتظر صادق جعفر ",1500,{"$f":"IF(H227<>\"\",INDEX($H$5:$H$6000,MATCH(0,COUNTIF($J$4:J226,$H$5:$H$6000),0)),\"\")","v":"ليث عدي صادق "},1500]
[null,null,"الصندوق","الايرادات",224,"2018-09-18","الصندوق","ليث عدي صادق ",1500,{"$f":"IF(H228<>\"\",INDEX($H$5:$H$6000,MATCH(0,COUNTIF($J$4:J227,$H$5:$H$6000),0)),\"\")","v":"مصطفى عدي صادق "},1500]
[null,null,"الصندوق","الايرادات",225,"2018-09-18","الصندوق","مصطفى عدي صادق ",1500,{"$f":"IF(H229<>\"\",INDEX($H$5:$H$6000,MATCH(0,COUNTIF($J$4:J228,$H$5:$H$6000),0)),\"\")","v":"محمد حسن رائد محمد رضا "},1500]
[null,null,"الصندوق","الايرادات",226,"2018-09-18","الصندوق","محمد حسن رائد محمد رضا ",1500,{"$f":"IF(H230<>\"\",INDEX($H$5:$H$6000,MATCH(0,COUNTIF($J$4:J229,$H$5:$H$6000),0)),\"\")","v":"حسين علي مصدق "},1500]
[null,null,"الصندوق","الايرادات",227,"2018-09-18","الصندوق","حسين علي مصدق ",1500,{"$f":"IF(H231<>\"\",INDEX($H$5:$H$6000,MATCH(0,COUNTIF($J$4:J230,$H$5:$H$6000),0)),\"\")","v":"عباس محمد نجم عبد الله "},1500]
[null,null,"الصندوق","الايرادات",228,"2018-09-18","الصندوق","عباس محمد نجم عبد الله ",1500,{"$f":"IF(H232<>\"\",INDEX($H$5:$H$6000,MATCH(0,COUNTIF($J$4:J231,$H$5:$H$6000),0)),\"\")","v":"عبد الله نجم عبد الله "},1500]
[null,null,"الصندوق","الايرادات",229,"2018-09-18","الصندوق","عبد الله نجم عبد الله ",1500,{"$f":"IF(H233<>\"\",INDEX($H$5:$H$6000,MATCH(0,COUNTIF($J$4:J232,$H$5:$H$6000),0)),\"\")","v":"علي عبد الهادي عبد الحسن "},1500]
[null,null,"الصندوق","الايرادات",230,"2018-09-18","الصندوق","علي عبد الهادي عبد الحسن ",1500]
[null,null,"الصندوق","الايرادات",231,"2018-09-16","الصندوق","علي نوري خضير",1500]
[null,null,"الصندوق","الايرادات",232,"2018-09-17","الصندوق","حسن محمد ناجي ",1500]
[null,null,"الصندوق","الايرادات",233,null,null,null,1500]
[null,null,"الصندوق","الايرادات",234,null,null,null,1500]
[null,null,"الصندوق","الايرادات",235,null,null,null,1500]
[null,null,"الصندوق","الايرادات",236,null,null,null,1500]
[null,null,"الصندوق","الايرادات",237,null,null,null,1500]
[null,null,"الصندوق","الايرادات",238,null,null,null,1500]
[null,null,"الصندوق","الايرادات",239,null,null,null,1500]
[null,null,"الصندوق","الايرادات",240,null,null,null,1500]
[null,null,"الصندوق","الايرادات",241,null,null,null,1500]
[null,null,"الصندوق","الايرادات",242,null,null,null,1500]
[null,null,"الصندوق","الايرادات",243,null,null,null,1500]
[null,null,"الصندوق","الايرادات",244,null,null,null,1500]
[null,null,"الصندوق","الايرادات",245,null,null,null,1500]
[null,null,"الصندوق","الايرادات",246,null,null,null,1500]
[null,null,"الصندوق","الايرادات",247,null,null,null,1500]
[null,null,"الصندوق","الايرادات",248,null,null,null,1500]
[null,null,"الصندوق","الايرادات",249,null,null,null,1500]
[null,null,"الصندوق","الايرادات",250,null,null,null,1500]
[null,null,"الصندوق","الايرادات",251,null,null,null,1500]
[null,null,"الصندوق","الايرادات",252,null,null,null,1500]
[null,null,"الصندوق","الايرادات",253,null,null,null,1500]
[null,null,"الصندوق","الايرادات",254,null,null,null,1500]
[null,null,"الصندوق","الايرادات",255,null,null,null,1500]
[null,null,"الصندوق","الايرادات",256,null,null,null,1500]
[null,null,"الصندوق","الايرادات",257,null,null,null,1500]
[null,null,"الصندوق","الايرادات",258,null,null,null,1500]
[null,null,"الصندوق","الايرادات",259,null,null,null,1500]
[null,null,"الصندوق","الايرادات",260,null,null,null,1500,{"$f":"IF(H264<>\"\",INDEX($H$5:$H$6000,MATCH(0,COUNTIF($J$4:J263,$H$5:$H$6000),0)),\"\")","v":""}]
[null,null,"الصندوق","الايرادات",261,null,null,null,1500,{"$f":"IF(H265<>\"\",INDEX($H$5:$H$6000,MATCH(0,COUNTIF($J$4:J264,$H$5:$H$6000),0)),\"\")","v":""}]
[null,null,"الصندوق","الايرادات",262,null,null,null,1500,{"$f":"IF(H266<>\"\",INDEX($H$5:$H$6000,MATCH(0,COUNTIF($J$4:J265,$H$5:$H$6000),0)),\"\")","v":""}]
[null,null,"الصندوق","الايرادات",263,null,null,null,1500,{"$f":"IF(H267<>\"\",INDEX($H$5:$H$6000,MATCH(0,COUNTIF($J$4:J266,$H$5:$H$6000),0)),\"\")","v":""}]
[null,null,"الصندوق","الايرادات",264,null,null,null,1500,{"$f":"IF(H268<>\"\",INDEX($H$5:$H$6000,MATCH(0,COUNTIF($J$4:J267,$H$5:$H$6000),0)),\"\")","v":""}]
[null,null,"الصندوق","الايرادات",265,null,null,null,1500,{"$f":"IF(H269<>\"\",INDEX($H$5:$H$6000,MATCH(0,COUNTIF($J$4:J268,$H$5:$H$6000),0)),\"\")","v":""}]
[null,null,"الصندوق","الايرادات",266,null,null,null,1500,{"$f":"IF(H270<>\"\",INDEX($H$5:$H$6000,MATCH(0,COUNTIF($J$4:J269,$H$5:$H$6000),0)),\"\")","v":""}]
[null,null,"الصندوق","الايرادات",267,null,null,null,1500,{"$f":"IF(H271<>\"\",INDEX($H$5:$H$6000,MATCH(0,COUNTIF($J$4:J270,$H$5:$H$6000),0)),\"\")","v":""}]
[null,null,"الصندوق","الايرادات",268,null,null,null,1500,{"$f":"IF(H272<>\"\",INDEX($H$5:$H$6000,MATCH(0,COUNTIF($J$4:J271,$H$5:$H$6000),0)),\"\")","v":""}]
[null,null,"الصندوق","الايرادات",269,null,null,null,1500,{"$f":"IF(H273<>\"\",INDEX($H$5:$H$6000,MATCH(0,COUNTIF($J$4:J272,$H$5:$H$6000),0)),\"\")","v":""}]
[null,null,"الصندوق","الايرادات",270,null,null,null,1500,{"$f":"IF(H274<>\"\",INDEX($H$5:$H$6000,MATCH(0,COUNTIF($J$4:J273,$H$5:$H$6000),0)),\"\")","v":""}]
[null,null,"الصندوق","الايرادات",271,null,null,null,1500,{"$f":"IF(H275<>\"\",INDEX($H$5:$H$6000,MATCH(0,COUNTIF($J$4:J274,$H$5:$H$6000),0)),\"\")","v":""}]
[null,null,"الصندوق","الايرادات",272,null,null,null,1500,{"$f":"IF(H276<>\"\",INDEX($H$5:$H$6000,MATCH(0,COUNTIF($J$4:J275,$H$5:$H$6000),0)),\"\")","v":""}]
[null,null,"الصندوق","الايرادات",273,null,null,null,1500,{"$f":"IF(H277<>\"\",INDEX($H$5:$H$6000,MATCH(0,COUNTIF($J$4:J276,$H$5:$H$6000),0)),\"\")","v":""}]
[null,null,"الصندوق","الايرادات",274,null,null,null,1500,{"$f":"IF(H278<>\"\",INDEX($H$5:$H$6000,MATCH(0,COUNTIF($J$4:J277,$H$5:$H$6000),0)),\"\")","v":""}]
[null,null,"الصندوق","الايرادات",275,null,null,null,1500,{"$f":"IF(H279<>\"\",INDEX($H$5:$H$6000,MATCH(0,COUNTIF($J$4:J278,$H$5:$H$6000),0)),\"\")","v":""}]
[null,null,"الصندوق","الايرادات",276,null,null,null,1500,{"$f":"IF(H280<>\"\",INDEX($H$5:$H$6000,MATCH(0,COUNTIF($J$4:J279,$H$5:$H$6000),0)),\"\")","v":""}]
[null,null,"الصندوق","الايرادات",277,null,null,null,1500,{"$f":"IF(H281<>\"\",INDEX($H$5:$H$6000,MATCH(0,COUNTIF($J$4:J280,$H$5:$H$6000),0)),\"\")","v":""}]
[null,null,"الصندوق","الايرادات",278,null,null,null,1500,{"$f":"IF(H282<>\"\",INDEX($H$5:$H$6000,MATCH(0,COUNTIF($J$4:J281,$H$5:$H$6000),0)),\"\")","v":""}]
[null,null,"الصندوق","الايرادات",279,null,null,null,1500,{"$f":"IF(H283<>\"\",INDEX($H$5:$H$6000,MATCH(0,COUNTIF($J$4:J282,$H$5:$H$6000),0)),\"\")","v":""}]
[null,null,"الصندوق","الايرادات",280,null,null,null,1500,{"$f":"IF(H284<>\"\",INDEX($H$5:$H$6000,MATCH(0,COUNTIF($J$4:J283,$H$5:$H$6000),0)),\"\")","v":""}]
[null,null,"الصندوق","الايرادات",281,null,null,null,1500,{"$f":"IF(H285<>\"\",INDEX($H$5:$H$6000,MATCH(0,COUNTIF($J$4:J284,$H$5:$H$6000),0)),\"\")","v":""}]
[null,null,"الصندوق","الايرادات",282,null,null,null,1500,{"$f":"IF(H286<>\"\",INDEX($H$5:$H$6000,MATCH(0,COUNTIF($J$4:J285,$H$5:$H$6000),0)),\"\")","v":""}]
[null,null,"الصندوق","الايرادات",283,null,null,null,1500,{"$f":"IF(H287<>\"\",INDEX($H$5:$H$6000,MATCH(0,COUNTIF($J$4:J286,$H$5:$H$6000),0)),\"\")","v":""}]
[null,null,"الصندوق","الايرادات",284,null,null,null,1500,{"$f":"IF(H288<>\"\",INDEX($H$5:$H$6000,MATCH(0,COUNTIF($J$4:J287,$H$5:$H$6000),0)),\"\")","v":""}]
[null,null,"الصندوق","الايرادات",285,null,null,null,1500,{"$f":"IF(H289<>\"\",INDEX($H$5:$H$6000,MATCH(0,COUNTIF($J$4:J288,$H$5:$H$6000),0)),\"\")","v":""}]
[null,null,"الصندوق","الايرادات",286,null,null,null,1500,{"$f":"IF(H290<>\"\",INDEX($H$5:$H$6000,MATCH(0,COUNTIF($J$4:J289,$H$5:$H$6000),0)),\"\")","v":""}]
[null,null,"الصندوق","الايرادات",287,null,null,null,1500,{"$f":"IF(H291<>\"\",INDEX($H$5:$H$6000,MATCH(0,COUNTIF($J$4:J290,$H$5:$H$6000),0)),\"\")","v":""}]
[null,null,"الصندوق","الايرادات",288,null,null,null,1500,{"$f":"IF(H292<>\"\",INDEX($H$5:$H$6000,MATCH(0,COUNTIF($J$4:J291,$H$5:$H$6000),0)),\"\")","v":""}]
[null,null,"الصندوق","الايرادات",289,null,null,null,1500,{"$f":"IF(H293<>\"\",INDEX($H$5:$H$6000,MATCH(0,COUNTIF($J$4:J292,$H$5:$H$6000),0)),\"\")","v":""}]
[null,null,"الصندوق","الايرادات",290,null,null,null,1500,{"$f":"IF(H294<>\"\",INDEX($H$5:$H$6000,MATCH(0,COUNTIF($J$4:J293,$H$5:$H$6000),0)),\"\")","v":""}]
[null,null,"الصندوق","الايرادات",291,null,null,null,1500,{"$f":"IF(H295<>\"\",INDEX($H$5:$H$6000,MATCH(0,COUNTIF($J$4:J294,$H$5:$H$6000),0)),\"\")","v":""}]
[null,null,"الصندوق","الايرادات",292,null,null,null,1500,{"$f":"IF(H296<>\"\",INDEX($H$5:$H$6000,MATCH(0,COUNTIF($J$4:J295,$H$5:$H$6000),0)),\"\")","v":""}]
[null,null,"الصندوق","الايرادات",293,null,null,null,1500,{"$f":"IF(H297<>\"\",INDEX($H$5:$H$6000,MATCH(0,COUNTIF($J$4:J296,$H$5:$H$6000),0)),\"\")","v":""}]
[null,null,"الصندوق","الايرادات",294,null,null,null,1500,{"$f":"IF(H298<>\"\",INDEX($H$5:$H$6000,MATCH(0,COUNTIF($J$4:J297,$H$5:$H$6000),0)),\"\")","v":""}]
[null,null,"الصندوق","الايرادات",295,null,null,null,1500,{"$f":"IF(H299<>\"\",INDEX($H$5:$H$6000,MATCH(0,COUNTIF($J$4:J298,$H$5:$H$6000),0)),\"\")","v":""}]
[null,null,"الصندوق","الايرادات",296,null,null,null,1500,{"$f":"IF(H300<>\"\",INDEX($H$5:$H$6000,MATCH(0,COUNTIF($J$4:J299,$H$5:$H$6000),0)),\"\")","v":""}]
[null,null,"الصندوق","الايرادات",297,null,null,null,1500,{"$f":"IF(H301<>\"\",INDEX($H$5:$H$6000,MATCH(0,COUNTIF($J$4:J300,$H$5:$H$6000),0)),\"\")","v":""}]
[null,null,"الصندوق","الايرادات",298,null,null,null,1500,{"$f":"IF(H302<>\"\",INDEX($H$5:$H$6000,MATCH(0,COUNTIF($J$4:J301,$H$5:$H$6000),0)),\"\")","v":""}]
[null,null,"الصندوق","الايرادات",299,null,null,null,1500,{"$f":"IF(H303<>\"\",INDEX($H$5:$H$6000,MATCH(0,COUNTIF($J$4:J302,$H$5:$H$6000),0)),\"\")","v":""}]
[null,null,"الصندوق","الايرادات",300,null,null,null,1500,{"$f":"IF(H304<>\"\",INDEX($H$5:$H$6000,MATCH(0,COUNTIF($J$4:J303,$H$5:$H$6000),0)),\"\")","v":""}]
[null,null,"الصندوق","الايرادات",301,null,null,null,1500,{"$f":"IF(H305<>\"\",INDEX($H$5:$H$6000,MATCH(0,COUNTIF($J$4:J304,$H$5:$H$6000),0)),\"\")","v":""}]
[null,null,"الصندوق","الايرادات",302,null,null,null,1500,{"$f":"IF(H306<>\"\",INDEX($H$5:$H$6000,MATCH(0,COUNTIF($J$4:J305,$H$5:$H$6000),0)),\"\")","v":""}]
[null,null,"الصندوق","الايرادات",303,null,null,null,1500,{"$f":"IF(H307<>\"\",INDEX($H$5:$H$6000,MATCH(0,COUNTIF($J$4:J306,$H$5:$H$6000),0)),\"\")","v":""}]
[null,null,"الصندوق","الايرادات",304,null,null,null,1500,{"$f":"IF(H308<>\"\",INDEX($H$5:$H$6000,MATCH(0,COUNTIF($J$4:J307,$H$5:$H$6000),0)),\"\")","v":""}]
[null,null,"الصندوق","الايرادات",305,null,null,null,1500,{"$f":"IF(H309<>\"\",INDEX($H$5:$H$6000,MATCH(0,COUNTIF($J$4:J308,$H$5:$H$6000),0)),\"\")","v":""}]
[null,null,"الصندوق","الايرادات",306,null,null,null,1500,{"$f":"IF(H310<>\"\",INDEX($H$5:$H$6000,MATCH(0,COUNTIF($J$4:J309,$H$5:$H$6000),0)),\"\")","v":""}]
[null,null,"الصندوق","الايرادات",307,null,null,null,1500,{"$f":"IF(H311<>\"\",INDEX($H$5:$H$6000,MATCH(0,COUNTIF($J$4:J310,$H$5:$H$6000),0)),\"\")","v":""}]
[null,null,"الصندوق","الايرادات",308,null,null,null,1500,{"$f":"IF(H312<>\"\",INDEX($H$5:$H$6000,MATCH(0,COUNTIF($J$4:J311,$H$5:$H$6000),0)),\"\")","v":""}]
[null,null,"الصندوق","الايرادات",309,null,null,null,1500,{"$f":"IF(H313<>\"\",INDEX($H$5:$H$6000,MATCH(0,COUNTIF($J$4:J312,$H$5:$H$6000),0)),\"\")","v":""}]
[null,null,"الصندوق","الايرادات",310,null,null,null,1500,{"$f":"IF(H314<>\"\",INDEX($H$5:$H$6000,MATCH(0,COUNTIF($J$4:J313,$H$5:$H$6000),0)),\"\")","v":""}]
[null,null,"الصندوق","الايرادات",311,null,null,null,1500,{"$f":"IF(H315<>\"\",INDEX($H$5:$H$6000,MATCH(0,COUNTIF($J$4:J314,$H$5:$H$6000),0)),\"\")","v":""}]
[null,null,"الصندوق","الايرادات",312,null,null,null,1500,{"$f":"IF(H316<>\"\",INDEX($H$5:$H$6000,MATCH(0,COUNTIF($J$4:J315,$H$5:$H$6000),0)),\"\")","v":""}]
[null,null,"الصندوق","الايرادات",313,null,null,null,1500,{"$f":"IF(H317<>\"\",INDEX($H$5:$H$6000,MATCH(0,COUNTIF($J$4:J316,$H$5:$H$6000),0)),\"\")","v":""}]
[null,null,"الصندوق","الايرادات",314,null,null,null,1500,{"$f":"IF(H318<>\"\",INDEX($H$5:$H$6000,MATCH(0,COUNTIF($J$4:J317,$H$5:$H$6000),0)),\"\")","v":""}]
[null,null,"الصندوق","الايرادات",315,null,null,null,1500,{"$f":"IF(H319<>\"\",INDEX($H$5:$H$6000,MATCH(0,COUNTIF($J$4:J318,$H$5:$H$6000),0)),\"\")","v":""}]
[null,null,"الصندوق","الايرادات",316,null,null,null,1500,{"$f":"IF(H320<>\"\",INDEX($H$5:$H$6000,MATCH(0,COUNTIF($J$4:J319,$H$5:$H$6000),0)),\"\")","v":""}]
[null,null,"الصندوق","الايرادات",317,null,null,null,1500,{"$f":"IF(H321<>\"\",INDEX($H$5:$H$6000,MATCH(0,COUNTIF($J$4:J320,$H$5:$H$6000),0)),\"\")","v":""}]
[null,null,"الصندوق","الايرادات",318,null,null,null,1500,{"$f":"IF(H322<>\"\",INDEX($H$5:$H$6000,MATCH(0,COUNTIF($J$4:J321,$H$5:$H$6000),0)),\"\")","v":""}]
[null,null,"الصندوق","الايرادات",319,null,null,null,1500,{"$f":"IF(H323<>\"\",INDEX($H$5:$H$6000,MATCH(0,COUNTIF($J$4:J322,$H$5:$H$6000),0)),\"\")","v":""}]
[null,null,"الصندوق","الايرادات",320,null,null,null,1500,{"$f":"IF(H324<>\"\",INDEX($H$5:$H$6000,MATCH(0,COUNTIF($J$4:J323,$H$5:$H$6000),0)),\"\")","v":""}]
[null,null,"الصندوق","الايرادات",321,null,null,null,1500,{"$f":"IF(H325<>\"\",INDEX($H$5:$H$6000,MATCH(0,COUNTIF($J$4:J324,$H$5:$H$6000),0)),\"\")","v":""}]
[null,null,"الصندوق","الايرادات",322,null,null,null,1500,{"$f":"IF(H326<>\"\",INDEX($H$5:$H$6000,MATCH(0,COUNTIF($J$4:J325,$H$5:$H$6000),0)),\"\")","v":""}]
[null,null,"الصندوق","الايرادات",323,null,null,null,1500,{"$f":"IF(H327<>\"\",INDEX($H$5:$H$6000,MATCH(0,COUNTIF($J$4:J326,$H$5:$H$6000),0)),\"\")","v":""}]
[null,null,"الصندوق","الايرادات",324,null,null,null,1500,{"$f":"IF(H328<>\"\",INDEX($H$5:$H$6000,MATCH(0,COUNTIF($J$4:J327,$H$5:$H$6000),0)),\"\")","v":""}]
[null,null,"الصندوق","الايرادات",325,null,null,null,1500,{"$f":"IF(H329<>\"\",INDEX($H$5:$H$6000,MATCH(0,COUNTIF($J$4:J328,$H$5:$H$6000),0)),\"\")","v":""}]
[null,null,"الصندوق","الايرادات",326,null,null,null,1500,{"$f":"IF(H330<>\"\",INDEX($H$5:$H$6000,MATCH(0,COUNTIF($J$4:J329,$H$5:$H$6000),0)),\"\")","v":""}]
[null,null,"الصندوق","الايرادات",327,null,null,null,1500,{"$f":"IF(H331<>\"\",INDEX($H$5:$H$6000,MATCH(0,COUNTIF($J$4:J330,$H$5:$H$6000),0)),\"\")","v":""}]
[null,null,"الصندوق","الايرادات",328,null,null,null,1500,{"$f":"IF(H332<>\"\",INDEX($H$5:$H$6000,MATCH(0,COUNTIF($J$4:J331,$H$5:$H$6000),0)),\"\")","v":""}]
[null,null,"الصندوق","الايرادات",329,null,null,null,1500,{"$f":"IF(H333<>\"\",INDEX($H$5:$H$6000,MATCH(0,COUNTIF($J$4:J332,$H$5:$H$6000),0)),\"\")","v":""}]
[null,null,"الصندوق","الايرادات",330,null,null,null,1500,{"$f":"IF(H334<>\"\",INDEX($H$5:$H$6000,MATCH(0,COUNTIF($J$4:J333,$H$5:$H$6000),0)),\"\")","v":""}]
[null,null,"الصندوق","الايرادات",331,null,null,null,1500,{"$f":"IF(H335<>\"\",INDEX($H$5:$H$6000,MATCH(0,COUNTIF($J$4:J334,$H$5:$H$6000),0)),\"\")","v":""}]
[null,null,"الصندوق","الايرادات",332,null,null,null,1500,{"$f":"IF(H336<>\"\",INDEX($H$5:$H$6000,MATCH(0,COUNTIF($J$4:J335,$H$5:$H$6000),0)),\"\")","v":""}]
[null,null,"الصندوق","الايرادات",333,null,null,null,1500,{"$f":"IF(H337<>\"\",INDEX($H$5:$H$6000,MATCH(0,COUNTIF($J$4:J336,$H$5:$H$6000),0)),\"\")","v":""}]
[null,null,"الصندوق","الايرادات",334,null,null,null,1500,{"$f":"IF(H338<>\"\",INDEX($H$5:$H$6000,MATCH(0,COUNTIF($J$4:J337,$H$5:$H$6000),0)),\"\")","v":""}]
[null,null,"الصندوق","الايرادات",335,null,null,null,1500,{"$f":"IF(H339<>\"\",INDEX($H$5:$H$6000,MATCH(0,COUNTIF($J$4:J338,$H$5:$H$6000),0)),\"\")","v":""}]
[null,null,"الصندوق","الايرادات",336,null,null,null,1500,{"$f":"IF(H340<>\"\",INDEX($H$5:$H$6000,MATCH(0,COUNTIF($J$4:J339,$H$5:$H$6000),0)),\"\")","v":""}]
[null,null,"الصندوق","الايرادات",337,null,null,null,1500,{"$f":"IF(H341<>\"\",INDEX($H$5:$H$6000,MATCH(0,COUNTIF($J$4:J340,$H$5:$H$6000),0)),\"\")","v":""}]
[null,null,"الصندوق","الايرادات",338,null,null,null,1500,{"$f":"IF(H342<>\"\",INDEX($H$5:$H$6000,MATCH(0,COUNTIF($J$4:J341,$H$5:$H$6000),0)),\"\")","v":""}]
[null,null,"الصندوق","الايرادات",339,null,null,null,1500,{"$f":"IF(H343<>\"\",INDEX($H$5:$H$6000,MATCH(0,COUNTIF($J$4:J342,$H$5:$H$6000),0)),\"\")","v":""}]
[null,null,"الصندوق","الايرادات",340,null,null,null,1500,{"$f":"IF(H344<>\"\",INDEX($H$5:$H$6000,MATCH(0,COUNTIF($J$4:J343,$H$5:$H$6000),0)),\"\")","v":""}]
[null,null,"الصندوق","الايرادات",341,null,null,null,1500,{"$f":"IF(H345<>\"\",INDEX($H$5:$H$6000,MATCH(0,COUNTIF($J$4:J344,$H$5:$H$6000),0)),\"\")","v":""}]
[null,null,"الصندوق","الايرادات",342,null,null,null,1500,{"$f":"IF(H346<>\"\",INDEX($H$5:$H$6000,MATCH(0,COUNTIF($J$4:J345,$H$5:$H$6000),0)),\"\")","v":""}]
[null,null,"الصندوق","الايرادات",343,null,null,null,1500,{"$f":"IF(H347<>\"\",INDEX($H$5:$H$6000,MATCH(0,COUNTIF($J$4:J346,$H$5:$H$6000),0)),\"\")","v":""}]
[null,null,"الصندوق","الايرادات",344,null,null,null,1500,{"$f":"IF(H348<>\"\",INDEX($H$5:$H$6000,MATCH(0,COUNTIF($J$4:J347,$H$5:$H$6000),0)),\"\")","v":""}]
[null,null,"الصندوق","الايرادات",345,null,null,null,1500,{"$f":"IF(H349<>\"\",INDEX($H$5:$H$6000,MATCH(0,COUNTIF($J$4:J348,$H$5:$H$6000),0)),\"\")","v":""}]
[null,null,"الصندوق","الايرادات",346,null,null,null,1500,{"$f":"IF(H350<>\"\",INDEX($H$5:$H$6000,MATCH(0,COUNTIF($J$4:J349,$H$5:$H$6000),0)),\"\")","v":""}]
[null,null,"الصندوق","الايرادات",347,null,null,null,1500,{"$f":"IF(H351<>\"\",INDEX($H$5:$H$6000,MATCH(0,COUNTIF($J$4:J350,$H$5:$H$6000),0)),\"\")","v":""}]
[null,null,"الصندوق","الايرادات",348,null,null,null,1500,{"$f":"IF(H352<>\"\",INDEX($H$5:$H$6000,MATCH(0,COUNTIF($J$4:J351,$H$5:$H$6000),0)),\"\")","v":""}]
[null,null,"الصندوق","الايرادات",349,null,null,null,1500,{"$f":"IF(H353<>\"\",INDEX($H$5:$H$6000,MATCH(0,COUNTIF($J$4:J352,$H$5:$H$6000),0)),\"\")","v":""}]
[null,null,"الصندوق","الايرادات",350,null,null,null,1500,{"$f":"IF(H354<>\"\",INDEX($H$5:$H$6000,MATCH(0,COUNTIF($J$4:J353,$H$5:$H$6000),0)),\"\")","v":""}]
[null,null,"الصندوق","الايرادات",351,null,null,null,1500,{"$f":"IF(H355<>\"\",INDEX($H$5:$H$6000,MATCH(0,COUNTIF($J$4:J354,$H$5:$H$6000),0)),\"\")","v":""}]
[null,null,"الصندوق","الايرادات",352,null,null,null,1500,{"$f":"IF(H356<>\"\",INDEX($H$5:$H$6000,MATCH(0,COUNTIF($J$4:J355,$H$5:$H$6000),0)),\"\")","v":""}]
[null,null,"الصندوق","الايرادات",353,null,null,null,1500,{"$f":"IF(H357<>\"\",INDEX($H$5:$H$6000,MATCH(0,COUNTIF($J$4:J356,$H$5:$H$6000),0)),\"\")","v":""}]
[null,null,"الصندوق","الايرادات",354,null,null,null,1500,{"$f":"IF(H358<>\"\",INDEX($H$5:$H$6000,MATCH(0,COUNTIF($J$4:J357,$H$5:$H$6000),0)),\"\")","v":""}]
[null,null,"الصندوق","الايرادات",355,null,null,null,1500,{"$f":"IF(H359<>\"\",INDEX($H$5:$H$6000,MATCH(0,COUNTIF($J$4:J358,$H$5:$H$6000),0)),\"\")","v":""}]
[null,null,"الصندوق","الايرادات",356,null,null,null,1500,{"$f":"IF(H360<>\"\",INDEX($H$5:$H$6000,MATCH(0,COUNTIF($J$4:J359,$H$5:$H$6000),0)),\"\")","v":""}]
[null,null,"الصندوق","الايرادات",357,null,null,null,1500,{"$f":"IF(H361<>\"\",INDEX($H$5:$H$6000,MATCH(0,COUNTIF($J$4:J360,$H$5:$H$6000),0)),\"\")","v":""}]
[null,null,"الصندوق","الايرادات",358,null,null,null,1500,{"$f":"IF(H362<>\"\",INDEX($H$5:$H$6000,MATCH(0,COUNTIF($J$4:J361,$H$5:$H$6000),0)),\"\")","v":""}]
[null,null,"الصندوق","الايرادات",359,null,null,null,1500,{"$f":"IF(H363<>\"\",INDEX($H$5:$H$6000,MATCH(0,COUNTIF($J$4:J362,$H$5:$H$6000),0)),\"\")","v":""}]
[null,null,"الصندوق","الايرادات",360,null,null,null,1500,{"$f":"IF(H364<>\"\",INDEX($H$5:$H$6000,MATCH(0,COUNTIF($J$4:J363,$H$5:$H$6000),0)),\"\")","v":""}]
[null,null,"الصندوق","الايرادات",361,null,null,null,1500,{"$f":"IF(H365<>\"\",INDEX($H$5:$H$6000,MATCH(0,COUNTIF($J$4:J364,$H$5:$H$6000),0)),\"\")","v":""}]
[null,null,"الصندوق","الايرادات",362,null,null,null,1500,{"$f":"IF(H366<>\"\",INDEX($H$5:$H$6000,MATCH(0,COUNTIF($J$4:J365,$H$5:$H$6000),0)),\"\")","v":""}]
[null,null,"الصندوق","الايرادات",363,null,null,null,1500,{"$f":"IF(H367<>\"\",INDEX($H$5:$H$6000,MATCH(0,COUNTIF($J$4:J366,$H$5:$H$6000),0)),\"\")","v":""}]
[null,null,"الصندوق","الايرادات",364,null,null,null,1500,{"$f":"IF(H368<>\"\",INDEX($H$5:$H$6000,MATCH(0,COUNTIF($J$4:J367,$H$5:$H$6000),0)),\"\")","v":""}]
[null,null,"الصندوق","الايرادات",365,null,null,null,1500,{"$f":"IF(H369<>\"\",INDEX($H$5:$H$6000,MATCH(0,COUNTIF($J$4:J368,$H$5:$H$6000),0)),\"\")","v":""}]
[null,null,"الصندوق","الايرادات",366,null,null,null,1500,{"$f":"IF(H370<>\"\",INDEX($H$5:$H$6000,MATCH(0,COUNTIF($J$4:J369,$H$5:$H$6000),0)),\"\")","v":""}]
[null,null,"الصندوق","الايرادات",367,null,null,null,1500,{"$f":"IF(H371<>\"\",INDEX($H$5:$H$6000,MATCH(0,COUNTIF($J$4:J370,$H$5:$H$6000),0)),\"\")","v":""}]
[null,null,"الصندوق","الايرادات",368,null,null,null,1500,{"$f":"IF(H372<>\"\",INDEX($H$5:$H$6000,MATCH(0,COUNTIF($J$4:J371,$H$5:$H$6000),0)),\"\")","v":""}]
[null,null,"الصندوق","الايرادات",null,null,null,null,1500,{"$f":"IF(H373<>\"\",INDEX($H$5:$H$6000,MATCH(0,COUNTIF($J$4:J372,$H$5:$H$6000),0)),\"\")","v":""}]
[null,null,"الصندوق","الايرادات",null,null,null,null,1500,{"$f":"IF(H374<>\"\",INDEX($H$5:$H$6000,MATCH(0,COUNTIF($J$4:J373,$H$5:$H$6000),0)),\"\")","v":""}]
[null,null,"الصندوق","الايرادات",null,null,null,null,1500,{"$f":"IF(H375<>\"\",INDEX($H$5:$H$6000,MATCH(0,COUNTIF($J$4:J374,$H$5:$H$6000),0)),\"\")","v":""}]
[null,null,"الصندوق","الايرادات",null,null,null,null,1500,{"$f":"IF(H376<>\"\",INDEX($H$5:$H$6000,MATCH(0,COUNTIF($J$4:J375,$H$5:$H$6000),0)),\"\")","v":""}]
[null,null,"الصندوق","الايرادات",null,null,null,null,1500,{"$f":"IF(H377<>\"\",INDEX($H$5:$H$6000,MATCH(0,COUNTIF($J$4:J376,$H$5:$H$6000),0)),\"\")","v":""}]
[null,null,"الصندوق","الايرادات",null,null,null,null,1500,{"$f":"IF(H378<>\"\",INDEX($H$5:$H$6000,MATCH(0,COUNTIF($J$4:J377,$H$5:$H$6000),0)),\"\")","v":""}]
[null,null,"الصندوق","الايرادات",null,null,null,null,1500,{"$f":"IF(H379<>\"\",INDEX($H$5:$H$6000,MATCH(0,COUNTIF($J$4:J378,$H$5:$H$6000),0)),\"\")","v":""}]
[null,null,"الصندوق","الايرادات",null,null,null,null,null,{"$f":"IF(H380<>\"\",INDEX($H$5:$H$6000,MATCH(0,COUNTIF($J$4:J379,$H$5:$H$6000),0)),\"\")","v":""}]
[null,null,"الصندوق","الايرادات",null,null,null,null,null,{"$f":"IF(H381<>\"\",INDEX($H$5:$H$6000,MATCH(0,COUNTIF($J$4:J380,$H$5:$H$6000),0)),\"\")","v":""}]
[null,null,"الصندوق","الايرادات",null,null,null,null,null,{"$f":"IF(H382<>\"\",INDEX($H$5:$H$6000,MATCH(0,COUNTIF($J$4:J381,$H$5:$H$6000),0)),\"\")","v":""}]
[null,null,"الصندوق","الايرادات",null,null,null,null,null,{"$f":"IF(H383<>\"\",INDEX($H$5:$H$6000,MATCH(0,COUNTIF($J$4:J382,$H$5:$H$6000),0)),\"\")","v":""}]
[null,null,"الصندوق","الايرادات",null,null,null,null,null,{"$f":"IF(H384<>\"\",INDEX($H$5:$H$6000,MATCH(0,COUNTIF($J$4:J383,$H$5:$H$6000),0)),\"\")","v":""}]
[null,null,"الصندوق","الايرادات",null,null,null,null,null,{"$f":"IF(H385<>\"\",INDEX($H$5:$H$6000,MATCH(0,COUNTIF($J$4:J384,$H$5:$H$6000),0)),\"\")","v":""}]
[null,null,"الصندوق","الايرادات",null,null,null,null,null,{"$f":"IF(H386<>\"\",INDEX($H$5:$H$6000,MATCH(0,COUNTIF($J$4:J385,$H$5:$H$6000),0)),\"\")","v":""}]
[null,null,"الصندوق","الايرادات",null,null,null,null,null,{"$f":"IF(H387<>\"\",INDEX($H$5:$H$6000,MATCH(0,COUNTIF($J$4:J386,$H$5:$H$6000),0)),\"\")","v":""}]
[null,null,"الصندوق","الايرادات",null,null,null,null,null,{"$f":"IF(H388<>\"\",INDEX($H$5:$H$6000,MATCH(0,COUNTIF($J$4:J387,$H$5:$H$6000),0)),\"\")","v":""}]
[null,null,"الصندوق","الايرادات",null,null,null,null,null,{"$f":"IF(H389<>\"\",INDEX($H$5:$H$6000,MATCH(0,COUNTIF($J$4:J388,$H$5:$H$6000),0)),\"\")","v":""}]
[null,null,"الصندوق","الايرادات",null,null,null,null,null,{"$f":"IF(H390<>\"\",INDEX($H$5:$H$6000,MATCH(0,COUNTIF($J$4:J389,$H$5:$H$6000),0)),\"\")","v":""}]
[null,null,"الصندوق","الايرادات",null,null,null,null,null,{"$f":"IF(H391<>\"\",INDEX($H$5:$H$6000,MATCH(0,COUNTIF($J$4:J390,$H$5:$H$6000),0)),\"\")","v":""}]
[null,null,"الصندوق","الايرادات",null,null,null,null,null,{"$f":"IF(H392<>\"\",INDEX($H$5:$H$6000,MATCH(0,COUNTIF($J$4:J391,$H$5:$H$6000),0)),\"\")","v":""}]
[null,null,"الصندوق","الايرادات",null,null,null,null,null,{"$f":"IF(H393<>\"\",INDEX($H$5:$H$6000,MATCH(0,COUNTIF($J$4:J392,$H$5:$H$6000),0)),\"\")","v":""}]
[null,null,"الصندوق","الايرادات",null,null,null,null,null,{"$f":"IF(H394<>\"\",INDEX($H$5:$H$6000,MATCH(0,COUNTIF($J$4:J393,$H$5:$H$6000),0)),\"\")","v":""}]
[null,null,"الصندوق","الايرادات",null,null,null,null,null,{"$f":"IF(H395<>\"\",INDEX($H$5:$H$6000,MATCH(0,COUNTIF($J$4:J394,$H$5:$H$6000),0)),\"\")","v":""}]
[null,null,"الصندوق","الايرادات",null,null,null,null,null,{"$f":"IF(H396<>\"\",INDEX($H$5:$H$6000,MATCH(0,COUNTIF($J$4:J395,$H$5:$H$6000),0)),\"\")","v":""}]
[null,null,"الصندوق","الايرادات",null,null,null,null,null,{"$f":"IF(H397<>\"\",INDEX($H$5:$H$6000,MATCH(0,COUNTIF($J$4:J396,$H$5:$H$6000),0)),\"\")","v":""}]
[null,null,"الصندوق","الايرادات",null,null,null,null,null,{"$f":"IF(H398<>\"\",INDEX($H$5:$H$6000,MATCH(0,COUNTIF($J$4:J397,$H$5:$H$6000),0)),\"\")","v":""}]
[null,null,"الصندوق","الايرادات",null,null,null,null,null,{"$f":"IF(H399<>\"\",INDEX($H$5:$H$6000,MATCH(0,COUNTIF($J$4:J398,$H$5:$H$6000),0)),\"\")","v":""}]
[null,null,"الصندوق","الايرادات",null,null,null,null,null,{"$f":"IF(H400<>\"\",INDEX($H$5:$H$6000,MATCH(0,COUNTIF($J$4:J399,$H$5:$H$6000),0)),\"\")","v":""}]
[null,null,"الصندوق","الايرادات",null,null,null,null,null,{"$f":"IF(H401<>\"\",INDEX($H$5:$H$6000,MATCH(0,COUNTIF($J$4:J400,$H$5:$H$6000),0)),\"\")","v":""}]
[null,null,"الصندوق","الايرادات",null,null,null,null,null,{"$f":"IF(H402<>\"\",INDEX($H$5:$H$6000,MATCH(0,COUNTIF($J$4:J401,$H$5:$H$6000),0)),\"\")","v":""}]
[null,null,"الصندوق","الايرادات",null,null,null,null,null,{"$f":"IF(H403<>\"\",INDEX($H$5:$H$6000,MATCH(0,COUNTIF($J$4:J402,$H$5:$H$6000),0)),\"\")","v":""}]
[null,null,"الصندوق","الايرادات",null,null,null,null,null,{"$f":"IF(H404<>\"\",INDEX($H$5:$H$6000,MATCH(0,COUNTIF($J$4:J403,$H$5:$H$6000),0)),\"\")","v":""}]
[null,null,"الصندوق","الايرادات",null,null,null,null,null,{"$f":"IF(H405<>\"\",INDEX($H$5:$H$6000,MATCH(0,COUNTIF($J$4:J404,$H$5:$H$6000),0)),\"\")","v":""}]
[null,null,"الصندوق","الايرادات",null,null,null,null,null,{"$f":"IF(H406<>\"\",INDEX($H$5:$H$6000,MATCH(0,COUNTIF($J$4:J405,$H$5:$H$6000),0)),\"\")","v":""}]
[null,null,"الصندوق","الايرادات",null,null,null,null,null,{"$f":"IF(H407<>\"\",INDEX($H$5:$H$6000,MATCH(0,COUNTIF($J$4:J406,$H$5:$H$6000),0)),\"\")","v":""}]
[null,null,"الصندوق","الايرادات",null,null,null,null,null,{"$f":"IF(H408<>\"\",INDEX($H$5:$H$6000,MATCH(0,COUNTIF($J$4:J407,$H$5:$H$6000),0)),\"\")","v":""}]
[null,null,"الصندوق","الايرادات",null,null,null,null,null,{"$f":"IF(H409<>\"\",INDEX($H$5:$H$6000,MATCH(0,COUNTIF($J$4:J408,$H$5:$H$6000),0)),\"\")","v":""}]
[null,null,"الصندوق","الايرادات",null,null,null,null,null,{"$f":"IF(H410<>\"\",INDEX($H$5:$H$6000,MATCH(0,COUNTIF($J$4:J409,$H$5:$H$6000),0)),\"\")","v":""}]
[null,null,"الصندوق","الايرادات",null,null,null,null,null,{"$f":"IF(H411<>\"\",INDEX($H$5:$H$6000,MATCH(0,COUNTIF($J$4:J410,$H$5:$H$6000),0)),\"\")","v":""}]
[null,null,"الصندوق","الايرادات",null,null,null,null,null,{"$f":"IF(H412<>\"\",INDEX($H$5:$H$6000,MATCH(0,COUNTIF($J$4:J411,$H$5:$H$6000),0)),\"\")","v":""}]
[null,null,"الصندوق","الايرادات",null,null,null,null,null,{"$f":"IF(H413<>\"\",INDEX($H$5:$H$6000,MATCH(0,COUNTIF($J$4:J412,$H$5:$H$6000),0)),\"\")","v":""}]
[null,null,"الصندوق","الايرادات",null,null,null,null,null,{"$f":"IF(H414<>\"\",INDEX($H$5:$H$6000,MATCH(0,COUNTIF($J$4:J413,$H$5:$H$6000),0)),\"\")","v":""}]
[null,null,"الصندوق","الايرادات",null,null,null,null,null,{"$f":"IF(H415<>\"\",INDEX($H$5:$H$6000,MATCH(0,COUNTIF($J$4:J414,$H$5:$H$6000),0)),\"\")","v":""}]
[null,null,"الصندوق","الايرادات",null,null,null,null,null,{"$f":"IF(H416<>\"\",INDEX($H$5:$H$6000,MATCH(0,COUNTIF($J$4:J415,$H$5:$H$6000),0)),\"\")","v":""}]
[null,null,"الصندوق","الايرادات",null,null,null,null,null,{"$f":"IF(H417<>\"\",INDEX($H$5:$H$6000,MATCH(0,COUNTIF($J$4:J416,$H$5:$H$6000),0)),\"\")","v":""}]
[null,null,"الصندوق","الايرادات",null,null,null,null,null,{"$f":"IF(H418<>\"\",INDEX($H$5:$H$6000,MATCH(0,COUNTIF($J$4:J417,$H$5:$H$6000),0)),\"\")","v":""}]
[null,null,"الصندوق","الايرادات",null,null,null,null,null,{"$f":"IF(H419<>\"\",INDEX($H$5:$H$6000,MATCH(0,COUNTIF($J$4:J418,$H$5:$H$6000),0)),\"\")","v":""}]
[null,null,"الصندوق","الايرادات",null,null,null,null,null,{"$f":"IF(H420<>\"\",INDEX($H$5:$H$6000,MATCH(0,COUNTIF($J$4:J419,$H$5:$H$6000),0)),\"\")","v":""}]
[null,null,"الصندوق","الايرادات",null,null,null,null,null,{"$f":"IF(H421<>\"\",INDEX($H$5:$H$6000,MATCH(0,COUNTIF($J$4:J420,$H$5:$H$6000),0)),\"\")","v":""}]
[null,null,"الصندوق","الايرادات",null,null,null,null,null,{"$f":"IF(H422<>\"\",INDEX($H$5:$H$6000,MATCH(0,COUNTIF($J$4:J421,$H$5:$H$6000),0)),\"\")","v":""}]
[null,null,"الصندوق","الايرادات",null,null,null,null,null,{"$f":"IF(H423<>\"\",INDEX($H$5:$H$6000,MATCH(0,COUNTIF($J$4:J422,$H$5:$H$6000),0)),\"\")","v":""}]
[null,null,"الصندوق","الايرادات",null,null,null,null,null,{"$f":"IF(H424<>\"\",INDEX($H$5:$H$6000,MATCH(0,COUNTIF($J$4:J423,$H$5:$H$6000),0)),\"\")","v":""}]
[null,null,"الصندوق","الايرادات",null,null,null,null,null,{"$f":"IF(H425<>\"\",INDEX($H$5:$H$6000,MATCH(0,COUNTIF($J$4:J424,$H$5:$H$6000),0)),\"\")","v":""}]
[null,null,"الصندوق","الايرادات",null,null,null,null,null,{"$f":"IF(H426<>\"\",INDEX($H$5:$H$6000,MATCH(0,COUNTIF($J$4:J425,$H$5:$H$6000),0)),\"\")","v":""}]
[null,null,"الصندوق","الايرادات",null,null,null,null,null,{"$f":"IF(H427<>\"\",INDEX($H$5:$H$6000,MATCH(0,COUNTIF($J$4:J426,$H$5:$H$6000),0)),\"\")","v":""}]
[null,null,"الصندوق","الايرادات",null,null,null,null,null,{"$f":"IF(H428<>\"\",INDEX($H$5:$H$6000,MATCH(0,COUNTIF($J$4:J427,$H$5:$H$6000),0)),\"\")","v":""}]
[null,null,"الصندوق","الايرادات",null,null,null,null,null,{"$f":"IF(H429<>\"\",INDEX($H$5:$H$6000,MATCH(0,COUNTIF($J$4:J428,$H$5:$H$6000),0)),\"\")","v":""}]
[null,null,"الصندوق","الايرادات",null,null,null,null,null,{"$f":"IF(H430<>\"\",INDEX($H$5:$H$6000,MATCH(0,COUNTIF($J$4:J429,$H$5:$H$6000),0)),\"\")","v":""}]
[null,null,"الصندوق","الايرادات",null,null,null,null,null,{"$f":"IF(H431<>\"\",INDEX($H$5:$H$6000,MATCH(0,COUNTIF($J$4:J430,$H$5:$H$6000),0)),\"\")","v":""}]
[null,null,"الصندوق","الايرادات",null,null,null,null,null,{"$f":"IF(H432<>\"\",INDEX($H$5:$H$6000,MATCH(0,COUNTIF($J$4:J431,$H$5:$H$6000),0)),\"\")","v":""}]
[null,null,"الصندوق","الايرادات",null,null,null,null,null,{"$f":"IF(H433<>\"\",INDEX($H$5:$H$6000,MATCH(0,COUNTIF($J$4:J432,$H$5:$H$6000),0)),\"\")","v":""}]
[null,null,"الصندوق","الايرادات",null,null,null,null,null,{"$f":"IF(H434<>\"\",INDEX($H$5:$H$6000,MATCH(0,COUNTIF($J$4:J433,$H$5:$H$6000),0)),\"\")","v":""}]
[null,null,"الصندوق","الايرادات",null,null,null,null,null,{"$f":"IF(H435<>\"\",INDEX($H$5:$H$6000,MATCH(0,COUNTIF($J$4:J434,$H$5:$H$6000),0)),\"\")","v":""}]
[null,null,"الصندوق","الايرادات",null,null,null,null,null,{"$f":"IF(H436<>\"\",INDEX($H$5:$H$6000,MATCH(0,COUNTIF($J$4:J435,$H$5:$H$6000),0)),\"\")","v":""}]
[null,null,"الصندوق","الايرادات",null,null,null,null,null,{"$f":"IF(H437<>\"\",INDEX($H$5:$H$6000,MATCH(0,COUNTIF($J$4:J436,$H$5:$H$6000),0)),\"\")","v":""}]
[null,null,"الصندوق","الايرادات",null,null,null,null,null,{"$f":"IF(H438<>\"\",INDEX($H$5:$H$6000,MATCH(0,COUNTIF($J$4:J437,$H$5:$H$6000),0)),\"\")","v":""}]
[null,null,"الصندوق","الايرادات",null,null,null,null,null,{"$f":"IF(H439<>\"\",INDEX($H$5:$H$6000,MATCH(0,COUNTIF($J$4:J438,$H$5:$H$6000),0)),\"\")","v":""}]
[null,null,"الصندوق","الايرادات",null,null,null,null,null,{"$f":"IF(H440<>\"\",INDEX($H$5:$H$6000,MATCH(0,COUNTIF($J$4:J439,$H$5:$H$6000),0)),\"\")","v":""}]
[null,null,"الصندوق","الايرادات",null,null,null,null,null,{"$f":"IF(H441<>\"\",INDEX($H$5:$H$6000,MATCH(0,COUNTIF($J$4:J440,$H$5:$H$6000),0)),\"\")","v":""}]
[null,null,"الصندوق","الايرادات",null,null,null,null,null,{"$f":"IF(H442<>\"\",INDEX($H$5:$H$6000,MATCH(0,COUNTIF($J$4:J441,$H$5:$H$6000),0)),\"\")","v":""}]
[null,null,"الصندوق","الايرادات",null,null,null,null,null,{"$f":"IF(H443<>\"\",INDEX($H$5:$H$6000,MATCH(0,COUNTIF($J$4:J442,$H$5:$H$6000),0)),\"\")","v":""}]
[null,null,"الصندوق","الايرادات",null,null,null,null,null,{"$f":"IF(H444<>\"\",INDEX($H$5:$H$6000,MATCH(0,COUNTIF($J$4:J443,$H$5:$H$6000),0)),\"\")","v":""}]
[null,null,"الصندوق","الايرادات",null,null,null,null,null,{"$f":"IF(H445<>\"\",INDEX($H$5:$H$6000,MATCH(0,COUNTIF($J$4:J444,$H$5:$H$6000),0)),\"\")","v":""}]
[null,null,"الصندوق","الايرادات",null,null,null,null,null,{"$f":"IF(H446<>\"\",INDEX($H$5:$H$6000,MATCH(0,COUNTIF($J$4:J445,$H$5:$H$6000),0)),\"\")","v":""}]
[null,null,"الصندوق","الايرادات",null,null,null,null,null,{"$f":"IF(H447<>\"\",INDEX($H$5:$H$6000,MATCH(0,COUNTIF($J$4:J446,$H$5:$H$6000),0)),\"\")","v":""}]
[null,null,"الصندوق","الايرادات",null,null,null,null,null,{"$f":"IF(H448<>\"\",INDEX($H$5:$H$6000,MATCH(0,COUNTIF($J$4:J447,$H$5:$H$6000),0)),\"\")","v":""}]
[null,null,"الصندوق","الايرادات",null,null,null,null,null,{"$f":"IF(H449<>\"\",INDEX($H$5:$H$6000,MATCH(0,COUNTIF($J$4:J448,$H$5:$H$6000),0)),\"\")","v":""}]
[null,null,"الصندوق","الايرادات",null,null,null,null,null,{"$f":"IF(H450<>\"\",INDEX($H$5:$H$6000,MATCH(0,COUNTIF($J$4:J449,$H$5:$H$6000),0)),\"\")","v":""}]
[null,null,"الصندوق","الايرادات",null,null,null,null,null,{"$f":"IF(H451<>\"\",INDEX($H$5:$H$6000,MATCH(0,COUNTIF($J$4:J450,$H$5:$H$6000),0)),\"\")","v":""}]
[null,null,"الصندوق","الايرادات",null,null,null,null,null,{"$f":"IF(H452<>\"\",INDEX($H$5:$H$6000,MATCH(0,COUNTIF($J$4:J451,$H$5:$H$6000),0)),\"\")","v":""}]
[null,null,"الصندوق","الايرادات",null,null,null,null,null,{"$f":"IF(H453<>\"\",INDEX($H$5:$H$6000,MATCH(0,COUNTIF($J$4:J452,$H$5:$H$6000),0)),\"\")","v":""}]
[null,null,"الصندوق","الايرادات",null,null,null,null,null,{"$f":"IF(H454<>\"\",INDEX($H$5:$H$6000,MATCH(0,COUNTIF($J$4:J453,$H$5:$H$6000),0)),\"\")","v":""}]
[null,null,"الصندوق","الايرادات",null,null,null,null,null,{"$f":"IF(H455<>\"\",INDEX($H$5:$H$6000,MATCH(0,COUNTIF($J$4:J454,$H$5:$H$6000),0)),\"\")","v":""}]
[null,null,"الصندوق","الايرادات",null,null,null,null,null,{"$f":"IF(H456<>\"\",INDEX($H$5:$H$6000,MATCH(0,COUNTIF($J$4:J455,$H$5:$H$6000),0)),\"\")","v":""}]
[null,null,"الصندوق","الايرادات",null,null,null,null,null,{"$f":"IF(H457<>\"\",INDEX($H$5:$H$6000,MATCH(0,COUNTIF($J$4:J456,$H$5:$H$6000),0)),\"\")","v":""}]
[null,null,"الصندوق","الايرادات",null,null,null,null,null,{"$f":"IF(H458<>\"\",INDEX($H$5:$H$6000,MATCH(0,COUNTIF($J$4:J457,$H$5:$H$6000),0)),\"\")","v":""}]
[null,null,"الصندوق","الايرادات",null,null,null,null,null,{"$f":"IF(H459<>\"\",INDEX($H$5:$H$6000,MATCH(0,COUNTIF($J$4:J458,$H$5:$H$6000),0)),\"\")","v":""}]
[null,null,"الصندوق","الايرادات",null,null,null,null,null,{"$f":"IF(H460<>\"\",INDEX($H$5:$H$6000,MATCH(0,COUNTIF($J$4:J459,$H$5:$H$6000),0)),\"\")","v":""}]
[null,null,"الصندوق","الايرادات",null,null,null,null,null,{"$f":"IF(H461<>\"\",INDEX($H$5:$H$6000,MATCH(0,COUNTIF($J$4:J460,$H$5:$H$6000),0)),\"\")","v":""}]
[null,null,"الصندوق","الايرادات",null,null,null,null,null,{"$f":"IF(H462<>\"\",INDEX($H$5:$H$6000,MATCH(0,COUNTIF($J$4:J461,$H$5:$H$6000),0)),\"\")","v":""}]
[null,null,"الصندوق","الايرادات",null,null,null,null,null,{"$f":"IF(H463<>\"\",INDEX($H$5:$H$6000,MATCH(0,COUNTIF($J$4:J462,$H$5:$H$6000),0)),\"\")","v":""}]
[null,null,"الصندوق","الايرادات",null,null,null,null,null,{"$f":"IF(H464<>\"\",INDEX($H$5:$H$6000,MATCH(0,COUNTIF($J$4:J463,$H$5:$H$6000),0)),\"\")","v":""}]
[null,null,"الصندوق","الايرادات",null,null,null,null,null,{"$f":"IF(H465<>\"\",INDEX($H$5:$H$6000,MATCH(0,COUNTIF($J$4:J464,$H$5:$H$6000),0)),\"\")","v":""}]
[null,null,"الصندوق","الايرادات",null,null,null,null,null,{"$f":"IF(H466<>\"\",INDEX($H$5:$H$6000,MATCH(0,COUNTIF($J$4:J465,$H$5:$H$6000),0)),\"\")","v":""}]
[null,null,"الصندوق","الايرادات",null,null,null,null,null,{"$f":"IF(H467<>\"\",INDEX($H$5:$H$6000,MATCH(0,COUNTIF($J$4:J466,$H$5:$H$6000),0)),\"\")","v":""}]
[null,null,"الصندوق","الايرادات",null,null,null,null,null,{"$f":"IF(H468<>\"\",INDEX($H$5:$H$6000,MATCH(0,COUNTIF($J$4:J467,$H$5:$H$6000),0)),\"\")","v":""}]
[null,null,"الصندوق","الايرادات",null,null,null,null,null,{"$f":"IF(H469<>\"\",INDEX($H$5:$H$6000,MATCH(0,COUNTIF($J$4:J468,$H$5:$H$6000),0)),\"\")","v":""}]
[null,null,"الصندوق","الايرادات",null,null,null,null,null,{"$f":"IF(H470<>\"\",INDEX($H$5:$H$6000,MATCH(0,COUNTIF($J$4:J469,$H$5:$H$6000),0)),\"\")","v":""}]
[null,null,"الصندوق","الايرادات",null,null,null,null,null,{"$f":"IF(H471<>\"\",INDEX($H$5:$H$6000,MATCH(0,COUNTIF($J$4:J470,$H$5:$H$6000),0)),\"\")","v":""}]
[null,null,"الصندوق","الايرادات",null,null,null,null,null,{"$f":"IF(H472<>\"\",INDEX($H$5:$H$6000,MATCH(0,COUNTIF($J$4:J471,$H$5:$H$6000),0)),\"\")","v":""}]
[null,null,"الصندوق","الايرادات",null,null,null,null,null,{"$f":"IF(H473<>\"\",INDEX($H$5:$H$6000,MATCH(0,COUNTIF($J$4:J472,$H$5:$H$6000),0)),\"\")","v":""}]
[null,null,"الصندوق","الايرادات",null,null,null,null,null,{"$f":"IF(H474<>\"\",INDEX($H$5:$H$6000,MATCH(0,COUNTIF($J$4:J473,$H$5:$H$6000),0)),\"\")","v":""}]
[null,null,"الصندوق","الايرادات",null,null,null,null,null,{"$f":"IF(H475<>\"\",INDEX($H$5:$H$6000,MATCH(0,COUNTIF($J$4:J474,$H$5:$H$6000),0)),\"\")","v":""}]
[null,null,"الصندوق","الايرادات",null,null,null,null,null,{"$f":"IF(H476<>\"\",INDEX($H$5:$H$6000,MATCH(0,COUNTIF($J$4:J475,$H$5:$H$6000),0)),\"\")","v":""}]
[null,null,"الصندوق","الايرادات",null,null,null,null,null,{"$f":"IF(H477<>\"\",INDEX($H$5:$H$6000,MATCH(0,COUNTIF($J$4:J476,$H$5:$H$6000),0)),\"\")","v":""}]
[null,null,"الصندوق","الايرادات",null,null,null,null,null,{"$f":"IF(H478<>\"\",INDEX($H$5:$H$6000,MATCH(0,COUNTIF($J$4:J477,$H$5:$H$6000),0)),\"\")","v":""}]
[null,null,"الصندوق","الايرادات",null,null,null,null,null,{"$f":"IF(H479<>\"\",INDEX($H$5:$H$6000,MATCH(0,COUNTIF($J$4:J478,$H$5:$H$6000),0)),\"\")","v":""}]
[null,null,"الصندوق","الايرادات",null,null,null,null,null,{"$f":"IF(H480<>\"\",INDEX($H$5:$H$6000,MATCH(0,COUNTIF($J$4:J479,$H$5:$H$6000),0)),\"\")","v":""}]
[null,null,"الصندوق","الايرادات",null,null,null,null,null,{"$f":"IF(H481<>\"\",INDEX($H$5:$H$6000,MATCH(0,COUNTIF($J$4:J480,$H$5:$H$6000),0)),\"\")","v":""}]
[null,null,"الصندوق","الايرادات",null,null,null,null,null,{"$f":"IF(H482<>\"\",INDEX($H$5:$H$6000,MATCH(0,COUNTIF($J$4:J481,$H$5:$H$6000),0)),\"\")","v":""}]
[null,null,"الصندوق","الايرادات",null,null,null,null,null,{"$f":"IF(H483<>\"\",INDEX($H$5:$H$6000,MATCH(0,COUNTIF($J$4:J482,$H$5:$H$6000),0)),\"\")","v":""}]
[null,null,"الصندوق","الايرادات",null,null,null,null,null,{"$f":"IF(H484<>\"\",INDEX($H$5:$H$6000,MATCH(0,COUNTIF($J$4:J483,$H$5:$H$6000),0)),\"\")","v":""}]
[null,null,"الصندوق","الايرادات",null,null,null,null,null,{"$f":"IF(H485<>\"\",INDEX($H$5:$H$6000,MATCH(0,COUNTIF($J$4:J484,$H$5:$H$6000),0)),\"\")","v":""}]
[null,null,"الصندوق","الايرادات",null,null,null,null,null,{"$f":"IF(H486<>\"\",INDEX($H$5:$H$6000,MATCH(0,COUNTIF($J$4:J485,$H$5:$H$6000),0)),\"\")","v":""}]
[null,null,"الصندوق","الايرادات"]
[null,null,"الصندوق","الايرادات"]
[null,null,"الصندوق","الايرادات"]
[null,null,"الصندوق","الايرادات"]
[null,null,"الصندوق","الايرادات"]
[null,null,"الصندوق","الايرادات"]
[null,null,"الصندوق","الايرادات"]
[null,null,"الصندوق","الايرادات"]
[null,null,"الصندوق","الايرادات"]
[null,null,"الصندوق","الايرادات"]
[null,null,"الصندوق","الايرادات"]
[null,null,"الصندوق","الايرادات"]
[null,null,"الصندوق","الايرادات"]
[null,null,"الصندوق","الايرادات"]
[null,null,"الصندوق","الايرادات"]
[null,null,"الصندوق","الايرادات"]
[null,null,"الصندوق","الايرادات"]
[null,null,"الصندوق","الايرادات"]
[null,null,"الصندوق","الايرادات"]
[null,null,"الصندوق","الايرادات"]
[null,null,"الصندوق","الايرادات"]
[null,null,"الصندوق","الايرادات"]
[null,null,"الصندوق","الايرادات"]
[null,null,"الصندوق","الايرادات"]
[null,null,"الصندوق","الايرادات"]
[null,null,"الصندوق","الايرادات"]
[null,null,"الصندوق","الايرادات"]
[null,null,"الصندوق","الايرادات"]
[null,null,"الصندوق","الايرادات"]
[null,null,"الصندوق","الايرادات"]
[null,null,"الصندوق","الايرادات"]
[null,null,"الصندوق","الايرادات"]
[null,null,"الصندوق","الايرادات"]
[null,null,"الصندوق","الايرادات"]
[null,null,"الصندوق","الايرادات"]
[null,null,"الصندوق","الايرادات"]
[null,null,"الصندوق","الايرادات"]
[null,null,"الصندوق","الايرادات"]
[null,null,"الصندوق","الايرادات"]
[null,null,"الصندوق","الايرادات"]
[null,null,"الصندوق","الايرادات"]
[null,null,"الصندوق","الايرادات"]
[null,null,"الصندوق","الايرادات"]
[null,null,"الصندوق","الايرادات"]
[null,null,"الصندوق","الايرادات"]
[null,null,"الصندوق","الايرادات"]
[null,null,"الصندوق","الايرادات"]
[null,null,"الصندوق","الايرادات"]
[null,null,"الصندوق","الايرادات"]
[null,null,"الصندوق","الايرادات"]
[null,null,"الصندوق","الايرادات"]
[null,null,"الصندوق","الايرادات"]
[null,null,"الصندوق","الايرادات"]
[null,null,"الصندوق","الايرادات"]
[null,null,"الصندوق","الايرادات"]
[null,null,"الصندوق","الايرادات"]
[null,null,"الصندوق","الايرادات"]
[null,null,"الصندوق","الايرادات"]
[null,null,"الصندوق","الايرادات"]
[null,null,"الصندوق","الايرادات"]
[null,null,"الصندوق","الايرادات"]
[null,null,"الصندوق","الايرادات"]
[null,null,"الصندوق","الايرادات"]
[null,null,"الصندوق","الايرادات"]
[null,null,"الصندوق","الايرادات"]
[null,null,"الصندوق","الايرادات"]
[null,null,"الصندوق","الايرادات"]
[null,null,"الصندوق","الايرادات"]
[null,null,"الصندوق","الايرادات"]
[null,null,"الصندوق","الايرادات"]
[null,null,"الصندوق","الايرادات"]
[null,null,"الصندوق","الايرادات"]
[null,null,"الصندوق","الايرادات"]
[null,null,"الصندوق","الايرادات"]
[null,null,"الصندوق","الايرادات"]
[null,null,"الصندوق","الايرادات"]
[null,null,"الصندوق","الايرادات"]
[null,null,"الصندوق","الايرادات"]
[null,null,"الصندوق","الايرادات"]
[null,null,"الصندوق","الايرادات"]
[null,null,"الصندوق","الايرادات"]
[null,null,"الصندوق","الايرادات"]
[null,null,"الصندوق","الايرادات"]
[null,null,"الصندوق","الايرادات"]
[null,null,"الصندوق","الايرادات"]
[null,null,"الصندوق","الايرادات"]
[null,null,"الصندوق","الايرادات"]
[null,null,"الصندوق","الايرادات"]
[null,null,"الصندوق","الايرادات"]
[null,null,"الصندوق","الايرادات"]
[null,null,"الصندوق","الايرادات"]
[null,null,"الصندوق","الايرادات"]
[null,null,"الصندوق","الايرادات"]
[null,null,"الصندوق","الايرادات"]
[null,null,"الصندوق","الايرادات"]
[null,null,"الصندوق","الايرادات"]
[null,null,"الصندوق","الايرادات"]
[null,null,"الصندوق","الايرادات"]
[null,null,"الصندوق","الايرادات"]
[null,null,"الصندوق","الايرادات"]
[null,null,"الصندوق","الايرادات"]
[null,null,"الصندوق","الايرادات"]
[null,null,"الصندوق","الايرادات"]
[null,null,"الصندوق","الايرادات"]
[null,null,"الصندوق","الايرادات"]
[null,null,"الصندوق","الايرادات"]
[null,null,"الصندوق","الايرادات"]
[null,null,"الصندوق","الايرادات"]
[null,null,"الصندوق","الايرادات"]
[null,null,"الصندوق","الايرادات"]
[null,null,"الصندوق","الايرادات"]
[null,null,"الصندوق","الايرادات"]
[null,null,"الصندوق","الايرادات"]
[null,null,"الصندوق","الايرادات"]
[null,null,"الصندوق","الايرادات"]
[null,null,"الصندوق","الايرادات"]
[null,null,"الصندوق","الايرادات"]
[null,null,"الصندوق","الايرادات"]
[null,null,"الصندوق","الايرادات"]
[null,null,"الصندوق","الايرادات"]
[null,null,"الصندوق","الايرادات"]
[null,null,"الصندوق","الايرادات"]
[null,null,"الصندوق","الايرادات"]
[null,null,"الصندوق","الايرادات"]
[null,null,"الصندوق","الايرادات"]
[null,null,"الصندوق","الايرادات"]
[null,null,"الصندوق","الايرادات"]
[null,null,"الصندوق","الايرادات"]
[null,null,"الصندوق","الايرادات"]
[null,null,"الصندوق","الايرادات"]
[null,null,"الصندوق","الايرادات"]
[null,null,"الصندوق","الايرادات"]
[null,null,"الصندوق","الايرادات"]
[null,null,"الصندوق","الايرادات"]
[null,null,"الصندوق","الايرادات"]
[null,null,"الصندوق","الايرادات"]
[null,null,"الصندوق","الايرادات"]
[null,null,"الصندوق","الايرادات"]
[null,null,"الصندوق","الايرادات"]
[null,null,"الصندوق","الايرادات"]
[null,null,"الصندوق","الايرادات"]
[null,null,"الصندوق","الايرادات"]
[null,null,"الصندوق","الايرادات"]
[null,null,"الصندوق","الايرادات"]
[null,null,"الصندوق","الايرادات"]
[null,null,"الصندوق","الايرادات"]
[null,null,"الصندوق","الايرادات"]
[null,null,"الصندوق","الايرادات"]
[null,null,"الصندوق","الايرادات"]
[null,null,"الصندوق","الايرادات"]
[null,null,"الصندوق","الايرادات"]
[null,null,"الصندوق","الايرادات"]
[null,null,"الصندوق","الايرادات"]
[null,null,"الصندوق","الايرادات"]
[null,null,"الصندوق","الايرادات"]
[null,null,"الصندوق","الايرادات"]
[null,null,"الصندوق","الايرادات"]
[null,null,"الصندوق","الايرادات"]
[null,null,"الصندوق","الايرادات"]
[null,null,"الصندوق","الايرادات"]
[null,null,"الصندوق","الايرادات"]
[null,null,"الصندوق","الايرادات"]
[null,null,"الصندوق","الايرادات"]
[null,null,"الصندوق","الايرادات"]
[null,null,"الصندوق","الايرادات"]
[null,null,"الصندوق","الايرادات"]
[null,null,"الصندوق","الايرادات"]
[null,null,"الصندوق","الايرادات"]
[null,null,"الصندوق","الايرادات"]
[null,null,"الصندوق","الايرادات"]
[null,null,"الصندوق","الايرادات"]
[null,null,"الصندوق","الايرادات"]
[null,null,"الصندوق","الايرادات"]
[null,null,"الصندوق","الايرادات"]
[null,null,"الصندوق","الايرادات"]
[null,null,"الصندوق","الايرادات"]
[null,null,"الصندوق","الايرادات"]
[null,null,"الصندوق","الايرادات"]
[null,null,"الصندوق","الايرادات"]
[null,null,"الصندوق","الايرادات"]
[null,null,"الصندوق","الايرادات"]
[null,null,"الصندوق","الايرادات"]
[null,null,"الصندوق","الايرادات"]
[null,null,"الصندوق","الايرادات"]
[null,null,"الصندوق","الايرادات"]
[null,null,"الصندوق","الايرادات"]
[null,null,"الصندوق","الايرادات"]
[null,null,"الصندوق","الايرادات"]
[null,null,"الصندوق","الايرادات"]
[null,null,"الصندوق","الايرادات"]
[null,null,"الصندوق","الايرادات"]
[null,null,"الصندوق","الايرادات"]
[null,null,"الصندوق","الايرادات"]
[null,null,"الصندوق","الايرادات"]
[null,null,"الصندوق","الايرادات"]
[null,null,"الصندوق","الايرادات"]
[null,null,"الصندوق","الايرادات"]
[null,null,"الصندوق","الايرادات"]
[null,null,"الصندوق","الايرادات"]
[null,null,"الصندوق","الايرادات"]
[null,null,"الصندوق","الايرادات"]
[null,null,"الصندوق","الايرادات"]
[null,null,"الصندوق","الايرادات"]
[null,null,"الصندوق","الايرادات"]
[null,null,"الصندوق","الايرادات"]
[null,null,"الصندوق","الايرادات"]
[null,null,"الصندوق","الايرادات"]
[null,null,"الصندوق","الايرادات"]
[null,null,"الصندوق","الايرادات"]
[null,null,"الصندوق","الايرادات"]
[null,null,"الصندوق","الايرادات"]
[null,null,"الصندوق","الايرادات"]
[null,null,"الصندوق","الايرادات"]
[null,null,"الصندوق","الايرادات"]
[null,null,"الصندوق","الايرادات"]
[null,null,"الصندوق","الايرادات"]
[null,null,"الصندوق","الايرادات"]
[null,null,"الصندوق","الايرادات"]
[null,null,"الصندوق","الايرادات"]
[null,null,"الصندوق","الايرادات"]
[null,null,"الصندوق","الايرادات"]
[null,null,"الصندوق","الايرادات"]
[null,null,"الصندوق","الايرادات"]
[null,null,"الصندوق","الايرادات"]
[null,null,"الصندوق","الايرادات"]
[null,null,"الصندوق","الايرادات"]
[null,null,"الصندوق","الايرادات"]
[null,null,"الصندوق","الايرادات"]
[null,null,"الصندوق","الايرادات"]
[null,null,"الصندوق","الايرادات"]
[null,null,"الصندوق","الايرادات"]
[null,null,"الصندوق","الايرادات"]
[null,null,"الصندوق","الايرادات"]
[null,null,"الصندوق","الايرادات"]
[null,null,"الصندوق","الايرادات"]
[null,null,"الصندوق","الايرادات"]
[null,null,"الصندوق","الايرادات"]
[null,null,"الصندوق","الايرادات"]
[null,null,"الصندوق","الايرادات"]
[null,null,"الصندوق","الايرادات"]
[null,null,"الصندوق","الايرادات"]
[null,null,"الصندوق","الايرادات"]
[null,null,"الصندوق","الايرادات"]
[null,null,"الصندوق","الايرادات"]
[null,null,"الصندوق","الايرادات"]
[null,null,"الصندوق","الايرادات"]
[null,null,"الصندوق","الايرادات"]
[null,null,"الصندوق","الايرادات"]
[null,null,"الصندوق","الايرادات"]
[null,null,"الصندوق","الايرادات"]
[null,null,"الصندوق","الايرادات"]
[null,null,"الصندوق","الايرادات"]
[null,null,"الصندوق","الايرادات"]
[null,null,"الصندوق","الايرادات"]
[null,null,"الصندوق","الايرادات"]
[null,null,"الصندوق","الايرادات"]
[null,null,"الصندوق","الايرادات"]
[null,null,"الصندوق","الايرادات"]
[null,null,"الصندوق","الايرادات"]
[null,null,"الصندوق","الايرادات"]
[null,null,"الصندوق","الايرادات"]
[null,null,"الصندوق","الايرادات"]
[null,null,"الصندوق","الايرادات"]
[null,null,"الصندوق","الايرادات"]
[null,null,"الصندوق","الايرادات"]
[null,null,"الصندوق","الايرادات"]
[null,null,"الصندوق","الايرادات"]
[null,null,"الصندوق","الايرادات"]
[null,null,"الصندوق","الايرادات"]
[null,null,"الصندوق","الايرادات"]
[null,null,"الصندوق","الايرادات"]
[null,null,"الصندوق","الايرادات"]
[null,null,"الصندوق","الايرادات"]
[null,null,"الصندوق","الايرادات"]
[null,null,"الصندوق","الايرادات"]
[null,null,"الصندوق","الايرادات"]
[null,null,"الصندوق","الايرادات"]
[null,null,"الصندوق","الايرادات"]
[null,null,"الصندوق","الايرادات"]
[null,null,"الصندوق","الايرادات"]
[null,null,"الصندوق","الايرادات"]
[null,null,"الصندوق","الايرادات"]
[null,null,"الصندوق","الايرادات"]
[null,null,"الصندوق","الايرادات"]
[null,null,"الصندوق","الايرادات"]
[null,null,"الصندوق","الايرادات"]
[null,null,"الصندوق","الايرادات"]
[null,null,"الصندوق","الايرادات"]
[null,null,"الصندوق","الايرادات"]
[null,null,"الصندوق","الايرادات"]
[null,null,"الصندوق","الايرادات"]
[null,null,"الصندوق","الايرادات"]
[null,null,"الصندوق","الايرادات"]
[null,null,"الصندوق","الايرادات"]
[null,null,"الصندوق","الايرادات"]
[null,null,"الصندوق","الايرادات"]
[null,null,"الصندوق","الايرادات"]
[null,null,"الصندوق","الايرادات"]
[null,null,"الصندوق","الايرادات"]
[null,null,"الصندوق","الايرادات"]
[null,null,"الصندوق","الايرادات"]
[null,null,"الصندوق","الايرادات"]
[null,null,"الصندوق","الايرادات"]
[null,null,"الصندوق","الايرادات"]
[null,null,"الصندوق","الايرادات"]
[null,null,"الصندوق","الايرادات"]
[null,null,"الصندوق","الايرادات"]
[null,null,"الصندوق","الايرادات"]
[null,null,"الصندوق","الايرادات"]
[null,null,"الصندوق","الايرادات"]
[null,null,"الصندوق","الايرادات"]
[null,null,"الصندوق","الايرادات"]
[null,null,"الصندوق","الايرادات"]
[null,null,"الصندوق","الايرادات"]
[null,null,"الصندوق","الايرادات"]
[null,null,"الصندوق","الايرادات"]
[null,null,"الصندوق","الايرادات"]
[null,null,"الصندوق","الايرادات"]
[null,null,"الصندوق","الايرادات"]
[null,null,"الصندوق","الايرادات"]
[null,null,"الصندوق","الايرادات"]
[null,null,"الصندوق","الايرادات"]
[null,null,"الصندوق","الايرادات"]
[null,null,"الصندوق","الايرادات"]
[null,null,"الصندوق","الايرادات"]
[null,null,"الصندوق","الايرادات"]
[null,null,"الصندوق","الايرادات"]
[null,null,"الصندوق","الايرادات"]
[null,null,"الصندوق","الايرادات"]
[null,null,"الصندوق","الايرادات"]
[null,null,"الصندوق","الايرادات"]
[null,null,"الصندوق","الايرادات"]
[null,null,"الصندوق","الايرادات"]
[null,null,"الصندوق","الايرادات"]
[null,null,"الصندوق","الايرادات"]
[null,null,"الصندوق","الايرادات"]
[null,null,"الصندوق","الايرادات"]
[null,null,"الصندوق","الايرادات"]
[null,null,"الصندوق","الايرادات"]
[null,null,"الصندوق","الايرادات"]
[null,null,"الصندوق","الايرادات"]
[null,null,"الصندوق","الايرادات"]
[null,null,"الصندوق","الايرادات"]
[null,null,"الصندوق","الايرادات"]
[null,null,"الصندوق","الايرادات"]
[null,null,"الصندوق","الايرادات"]
[null,null,"الصندوق","الايرادات"]
[null,null,"الصندوق","الايرادات"]
[null,null,"الصندوق","الايرادات"]
[null,null,"الصندوق","الايرادات"]
[null,null,"الصندوق","الايرادات"]
[null,null,"الصندوق","الايرادات"]
[null,null,"الصندوق","الايرادات"]
[null,null,"الصندوق","الايرادات"]
[null,null,"الصندوق","الايرادات"]
[null,null,"الصندوق","الايرادات"]
[null,null,"الصندوق","الايرادات"]
[null,null,"الصندوق","الايرادات"]
[null,null,"الصندوق","الايرادات"]
[null,null,"الصندوق","الايرادات"]
[null,null,"الصندوق","الايرادات"]
[null,null,"الصندوق","الايرادات"]
[null,null,"الصندوق","الايرادات"]
[null,null,"الصندوق","الايرادات"]
[null,null,"الصندوق","الايرادات"]
[null,null,"الصندوق","الايرادات"]
[null,null,"الصندوق","الايرادات"]
[null,null,"الصندوق","الايرادات"]
[null,null,"الصندوق","الايرادات"]
[null,null,"الصندوق","الايرادات"]
[null,null,"الصندوق","الايرادات"]
[null,null,"الصندوق","الايرادات"]
[null,null,"الصندوق","الايرادات"]
[null,null,"الصندوق","الايرادات"]
[null,null,"الصندوق","الايرادات"]
[null,null,"الصندوق","الايرادات"]
[null,null,"الصندوق","الايرادات"]
[null,null,"الصندوق","الايرادات"]
[null,null,"الصندوق","الايرادات"]
[null,null,"الصندوق","الايرادات"]
[null,null,"الصندوق","الايرادات"]
[null,null,"الصندوق","الايرادات"]
[null,null,"الصندوق","الايرادات"]
[null,null,"الصندوق","الايرادات"]
[null,null,"الصندوق","الايرادات"]
[null,null,"الصندوق","الايرادات"]
[null,null,"الصندوق","الايرادات"]
[null,null,"الصندوق","الايرادات"]
[null,null,"الصندوق","الايرادات"]
[null,null,"الصندوق","الايرادات"]
[null,null,"الصندوق","الايرادات"]
[null,null,"الصندوق","الايرادات"]
[null,null,"الصندوق","الايرادات"]
[null,null,"الصندوق","الايرادات"]
[null,null,"الصندوق","الايرادات"]
[null,null,"الصندوق","الايرادات"]
[null,null,"الصندوق","الايرادات"]
[null,null,"الصندوق","الايرادات"]
[null,null,"الصندوق","الايرادات"]
[null,null,"الصندوق","الايرادات"]
[null,null,"الصندوق","الايرادات"]
[null,null,"الصندوق","الايرادات"]
[null,null,"الصندوق","الايرادات"]
[null,null,"الصندوق","الايرادات"]
[null,null,"الصندوق","الايرادات"]
[null,null,"الصندوق","الايرادات"]
[null,null,"الصندوق","الايرادات"]
[null,null,"الصندوق","الايرادات"]
[null,null,"الصندوق","الايرادات"]
[null,null,"الصندوق","الايرادات"]
[null,null,"الصندوق","الايرادات"]
[null,null,"الصندوق","الايرادات"]
[null,null,"الصندوق","الايرادات"]
[null,null,"الصندوق","الايرادات"]
[null,null,"الصندوق","الايرادات"]
[null,null,"الصندوق","الايرادات"]
[null,null,"الصندوق","الايرادات"]
[null,null,"الصندوق","الايرادات"]
[null,null,"الصندوق","الايرادات"]
[null,null,"الصندوق","الايرادات"]
[null,null,"الصندوق","الايرادات"]
[null,null,"الصندوق","الايرادات"]
[null,null,"الصندوق","الايرادات"]
[null,null,"الصندوق","الايرادات"]
[null,null,"الصندوق","الايرادات"]
[null,null,"الصندوق","الايرادات"]
[null,null,"الصندوق","الايرادات"]
[null,null,"الصندوق","الايرادات"]
[null,null,"الصندوق","الايرادات"]
[null,null,"الصندوق","الايرادات"]
[null,null,"الصندوق","الايرادات"]
[null,null,"الصندوق","الايرادات"]
[null,null,"الصندوق","الايرادات"]
[null,null,"الصندوق","الايرادات"]
[null,null,"الصندوق","الايرادات"]
[null,null,"الصندوق","الايرادات"]
[null,null,"الصندوق","الايرادات"]
[null,null,"الصندوق","الايرادات"]
[null,null,"الصندوق","الايرادات"]
[null,null,"الصندوق","الايرادات"]
[null,null,"الصندوق","الايرادات"]
[null,null,"الصندوق","الايرادات"]
[null,null,"الصندوق","الايرادات"]
[null,null,"الصندوق","الايرادات"]
[null,null,"الصندوق","الايرادات"]
[null,null,"الصندوق","الايرادات"]
[null,null,"الصندوق","الايرادات"]
[null,null,"الصندوق","الايرادات"]
[null,null,"الصندوق","الايرادات"]
[null,null,"الصندوق","الايرادات"]
[null,null,"الصندوق","الايرادات"]
[null,null,"الصندوق","الايرادات"]
[null,null,"الصندوق","الايرادات"]
[null,null,"الصندوق","الايرادات"]
[null,null,"الصندوق","الايرادات"]
[null,null,"الصندوق","الايرادات"]
[null,null,"الصندوق","الايرادات"]
[null,null,"الصندوق","الايرادات"]
[null,null,"الصندوق","الايرادات"]
[null,null,"الصندوق","الايرادات"]
[null,null,"الصندوق","الايرادات"]
[null,null,"الصندوق","الايرادات"]
[null,null,"الصندوق","الايرادات"]
[null,null,"الصندوق","الايرادات"]
[null,null,"الصندوق","الايرادات"]
[null,null,"الصندوق","الايرادات"]
[null,null,"الصندوق","الايرادات"]
[null,null,"الصندوق","الايرادات"]
[null,null,"الصندوق","الايرادات"]
[null,null,"الصندوق","الايرادات"]
[null,null,"الصندوق","الايرادات"]
[null,null,"الصندوق","الايرادات"]
[null,null,"الصندوق","الايرادات"]
[null,null,"الصندوق","الايرادات"]
[null,null,"الصندوق","الايرادات"]
[null,null,"الصندوق","الايرادات"]
[null,null,"الصندوق","الايرادات"]
[null,null,"الصندوق","الايرادات"]
[null,null,"الصندوق","الايرادات"]
[null,null,"الصندوق","الايرادات"]
[null,null,"الصندوق","الايرادات"]
[null,null,"الصندوق","الايرادات"]
[null,null,"الصندوق","الايرادات"]
[null,null,"الصندوق","الايرادات"]
[null,null,"الصندوق","الايرادات"]
[null,null,"الصندوق","الايرادات"]
[null,null,"الصندوق","الايرادات"]
[null,null,"الصندوق","الايرادات"]
[null,null,"الصندوق","الايرادات"]
[null,null,"الصندوق","الايرادات"]
[null,null,"الصندوق","الايرادات"]
[null,null,"الصندوق","الايرادات"]
[null,null,"الصندوق","الايرادات"]
[null,null,"الصندوق","الايرادات"]
[null,null,"الصندوق","الايرادات"]
[null,null,"الصندوق","الايرادات"]
[null,null,"الصندوق","الايرادات"]
[null,null,"الصندوق","الايرادات"]
[null,null,"الصندوق","الايرادات"]
[null,null,"الصندوق","الايرادات"]
[null,null,"الصندوق","الايرادات"]
[null,null,"الصندوق","الايرادات"]
[null,null,"الصندوق","الايرادات"]
[null,null,"الصندوق","الايرادات"]
[null,null,"الصندوق","الايرادات"]
[null,null,"الصندوق","الايرادات"]
[null,null,"الصندوق","الايرادات"]
[null,null,"الصندوق","الايرادات"]
[null,null,"الصندوق","الايرادات"]
[null,null,"الصندوق","الايرادات"]
[null,null,"الصندوق","الايرادات"]
[null,null,"الصندوق","الايرادات"]
[null,null,"الصندوق","الايرادات"]
[null,null,"الصندوق","الايرادات"]
[null,null,"الصندوق","الايرادات"]
[null,null,"الصندوق","الايرادات"]
[null,null,"الصندوق","الايرادات"]
[null,null,"الصندوق","الايرادات"]
[null,null,"الصندوق","الايرادات"]
[null,null,"الصندوق","الايرادات"]
[null,null,"الصندوق","الايرادات"]
[null,null,"الصندوق","الايرادات"]
[null,null,"الصندوق","الايرادات"]
[null,null,"الصندوق","الايرادات"]
[null,null,"الصندوق","الايرادات"]
[null,null,"الصندوق","الايرادات"]
[null,null,"الصندوق","الايرادات"]
[null,null,"الصندوق","الايرادات"]
[null,null,"الصندوق","الايرادات"]
[null,null,"الصندوق","الايرادات"]
[null,null,"الصندوق","الايرادات"]
[null,null,"الصندوق","الايرادات"]
[null,null,"الصندوق","الايرادات"]
[null,null,"الصندوق","الايرادات"]
[null,null,"الصندوق","الايرادات"]
[null,null,"الصندوق","الايرادات"]
[null,null,"الصندوق","الايرادات"]
[null,null,"الصندوق","الايرادات"]
[null,null,"الصندوق","الايرادات"]
[null,null,"الصندوق","الايرادات"]
[null,null,"الصندوق","الايرادات"]
[null,null,"الصندوق","الايرادات"]
[null,null,"الصندوق","الايرادات"]
[null,null,"الصندوق","الايرادات"]
[null,null,"الصندوق","الايرادات"]
[null,null,"الصندوق","الايرادات"]
[null,null,"الصندوق","الايرادات"]
[null,null,"الصندوق","الايرادات"]
[null,null,"الصندوق","الايرادات"]
[null,null,"الصندوق","الايرادات"]
[null,null,"الصندوق","الايرادات"]
[null,null,"الصندوق","الايرادات"]
[null,null,"الصندوق","الايرادات"]
[null,null,"الصندوق","الايرادات"]
[null,null,"الصندوق","الايرادات"]
[null,null,"الصندوق","الايرادات"]
[null,null,"الصندوق","الايرادات"]
[null,null,"الصندوق","الايرادات"]
[null,null,"الصندوق","الايرادات"]
[null,null,"الصندوق","الايرادات"]
[null,null,"الصندوق","الايرادات"]
[null,null,"الصندوق","الايرادات"]
[null,null,"الصندوق","الايرادات"]
[null,null,"الصندوق","الايرادات"]
[null,null,"الصندوق","الايرادات"]
[null,null,"الصندوق","الايرادات"]
[null,null,"الصندوق","الايرادات"]
[null,null,"الصندوق","الايرادات"]
[null,null,"الصندوق","الايرادات"]
[null,null,"الصندوق","الايرادات"]
[null,null,"الصندوق","الايرادات"]
[null,null,"الصندوق","الايرادات"]
[null,null,"الصندوق","الايرادات"]
[null,null,"الصندوق","الايرادات"]
[null,null,"الصندوق","الايرادات"]
[null,null,"الصندوق","الايرادات"]
[null,null,"الصندوق","الايرادات"]
[null,null,"الصندوق","الايرادات"]
[null,null,"الصندوق","الايرادات"]
[null,null,"الصندوق","الايرادات"]
[null,null,"الصندوق","الايرادات"]
[null,null,"الصندوق","الايرادات"]
[null,null,"الصندوق","الايرادات"]
[null,null,"الصندوق","الايرادات"]
[null,null,"الصندوق","الايرادات"]
[null,null,"الصندوق","الايرادات"]
[null,null,"الصندوق","الايرادات"]
[null,null,"الصندوق","الايرادات"]
[null,null,"الصندوق","الايرادات"]
[null,null,"الصندوق","الايرادات"]
[null,null,"الصندوق","الايرادات"]
[null,null,"الصندوق","الايرادات"]
[null,null,"الصندوق","الايرادات"]
[null,null,"الصندوق","الايرادات"]
[null,null,"الصندوق","الايرادات"]
[null,null,"الصندوق","الايرادات"]
[null,null,"الصندوق","الايرادات"]
[null,null,"الصندوق","الايرادات"]
[null,null,"الصندوق","الايرادات"]
[null,null,"الصندوق","الايرادات"]
[null,null,"الصندوق","الايرادات"]
[null,null,"الصندوق","الايرادات"]
[null,null,"الصندوق","الايرادات"]
[null,null,"الصندوق","الايرادات"]
[null,null,"الصندوق","الايرادات"]
[null,null,"الصندوق","الايرادات"]
[null,null,"الصندوق","الايرادات"]
[null,null,"الصندوق","الايرادات"]
[null,null,"الصندوق","الايرادات"]
[null,null,"الصندوق","الايرادات"]
[null,null,"الصندوق","الايرادات"]
[null,null,"الصندوق","الايرادات"]
[null,null,"الصندوق","الايرادات"]
[null,null,"الصندوق","الايرادات"]
[null,null,"الصندوق","الايرادات"]
[null,null,"الصندوق","الايرادات"]
[null,null,"الصندوق","الايرادات"]
[null,null,"الصندوق","الايرادات"]
[null,null,"الصندوق","الايرادات"]
[null,null,"الصندوق","الايرادات"]
[null,null,"الصندوق","الايرادات"]
[null,null,"الصندوق","الايرادات"]
[null,null,"الصندوق","الايرادات"]
[null,null,"الصندوق","الايرادات"]
[null,null,"الصندوق","الايرادات"]
[null,null,"الصندوق","الايرادات"]
[null,null,"الصندوق","الايرادات"]
[null,null,"الصندوق","الايرادات"]
[null,null,"الصندوق","الايرادات"]
[null,null,"الصندوق","الايرادات"]
[null,null,"الصندوق","الايرادات"]
[null,null,"الصندوق","الايرادات"]
[null,null,"الصندوق","الايرادات"]
[null,null,"الصندوق","الايرادات"]
[null,null,"الصندوق","الايرادات"]
[null,null,"الصندوق","الايرادات"]
[null,null,"الصندوق","الايرادات"]
[null,null,"الصندوق","الايرادات"]
[null,null,"الصندوق","الايرادات"]
[null,null,"الصندوق","الايرادات"]
[null,null,"الصندوق","الايرادات"]
[null,null,"الصندوق","الايرادات"]
[null,null,"الصندوق","الايرادات"]
[null,null,"الصندوق","الايرادات"]
[null,null,"الصندوق","الايرادات"]
[null,null,"الصندوق","الايرادات"]
[null,null,"الصندوق","الايرادات"]
[null,null,"الصندوق","الايرادات"]
[null,null,"الصندوق","الايرادات"]
[null,null,"الصندوق","الايرادات"]
[null,null,"الصندوق","الايرادات"]
[null,null,"الصندوق","الايرادات"]
[null,null,"الصندوق","الايرادات"]
[null,null,"الصندوق","الايرادات"]
[null,null,"الصندوق","الايرادات"]
[null,null,"الصندوق","الايرادات"]
[null,null,"الصندوق","الايرادات"]
[null,null,"الصندوق","الايرادات"]
[null,null,"الصندوق","الايرادات"]
[null,null,"الصندوق","الايرادات"]
[null,null,"الصندوق","الايرادات"]
[null,null,"الصندوق","الايرادات"]
[null,null,"الصندوق","الايرادات"]
[null,null,"الصندوق","الايرادات"]
[null,null,"الصندوق","الايرادات"]
[null,null,"الصندوق","الايرادات"]
[null,null,"الصندوق","الايرادات"]
[null,null,"الصندوق","الايرادات"]
[null,null,"الصندوق","الايرادات"]
[null,null,"الصندوق","الايرادات"]
[null,null,"الصندوق","الايرادات"]
[null,null,"الصندوق","الايرادات"]
[null,null,"الصندوق","الايرادات"]
[null,null,"الصندوق","الايرادات"]
[null,null,"الصندوق","الايرادات"]
[null,null,"الصندوق","الايرادات"]
[null,null,"الصندوق","الايرادات"]
[null,null,"الصندوق","الايرادات"]
[null,null,"الصندوق","الايرادات"]
[null,null,"الصندوق","الايرادات"]
[null,null,"الصندوق","الايرادات"]
[null,null,"الصندوق","الايرادات"]
[null,null,"الصندوق","الايرادات"]
[null,null,"الصندوق","الايرادات"]
[null,null,"الصندوق","الايرادات"]
[null,null,"الصندوق","الايرادات"]
[null,null,"الصندوق","الايرادات"]
[null,null,"الصندوق","الايرادات"]
[null,null,"الصندوق","الايرادات"]
[null,null,"الصندوق","الايرادات"]
[null,null,"الصندوق","الايرادات"]
[null,null,"الصندوق","الايرادات"]
[null,null,"الصندوق","الايرادات"]
[null,null,"الصندوق","الايرادات"]
[null,null,"الصندوق","الايرادات"]
[null,null,"الصندوق","الايرادات"]
[null,null,"الصندوق","الايرادات"]
[null,null,"الصندوق","الايرادات"]
[null,null,"الصندوق","الايرادات"]
[null,null,"الصندوق","الايرادات"]
[null,null,"الصندوق","الايرادات"]
[null,null,"الصندوق","الايرادات"]
[null,null,"الصندوق","الايرادات"]
[null,null,"الصندوق","الايرادات"]
[null,null,"الصندوق","الايرادات"]
[null,null,"الصندوق","الايرادات"]
[null,null,"الصندوق","الايرادات"]
[null,null,"الصندوق","الايرادات"]
[null,null,"الصندوق","الايرادات"]
[null,null,"الصندوق","الايرادات"]
[null,null,"الصندوق","الايرادات"]
[null,null,"الصندوق","الايرادات"]
[null,null,"الصندوق","الايرادات"]
[null,null,"الصندوق","الايرادات"]
[null,null,"الصندوق","الايرادات"]
[null,null,"الصندوق","الايرادات"]
[null,null,"الصندوق","الايرادات"]
[null,null,"الصندوق","الايرادات"]
[null,null,"الصندوق","الايرادات"]
[null,null,"الصندوق","الايرادات"]
[null,null,"الصندوق","الايرادات"]
[null,null,"الصندوق","الايرادات"]
[null,null,"الصندوق","الايرادات"]
[null,null,"الصندوق","الايرادات"]
[null,null,"الصندوق","الايرادات"]
[null,null,"الصندوق","الايرادات"]
[null,null,"الصندوق","الايرادات"]
[null,null,"الصندوق","الايرادات"]
[null,null,"الصندوق","الايرادات"]
[null,null,"الصندوق","الايرادات"]
[null,null,"الصندوق","الايرادات"]
[null,null,"الصندوق","الايرادات"]
[null,null,"الصندوق","الايرادات"]
[null,null,"الصندوق","الايرادات"]
[null,null,"الصندوق","الايرادات"]
[null,null,"الصندوق","الايرادات"]
[null,null,"الصندوق","الايرادات"]
[null,null,"الصندوق","الايرادات"]
[null,null,"الصندوق","الايرادات"]
[null,null,"الصندوق","الايرادات"]
[null,null,"الصندوق","الايرادات"]
[null,null,"الصندوق","الايرادات"]
[null,null,"الصندوق","الايرادات"]
[null,null,"الصندوق","الايرادات"]
[null,null,"الصندوق","الايرادات"]
[null,null,"الصندوق","الايرادات"]
[null,null,"الصندوق","الايرادات"]
[null,null,"الصندوق","الايرادات"]
[null,null,"الصندوق","الايرادات"]
[null,null,"الصندوق","الايرادات"]
[null,null,"الصندوق","الايرادات"]
[null,null,"الصندوق","الايرادات"]
[null,null,"الصندوق","الايرادات"]
[null,null,"الصندوق","الايرادات"]
[null,null,"الصندوق","الايرادات"]
[null,null,"الصندوق","الايرادات"]
[null,null,"الصندوق","الايرادات"]
[null,null,"الصندوق","الايرادات"]
[null,null,"الصندوق","الايرادات"]
[null,null,"الصندوق","الايرادات"]
[null,null,"الصندوق","الايرادات"]
[null,null,"الصندوق","الايرادات"]
[null,null,"الصندوق","الايرادات"]
[null,null,"الصندوق","الايرادات"]
[null,null,"الصندوق","الايرادات"]
[null,null,"الصندوق","الايرادات"]
[null,null,"الصندوق","الايرادات"]
[null,null,"الصندوق","الايرادات"]
[null,null,"الصندوق","الايرادات"]
[null,null,"الصندوق","الايرادات"]
[null,null,"الصندوق","الايرادات"]
[null,null,"الصندوق","الايرادات"]
[null,null,"الصندوق","الايرادات"]
[null,null,"الصندوق","الايرادات"]
[null,null,"الصندوق","الايرادات"]
[null,null,"الصندوق","الايرادات"]
[null,null,"الصندوق","الايرادات"]
[null,null,"الصندوق","الايرادات"]
[null,null,"الصندوق","الايرادات"]
[null,null,"الصندوق","الايرادات"]
[null,null,"الصندوق","الايرادات"]
[null,null,"الصندوق","الايرادات"]
[null,null,"الصندوق","الايرادات"]
[null,null,"الصندوق","الايرادات"]
[null,null,"الصندوق","الايرادات"]
[null,null,"الصندوق","الايرادات"]
[null,null,"الصندوق","الايرادات"]
[null,null,"الصندوق","الايرادات"]
[null,null,"الصندوق","الايرادات"]
[null,null,"الصندوق","الايرادات"]
[null,null,"الصندوق","الايرادات"]
[null,null,"الصندوق","الايرادات"]
[null,null,"الصندوق","الايرادات"]
[null,null,"الصندوق","الايرادات"]
[null,null,"الصندوق","الايرادات"]
[null,null,"الصندوق","الايرادات"]
[null,null,"الصندوق","الايرادات"]
[null,null,"الصندوق","الايرادات"]
[null,null,"الصندوق","الايرادات"]
[null,null,"الصندوق","الايرادات"]
[null,null,"الصندوق","الايرادات"]
[null,null,"الصندوق","الايرادات"]
[null,null,"الصندوق","الايرادات"]
[null,null,"الصندوق","الايرادات"]
[null,null,"الصندوق","الايرادات"]
[null,null,"الصندوق","الايرادات"]
[null,null,"الصندوق","الايرادات"]
[null,null,"الصندوق","الايرادات"]
[null,null,"الصندوق","الايرادات"]
[null,null,"الصندوق","الايرادات"]
[null,null,"الصندوق","الايرادات"]
[null,null,"الصندوق","الايرادات"]
[null,null,"الصندوق","الايرادات"]
[null,null,"الصندوق","الايرادات"]
[null,null,"الصندوق","الايرادات"]
[null,null,"الصندوق","الايرادات"]
[null,null,"الصندوق","الايرادات"]
[null,null,"الصندوق","الايرادات"]
[null,null,"الصندوق","الايرادات"]
[null,null,"الصندوق","الايرادات"]
[null,null,"الصندوق","الايرادات"]
[null,null,"الصندوق","الايرادات"]
[null,null,"الصندوق","الايرادات"]
[null,null,"الصندوق","الايرادات"]
[null,null,"الصندوق","الايرادات"]
[null,null,"الصندوق","الايرادات"]
[null,null,"الصندوق","الايرادات"]
[null,null,"الصندوق","الايرادات"]
[null,null,"الصندوق","الايرادات"]
[null,null,"الصندوق","الايرادات"]
[null,null,"الصندوق","الايرادات"]
[null,null,"الصندوق","الايرادات"]
[null,null,"الصندوق","الايرادات"]
[null,null,"الصندوق","الايرادات"]
[null,null,"الصندوق","الايرادات"]
[null,null,"الصندوق","الايرادات"]
[null,null,"الصندوق","الايرادات"]
[null,null,"الصندوق","الايرادات"]
[null,null,"الصندوق","الايرادات"]
[null,null,"الصندوق","الايرادات"]
[null,null,"الصندوق","الايرادات"]
[null,null,"الصندوق","الايرادات"]
[null,null,"الصندوق","الايرادات"]
[null,null,"الصندوق","الايرادات"]
[null,null,"الصندوق","الايرادات"]
[null,null,"الصندوق","الايرادات"]
[null,null,"الصندوق","الايرادات"]
[null,null,"الصندوق","الايرادات"]
[null,null,"الصندوق","الايرادات"]
[null,null,"الصندوق","الايرادات"]
[null,null,"الصندوق","الايرادات"]
[null,null,"الصندوق","الايرادات"]
[null,null,"الصندوق","الايرادات"]
[null,null,"الصندوق","الايرادات"]
[null,null,"الصندوق","الايرادات"]
[null,null,"الصندوق","الايرادات"]
[null,null,"الصندوق","الايرادات"]
[null,null,"الصندوق","الايرادات"]
[null,null,"الصندوق","الايرادات"]
[null,null,"الصندوق","الايرادات"]
[null,null,"الصندوق","الايرادات"]
[null,null,"الصندوق","الايرادات"]
[null,null,"الصندوق","الايرادات"]
[null,null,"الصندوق","الايرادات"]
[null,null,"الصندوق","الايرادات"]
[null,null,"الصندوق","الايرادات"]
[null,null,"الصندوق","الايرادات"]
[null,null,"الصندوق","الايرادات"]
[null,null,"الصندوق","الايرادات"]
[null,null,"الصندوق","الايرادات"]
[null,null,"الصندوق","الايرادات"]
[null,null,"الصندوق","الايرادات"]
[null,null,"الصندوق","الايرادات"]
[null,null,"الصندوق","الايرادات"]
[null,null,"الصندوق","الايرادات"]
[null,null,"الصندوق","الايرادات"]
[null,null,"الصندوق","الايرادات"]
[null,null,"الصندوق","الايرادات"]
[null,null,"الصندوق","الايرادات"]
[null,null,"الصندوق","الايرادات"]
[null,null,"الصندوق","الايرادات"]
[null,null,"الصندوق","الايرادات"]
[null,null,"الصندوق","الايرادات"]
[null,null,"الصندوق","الايرادات"]
[null,null,"الصندوق","الايرادات"]
[null,null,"الصندوق","الايرادات"]
[null,null,"الصندوق","الايرادات"]
[null,null,"الصندوق","الايرادات"]
[null,null,"الصندوق","الايرادات"]
[null,null,"الصندوق","الايرادات"]
[null,null,"الصندوق","الايرادات"]
[null,null,"الصندوق","الايرادات"]
[null,null,"الصندوق","الايرادات"]
[null,null,"الصندوق","الايرادات"]
[null,null,"الصندوق","الايرادات"]
[null,null,"الصندوق","الايرادات"]
[null,null,"الصندوق","الايرادات"]
[null,null,"الصندوق","الايرادات"]
[null,null,"الصندوق","الايرادات"]
[null,null,"الصندوق","الايرادات"]
[null,null,"الصندوق","الايرادات"]
[null,null,"الصندوق","الايرادات"]
[null,null,"الصندوق","الايرادات"]
[null,null,"الصندوق","الايرادات"]
[null,null,"الصندوق","الايرادات"]
[null,null,"الصندوق","الايرادات"]
[null,null,"الصندوق","الايرادات"]
[null,null,"الصندوق","الايرادات"]
[null,null,"الصندوق","الايرادات"]
[null,null,"الصندوق","الايرادات"]
[null,null,"الصندوق","الايرادات"]
[null,null,"الصندوق","الايرادات"]
[null,null,"الصندوق","الايرادات"]
[null,null,"الصندوق","الايرادات"]
[null,null,"الصندوق","الايرادات"]
[null,null,"الصندوق","الايرادات"]
[null,null,"الصندوق","الايرادات"]
[null,null,"الصندوق","الايرادات"]
[null,null,"الصندوق","الايرادات"]
[null,null,"الصندوق","الايرادات"]
[null,null,"الصندوق","الايرادات"]
[null,null,"الصندوق","الايرادات"]
[null,null,"الصندوق","الايرادات"]
[null,null,"الصندوق","الايرادات"]
[null,null,"الصندوق","الايرادات"]
[null,null,"الصندوق","الايرادات"]
[null,null,"الصندوق","الايرادات"]
[null,null,"الصندوق","الايرادات"]
[null,null,"الصندوق","الايرادات"]
[null,null,"الصندوق","الايرادات"]
[null,null,"الصندوق","الايرادات"]
[null,null,"الصندوق","الايرادات"]
[null,null,"الصندوق","الايرادات"]
[null,null,"الصندوق","الايرادات"]
[null,null,"الصندوق","الايرادات"]
[null,null,"الصندوق","الايرادات"]
[null,null,"الصندوق","الايرادات"]
[null,null,"الصندوق","الايرادات"]
[null,null,"الصندوق","الايرادات"]
[null,null,"الصندوق","الايرادات"]
[null,null,"الصندوق","الايرادات"]
[null,null,"الصندوق","الايرادات"]
[null,null,"الصندوق","الايرادات"]
[null,null,"الصندوق","الايرادات"]
[null,null,"الصندوق","الايرادات"]
[null,null,"الصندوق","الايرادات"]
[null,null,"الصندوق","الايرادات"]
[null,null,"الصندوق","الايرادات"]
[null,null,"الصندوق","الايرادات"]
[null,null,"الصندوق","الايرادات"]
[null,null,"الصندوق","الايرادات"]
[null,null,"الصندوق","الايرادات"]
[null,null,"الصندوق","الايرادات"]
[null,null,"الصندوق","الايرادات"]
[null,null,"الصندوق","الايرادات"]
[null,null,"الصندوق","الايرادات"]
[null,null,"الصندوق","الايرادات"]
[null,null,"الصندوق","الايرادات"]
[null,null,"الصندوق","الايرادات"]
[null,null,"الصندوق","الايرادات"]
[null,null,"الصندوق","الايرادات"]
[null,null,"الصندوق","الايرادات"]
[null,null,"الصندوق","الايرادات"]
[null,null,"الصندوق","الايرادات"]
[null,null,"الصندوق","الايرادات"]
[null,null,"الصندوق","الايرادات"]
[null,null,"الصندوق","الايرادات"]
[null,null,"الصندوق","الايرادات"]
[null,null,"الصندوق","الايرادات"]
[null,null,"الصندوق","الايرادات"]
[null,null,"الصندوق","الايرادات"]
[null,null,"الصندوق","الايرادات"]
[null,null,"الصندوق","الايرادات"]
[null,null,"الصندوق","الايرادات"]
[null,null,"الصندوق","الايرادات"]
[null,null,"الصندوق","الايرادات"]
[null,null,"الصندوق","الايرادات"]
[null,null,"الصندوق","الايرادات"]
[null,null,"الصندوق","الايرادات"]
[null,null,"الصندوق","الايرادات"]
[null,null,"الصندوق","الايرادات"]
[null,null,"الصندوق","الايرادات"]
[null,null,"الصندوق","الايرادات"]
[null,null,"الصندوق","الايرادات"]
[null,null,"الصندوق","الايرادات"]
[null,null,"الصندوق","الايرادات"]
[null,null,"الصندوق","الايرادات"]
[null,null,"الصندوق","الايرادات"]
[null,null,"الصندوق","الايرادات"]
[null,null,"الصندوق","الايرادات"]
[null,null,"الصندوق","الايرادات"]
[null,null,"الصندوق","الايرادات"]
[null,null,"الصندوق","الايرادات"]
[null,null,"الصندوق","الايرادات"]
[null,null,"الصندوق","الايرادات"]
[null,null,"الصندوق","الايرادات"]
[null,null,"الصندوق","الايرادات"]
[null,null,"الصندوق","الايرادات"]
[null,null,"الصندوق","الايرادات"]
[null,null,"الصندوق","الايرادات"]
[null,null,"الصندوق","الايرادات"]
[null,null,"الصندوق","الايرادات"]
[null,null,"الصندوق","الايرادات"]
[null,null,"الصندوق","الايرادات"]
[null,null,"الصندوق","الايرادات"]
[null,null,"الصندوق","الايرادات"]
[null,null,"الصندوق","الايرادات"]
[null,null,"الصندوق","الايرادات"]
[null,null,"الصندوق","الايرادات"]
[null,null,"الصندوق","الايرادات"]
[null,null,"الصندوق","الايرادات"]
[null,null,"الصندوق","الايرادات"]
[null,null,"الصندوق","الايرادات"]
[null,null,"الصندوق","الايرادات"]
[null,null,"الصندوق","الايرادات"]
[null,null,"الصندوق","الايرادات"]
[null,null,"الصندوق","الايرادات"]
[null,null,"الصندوق","الايرادات"]
[null,null,"الصندوق","الايرادات"]
[null,null,"الصندوق","الايرادات"]
[null,null,"الصندوق","الايرادات"]
[null,null,"الصندوق","الايرادات"]
[null,null,"الصندوق","الايرادات"]
[null,null,"الصندوق","الايرادات"]
[null,null,"الصندوق","الايرادات"]
[null,null,"الصندوق","الايرادات"]
[null,null,"الصندوق","الايرادات"]
[null,null,"الصندوق","الايرادات"]
[null,null,"الصندوق","الايرادات"]
[null,null,"الصندوق","الايرادات"]
[null,null,"الصندوق","الايرادات"]
[null,null,"الصندوق","الايرادات"]
[null,null,"الصندوق","الايرادات"]
[null,null,"الصندوق","الايرادات"]
[null,null,"الصندوق","الايرادات"]
[null,null,"الصندوق","الايرادات"]
[null,null,"الصندوق","الايرادات"]
[null,null,"الصندوق","الايرادات"]
[null,null,"الصندوق","الايرادات"]
[null,null,"الصندوق","الايرادات"]
[null,null,"الصندوق","الايرادات"]
[null,null,"الصندوق","الايرادات"]
[null,null,"الصندوق","الايرادات"]
[null,null,"الصندوق","الايرادات"]
[null,null,"الصندوق","الايرادات"]
[null,null,"الصندوق","الايرادات"]
[null,null,"الصندوق","الايرادات"]
[null,null,"الصندوق","الايرادات"]
[null,null,"الصندوق","الايرادات"]
[null,null,"الصندوق","الايرادات"]
[null,null,"الصندوق","الايرادات"]
[null,null,"الصندوق","الايرادات"]
[null,null,"الصندوق","الايرادات"]
[null,null,"الصندوق","الايرادات"]
[null,null,"الصندوق","الايرادات"]
[null,null,"الصندوق","الايرادات"]
[null,null,"الصندوق","الايرادات"]
[null,null,"الصندوق","الايرادات"]
[null,null,"الصندوق","الايرادات"]
[null,null,"الصندوق","الايرادات"]
[null,null,"الصندوق","الايرادات"]
[null,null,"الصندوق","الايرادات"]
[null,null,"الصندوق","الايرادات"]
[null,null,"الصندوق","الايرادات"]
[null,null,"الصندوق","الايرادات"]
[null,null,"الصندوق","الايرادات"]
[null,null,"الصندوق","الايرادات"]
[null,null,"الصندوق","الايرادات"]
[null,null,"الصندوق","الايرادات"]
[null,null,"الصندوق","الايرادات"]
[null,null,"الصندوق","الايرادات"]
[null,null,"الصندوق","الايرادات"]
[null,null,"الصندوق","الايرادات"]
[null,null,"الصندوق","الايرادات"]
[null,null,"الصندوق","الايرادات"]
[null,null,"الصندوق","الايرادات"]
[null,null,"الصندوق","الايرادات"]
[null,null,"الصندوق","الايرادات"]
[null,null,"الصندوق","الايرادات"]
[null,null,"الصندوق","الايرادات"]
[null,null,"الصندوق","الايرادات"]
[null,null,"الصندوق","الايرادات"]
[null,null,"الصندوق","الايرادات"]
[null,null,"الصندوق","الايرادات"]
[null,null,"الصندوق","الايرادات"]
[null,null,"الصندوق","الايرادات"]
[null,null,"الصندوق","الايرادات"]
[null,null,"الصندوق","الايرادات"]
[null,null,"الصندوق","الايرادات"]
[null,null,"الصندوق","الايرادات"]
[null,null,"الصندوق","الايرادات"]
[null,null,"الصندوق","الايرادات"]
[null,null,"الصندوق","الايرادات"]
[null,null,"الصندوق","الايرادات"]
[null,null,"الصندوق","الايرادات"]
[null,null,"الصندوق","الايرادات"]
[null,null,"الصندوق","الايرادات"]
[null,null,"الصندوق","الايرادات"]
[null,null,"الصندوق","الايرادات"]
[null,null,"الصندوق","الايرادات"]
[null,null,"الصندوق","الايرادات"]
[null,null,"الصندوق","الايرادات"]
[null,null,"الصندوق","الايرادات"]
[null,null,"الصندوق","الايرادات"]
[null,null,"الصندوق","الايرادات"]
[null,null,"الصندوق","الايرادات"]
[null,null,"الصندوق","الايرادات"]
[null,null,"الصندوق","الايرادات"]
[null,null,"الصندوق","الايرادات"]
[null,null,"الصندوق","الايرادات"]
[null,null,"الصندوق","الايرادات"]
[null,null,"الصندوق","الايرادات"]
[null,null,"الصندوق","الايرادات"]
[null,null,"الصندوق","الايرادات"]
[null,null,"الصندوق","الايرادات"]
[null,null,"الصندوق","الايرادات"]
[null,null,"الصندوق","الايرادات"]
[null,null,"الصندوق","الايرادات"]
[null,null,"الصندوق","الايرادات"]
[null,null,"الصندوق","الايرادات"]
[null,null,"الصندوق","الايرادات"]
[null,null,"الصندوق","الايرادات"]
[null,null,"الصندوق","الايرادات"]
[null,null,"الصندوق","الايرادات"]
[null,null,"الصندوق","الايرادات"]
[null,null,"الصندوق","الايرادات"]
[null,null,"الصندوق","الايرادات"]
[null,null,"الصندوق","الايرادات"]
[null,null,"الصندوق","الايرادات"]
[null,null,"الصندوق","الايرادات"]
[null,null,"الصندوق","الايرادات"]
[null,null,"الصندوق","الايرادات"]
[null,null,"الصندوق","الايرادات"]
[null,null,"الصندوق","الايرادات"]
[null,null,"الصندوق","الايرادات"]
[null,null,"الصندوق","الايرادات"]
[null,null,"الصندوق","الايرادات"]
[null,null,"الصندوق","الايرادات"]
[null,null,"الصندوق","الايرادات"]
[null,null,"الصندوق","الايرادات"]
[null,null,"الصندوق","الايرادات"]
[null,null,"الصندوق","الايرادات"]
[null,null,"الصندوق","الايرادات"]
[null,null,"الصندوق","الايرادات"]
[null,null,"الصندوق","الايرادات"]
[null,null,"الصندوق","الايرادات"]
[null,null,"الصندوق","الايرادات"]
[null,null,"الصندوق","الايرادات"]
[null,null,"الصندوق","الايرادات"]
[null,null,"الصندوق","الايرادات"]
[null,null,"الصندوق","الايرادات"]
[null,null,"الصندوق","الايرادات"]
[null,null,"الصندوق","الايرادات"]
[null,null,"الصندوق","الايرادات"]
[null,null,"الصندوق","الايرادات"]
[null,null,"الصندوق","الايرادات"]
[null,null,"الصندوق","الايرادات"]
[null,null,"الصندوق","الايرادات"]
[null,null,"الصندوق","الايرادات"]
[null,null,"الصندوق","الايرادات"]
[null,null,"الصندوق","الايرادات"]
[null,null,"الصندوق","الايرادات"]
[null,null,"الصندوق","الايرادات"]
[null,null,"الصندوق","الايرادات"]
[null,null,"الصندوق","الايرادات"]
[null,null,"الصندوق","الايرادات"]
[null,null,"الصندوق","الايرادات"]
[null,null,"الصندوق","الايرادات"]
[null,null,"الصندوق","الايرادات"]
[null,null,"الصندوق","الايرادات"]
[null,null,"الصندوق","الايرادات"]
[null,null,"الصندوق","الايرادات"]
[null,null,"الصندوق","الايرادات"]
[null,null,"الصندوق","الايرادات"]
[null,null,"الصندوق","الايرادات"]
[null,null,"الصندوق","الايرادات"]
[null,null,"الصندوق","الايرادات"]
[null,null,"الصندوق","الايرادات"]
[null,null,"الصندوق","الايرادات"]
[null,null,"الصندوق","الايرادات"]
[null,null,"الصندوق","الايرادات"]
[null,null,"الصندوق","الايرادات"]
[null,null,"الصندوق","الايرادات"]
[null,null,"الصندوق","الايرادات"]
[null,null,"الصندوق","الايرادات"]
[null,null,"الصندوق","الايرادات"]
[null,null,"الصندوق","الايرادات"]
[null,null,"الصندوق","الايرادات"]
[null,null,"الصندوق","الايرادات"]
[null,null,"الصندوق","الايرادات"]
[null,null,"الصندوق","الايرادات"]
[null,null,"الصندوق","الايرادات"]
[null,null,"الصندوق","الايرادات"]
[null,null,"الصندوق","الايرادات"]
[null,null,"الصندوق","الايرادات"]
[null,null,"الصندوق","الايرادات"]
[null,null,"الصندوق","الايرادات"]
[null,null,"الصندوق","الايرادات"]
[null,null,"الصندوق","الايرادات"]
[null,null,"الصندوق","الايرادات"]
[null,null,"الصندوق","الايرادات"]
[null,null,"الصندوق","الايرادات"]
[null,null,"الصندوق","الايرادات"]
[null,null,"الصندوق","الايرادات"]
[null,null,"الصندوق","الايرادات"]
[null,null,"الصندوق","الايرادات"]
[null,null,"الصندوق","الايرادات"]
[null,null,"الصندوق","الايرادات"]
[null,null,"الصندوق","الايرادات"]
[null,null,"الصندوق","الايرادات"]
[null,null,"الصندوق","الايرادات"]
[null,null,"الصندوق","الايرادات"]
[null,null,"الصندوق","الايرادات"]
[null,null,"الصندوق","الايرادات"]
[null,null,"الصندوق","الايرادات"]
[null,null,"الصندوق","الايرادات"]
[null,null,"الصندوق","الايرادات"]
[null,null,"الصندوق","الايرادات"]
[null,null,"الصندوق","الايرادات"]
[null,null,"الصندوق","الايرادات"]
[null,null,"الصندوق","الايرادات"]
[null,null,"الصندوق","الايرادات"]
[null,null,"الصندوق","الايرادات"]
[null,null,"الصندوق","الايرادات"]
[null,null,"الصندوق","الايرادات"]
[null,null,"الصندوق","الايرادات"]
[null,null,"الصندوق","الايرادات"]
[null,null,"الصندوق","الايرادات"]
[null,null,"الصندوق","الايرادات"]
[null,null,"الصندوق","الايرادات"]
[null,null,"الصندوق","الايرادات"]
[null,null,"الصندوق","الايرادات"]
[null,null,"الصندوق","الايرادات"]
[null,null,"الصندوق","الايرادات"]
[null,null,"الصندوق","الايرادات"]
[null,null,"الصندوق","الايرادات"]
[null,null,"الصندوق","الايرادات"]
[null,null,"الصندوق","الايرادات"]
[null,null,"الصندوق","الايرادات"]
[null,null,"الصندوق","الايرادات"]
[null,null,"الصندوق","الايرادات"]
[null,null,"الصندوق","الايرادات"]
[null,null,"الصندوق","الايرادات"]
[null,null,"الصندوق","الايرادات"]
[null,null,"الصندوق","الايرادات"]
[null,null,"الصندوق","الايرادات"]
[null,null,"الصندوق","الايرادات"]
[null,null,"الصندوق","الايرادات"]
[null,null,"الصندوق","الايرادات"]
[null,null,"الصندوق","الايرادات"]
[null,null,"الصندوق","الايرادات"]
[null,null,"الصندوق","الايرادات"]
[null,null,"الصندوق","الايرادات"]
[null,null,"الصندوق","الايرادات"]
[null,null,"الصندوق","الايرادات"]
[null,null,"الصندوق","الايرادات"]
[null,null,"الصندوق","الايرادات"]
[null,null,"الصندوق","الايرادات"]
[null,null,"الصندوق","الايرادات"]
[null,null,"الصندوق","الايرادات"]
[null,null,"الصندوق","الايرادات"]
[null,null,"الصندوق","الايرادات"]
[null,null,"الصندوق","الايرادات"]
[null,null,"الصندوق","الايرادات"]
[null,null,"الصندوق","الايرادات"]
[null,null,"الصندوق","الايرادات"]
[null,null,"الصندوق","الايرادات"]
[null,null,"الصندوق","الايرادات"]
[null,null,"الصندوق","الايرادات"]
[null,null,"الصندوق","الايرادات"]
[null,null,"الصندوق","الايرادات"]
[null,null,"الصندوق","الايرادات"]
[null,null,"الصندوق","الايرادات"]
[null,null,"الصندوق","الايرادات"]
[null,null,"الصندوق","الايرادات"]
[null,null,"الصندوق","الايرادات"]
[null,null,"الصندوق","الايرادات"]
[null,null,"الصندوق","الايرادات"]
[null,null,"الصندوق","الايرادات"]
[null,null,"الصندوق","الايرادات"]
[null,null,"الصندوق","الايرادات"]
[null,null,"الصندوق","الايرادات"]
[null,null,"الصندوق","الايرادات"]
[null,null,"الصندوق","الايرادات"]
[null,null,"الصندوق","الايرادات"]
[null,null,"الصندوق","الايرادات"]
[null,null,"الصندوق","الايرادات"]
[null,null,"الصندوق","الايرادات"]
[null,null,"الصندوق","الايرادات"]
[null,null,"الصندوق","الايرادات"]
[null,null,"الصندوق","الايرادات"]
[null,null,"الصندوق","الايرادات"]
[null,null,"الصندوق","الايرادات"]
[null,null,"الصندوق","الايرادات"]
[null,null,"الصندوق","الايرادات"]
[null,null,"الصندوق","الايرادات"]
[null,null,"الصندوق","الايرادات"]
[null,null,"الصندوق","الايرادات"]
[null,null,"الصندوق","الايرادات"]
[null,null,"الصندوق","الايرادات"]
[null,null,"الصندوق","الايرادات"]
[null,null,"الصندوق","الايرادات"]
[null,null,"الصندوق","الايرادات"]
[null,null,"الصندوق","الايرادات"]
[null,null,"الصندوق","الايرادات"]
[null,null,"الصندوق","الايرادات"]
[null,null,"الصندوق","الايرادات"]
[null,null,"الصندوق","الايرادات"]
[null,null,"الصندوق","الايرادات"]
[null,null,"الصندوق","الايرادات"]
[null,null,"الصندوق","الايرادات"]
[null,null,"الصندوق","الايرادات"]
[null,null,"الصندوق","الايرادات"]
[null,null,"الصندوق","الايرادات"]
[null,null,"الصندوق","الايرادات"]
[null,null,"الصندوق","الايرادات"]
[null,null,"الصندوق","الايرادات"]
[null,null,"الصندوق","الايرادات"]
[null,null,"الصندوق","الايرادات"]
[null,null,"الصندوق","الايرادات"]
[null,null,"الصندوق","الايرادات"]
[null,null,"الصندوق","الايرادات"]
[null,null,"الصندوق","الايرادات"]
[null,null,"الصندوق","الايرادات"]
[null,null,"الصندوق","الايرادات"]
[null,null,"الصندوق","الايرادات"]
[null,null,"الصندوق","الايرادات"]
[null,null,"الصندوق","الايرادات"]
[null,null,"الصندوق","الايرادات"]
[null,null,"الصندوق","الايرادات"]
[null,null,"الصندوق","الايرادات"]
[null,null,"الصندوق","الايرادات"]
[null,null,"الصندوق","الايرادات"]
[null,null,"الصندوق","الايرادات"]
[null,null,"الصندوق","الايرادات"]
[null,null,"الصندوق","الايرادات"]
[null,null,"الصندوق","الايرادات"]
[null,null,"الصندوق","الايرادات"]
[null,null,"الصندوق","الايرادات"]
[null,null,"الصندوق","الايرادات"]
[null,null,"الصندوق","الايرادات"]
[null,null,"الصندوق","الايرادات"]
[null,null,"الصندوق","الايرادات"]
[null,null,"الصندوق","الايرادات"]
[null,null,"الصندوق","الايرادات"]
[null,null,"الصندوق","الايرادات"]
[null,null,"الصندوق","الايرادات"]
[null,null,"الصندوق","الايرادات"]
[null,null,"الصندوق","الايرادات"]
[null,null,"الصندوق","الايرادات"]
[null,null,"الصندوق","الايرادات"]
[null,null,"الصندوق","الايرادات"]
[null,null,"الصندوق","الايرادات"]
[null,null,"الصندوق","الايرادات"]
[null,null,"الصندوق","الايرادات"]
[null,null,"الصندوق","الايرادات"]
[null,null,"الصندوق","الايرادات"]
[null,null,"الصندوق","الايرادات"]
[null,null,"الصندوق","الايرادات"]
[null,null,"الصندوق","الايرادات"]
[null,null,"الصندوق","الايرادات"]
[null,null,"الصندوق","الايرادات"]
[null,null,"الصندوق","الايرادات"]
[null,null,"الصندوق","الايرادات"]
[null,null,"الصندوق","الايرادات"]
[null,null,"الصندوق","الايرادات"]
[null,null,"الصندوق","الايرادات"]
[null,null,"الصندوق","الايرادات"]
[null,null,"الصندوق","الايرادات"]
[null,null,"الصندوق","الايرادات"]
[null,null,"الصندوق","الايرادات"]
[null,null,"الصندوق","الايرادات"]
[null,null,"الصندوق","الايرادات"]
[null,null,"الصندوق","الايرادات"]
[null,null,"الصندوق","الايرادات"]
[null,null,"الصندوق","الايرادات"]
[null,null,"الصندوق","الايرادات"]
[null,null,"الصندوق","الايرادات"]
[null,null,"الصندوق","الايرادات"]
[null,null,"الصندوق","الايرادات"]
[null,null,"الصندوق","الايرادات"]
[null,null,"الصندوق","الايرادات"]
[null,null,"الصندوق","الايرادات"]
[null,null,"الصندوق","الايرادات"]
[null,null,"الصندوق","الايرادات"]
[null,null,"الصندوق","الايرادات"]
[null,null,"الصندوق","الايرادات"]
[null,null,"الصندوق","الايرادات"]
[null,null,"الصندوق","الايرادات"]
[null,null,"الصندوق","الايرادات"]
[null,null,"الصندوق","الايرادات"]
[null,null,"الصندوق","الايرادات"]
[null,null,"الصندوق","الايرادات"]
[null,null,"الصندوق","الايرادات"]
[null,null,"الصندوق","الايرادات"]
[null,null,"الصندوق","الايرادات"]
[null,null,"الصندوق","الايرادات"]
[null,null,"الصندوق","الايرادات"]
[null,null,"الصندوق","الايرادات"]
[null,null,"الصندوق","الايرادات"]
[null,null,"الصندوق","الايرادات"]
[null,null,"الصندوق","الايرادات"]
[null,null,"الصندوق","الايرادات"]
[null,null,"الصندوق","الايرادات"]
[null,null,"الصندوق","الايرادات"]
[null,null,"الصندوق","الايرادات"]
[null,null,"الصندوق","الايرادات"]
[null,null,"الصندوق","الايرادات"]
[null,null,"الصندوق","الايرادات"]
[null,null,"الصندوق","الايرادات"]
[null,null,"الصندوق","الايرادات"]
[null,null,"الصندوق","الايرادات"]
[null,null,"الصندوق","الايرادات"]
[null,null,"الصندوق","الايرادات"]
[null,null,"الصندوق","الايرادات"]
[null,null,"الصندوق","الايرادات"]
[null,null,"الصندوق","الايرادات"]
[null,null,"الصندوق","الايرادات"]
[null,null,"الصندوق","الايرادات"]
[null,null,"الصندوق","الايرادات"]
[null,null,"الصندوق","الايرادات"]
[null,null,"الصندوق","الايرادات"]
[null,null,"الصندوق","الايرادات"]
[null,null,"الصندوق","الايرادات"]
[null,null,"الصندوق","الايرادات"]
[null,null,"الصندوق","الايرادات"]
[null,null,"الصندوق","الايرادات"]
[null,null,"الصندوق","الايرادات"]
[null,null,"الصندوق","الايرادات"]
[null,null,"الصندوق","الايرادات"]
[null,null,"الصندوق","الايرادات"]
[null,null,"الصندوق","الايرادات"]
[null,null,"الصندوق","الايرادات"]
[null,null,"الصندوق","الايرادات"]
[null,null,"الصندوق","الايرادات"]
[null,null,"الصندوق","الايرادات"]
[null,null,"الصندوق","الايرادات"]
[null,null,"الصندوق","الايرادات"]
[null,null,"الصندوق","الايرادات"]
[null,null,"الصندوق","الايرادات"]
[null,null,"الصندوق","الايرادات"]
[null,null,"الصندوق","الايرادات"]
[null,null,"الصندوق","الايرادات"]
[null,null,"الصندوق","الايرادات"]
[null,null,"الصندوق","الايرادات"]
[null,null,"الصندوق","الايرادات"]
[null,null,"الصندوق","الايرادات"]
[null,null,"الصندوق","الايرادات"]
[null,null,"الصندوق","الايرادات"]
[null,null,"الصندوق","الايرادات"]
[null,null,"الصندوق","الايرادات"]
[null,null,"الصندوق","الايرادات"]
[null,null,"الصندوق","الايرادات"]
[null,null,"الصندوق","الايرادات"]
[null,null,"الصندوق","الايرادات"]
[null,null,"الصندوق","الايرادات"]
[null,null,"الصندوق","الايرادات"]
[null,null,"الصندوق","الايرادات"]
[null,null,"الصندوق","الايرادات"]
[null,null,"الصندوق","الايرادات"]
[null,null,"الصندوق","الايرادات"]
[null,null,"الصندوق","الايرادات"]
[null,null,"الصندوق","الايرادات"]
[null,null,"الصندوق","الايرادات"]
[null,null,"الصندوق","الايرادات"]
[null,null,"الصندوق","الايرادات"]
[null,null,"الصندوق","الايرادات"]
[null,null,"الصندوق","الايرادات"]
[null,null,"الصندوق","الايرادات"]
[null,null,"الصندوق","الايرادات"]
[null,null,"الصندوق","الايرادات"]
[null,null,"الصندوق","الايرادات"]
[null,null,"الصندوق","الايرادات"]
[null,null,"الصندوق","الايرادات"]
[null,null,"الصندوق","الايرادات"]
[null,null,"الصندوق","الايرادات"]
[null,null,"الصندوق","الايرادات"]
[null,null,"الصندوق","الايرادات"]
[null,null,"الصندوق","الايرادات"]
[null,null,"الصندوق","الايرادات"]
[null,null,"الصندوق","الايرادات"]
[null,null,"الصندوق","الايرادات"]
[null,null,"الصندوق","الايرادات"]
[null,null,"الصندوق","الايرادات"]
[null,null,"الصندوق","الايرادات"]
[null,null,"الصندوق","الايرادات"]
[null,null,"الصندوق","الايرادات"]
[null,null,"الصندوق","الايرادات"]
[null,null,"الصندوق","الايرادات"]
[null,null,"الصندوق","الايرادات"]
[null,null,"الصندوق","الايرادات"]
[null,null,"الصندوق","الايرادات"]
[null,null,"الصندوق","الايرادات"]
[null,null,"الصندوق","الايرادات"]
[null,null,"الصندوق","الايرادات"]
[null,null,"الصندوق","الايرادات"]
[null,null,"الصندوق","الايرادات"]
[null,null,"الصندوق","الايرادات"]
[null,null,"الصندوق","الايرادات"]
[null,null,"الصندوق","الايرادات"]
[null,null,"الصندوق","الايرادات"]
[null,null,"الصندوق","الايرادات"]
[null,null,"الصندوق","الايرادات"]
[null,null,"الصندوق","الايرادات"]
[null,null,"الصندوق","الايرادات"]
[null,null,"الصندوق","الايرادات"]
[null,null,"الصندوق","الايرادات"]
[null,null,"الصندوق","الايرادات"]
[null,null,"الصندوق","الايرادات"]
[null,null,"الصندوق","الايرادات"]
[null,null,"الصندوق","الايرادات"]
[null,null,"الصندوق","الايرادات"]
[null,null,"الصندوق","الايرادات"]
[null,null,"الصندوق","الايرادات"]
[null,null,"الصندوق","الايرادات"]
[null,null,"الصندوق","الايرادات"]
[null,null,"الصندوق","الايرادات"]
[null,null,"الصندوق","الايرادات"]
[null,null,"الصندوق","الايرادات"]
[null,null,"الصندوق","الايرادات"]
[null,null,"الصندوق","الايرادات"]
[null,null,"الصندوق","الايرادات"]
[null,null,"الصندوق","الايرادات"]
[null,null,"الصندوق","الايرادات"]
[null,null,"الصندوق","الايرادات"]
[null,null,"الصندوق","الايرادات"]
[null,null,"الصندوق","الايرادات"]
[null,null,"الصندوق","الايرادات"]
[null,null,"الصندوق","الايرادات"]
[null,null,"الصندوق","الايرادات"]
[null,null,"الصندوق","الايرادات"]
[null,null,"الصندوق","الايرادات"]
[null,null,"الصندوق","الايرادات"]
[null,null,"الصندوق","الايرادات"]
[null,null,"الصندوق","الايرادات"]
[null,null,"الصندوق","الايرادات"]
[null,null,"الصندوق","الايرادات"]
[null,null,"الصندوق","الايرادات"]
[null,null,"الصندوق","الايرادات"]
[null,null,"الصندوق","الايرادات"]
[null,null,"الصندوق","الايرادات"]
[null,null,"الصندوق","الايرادات"]
[null,null,"الصندوق","الايرادات"]
[null,null,"الصندوق","الايرادات"]
[null,null,"الصندوق","الايرادات"]
[null,null,"الصندوق","الايرادات"]
[null,null,"الصندوق","الايرادات"]
[null,null,"الصندوق","الايرادات"]
[null,null,"الصندوق","الايرادات"]
[null,null,"الصندوق","الايرادات"]
[null,null,"الصندوق","الايرادات"]
[null,null,"الصندوق","الايرادات"]
[null,null,"الصندوق","الايرادات"]
[null,null,"الصندوق","الايرادات"]
[null,null,"الصندوق","الايرادات"]
[null,null,"الصندوق","الايرادات"]
[null,null,"الصندوق","الايرادات"]
[null,null,"الصندوق","الايرادات"]
[null,null,"الصندوق","الايرادات"]
[null,null,"الصندوق","الايرادات"]
[null,null,"الصندوق","الايرادات"]
[null,null,"الصندوق","الايرادات"]
[null,null,"الصندوق","الايرادات"]
[null,null,"الصندوق","الايرادات"]
[null,null,"الصندوق","الايرادات"]
[null,null,"الصندوق","الايرادات"]
[null,null,"الصندوق","الايرادات"]
[null,null,"الصندوق","الايرادات"]
[null,null,"الصندوق","الايرادات"]
[null,null,"الصندوق","الايرادات"]
[null,null,"الصندوق","الايرادات"]
[null,null,"الصندوق","الايرادات"]
[null,null,"الصندوق","الايرادات"]
[null,null,"الصندوق","الايرادات"]
[null,null,"الصندوق","الايرادات"]
[null,null,"الصندوق","الايرادات"]
[null,null,"الصندوق","الايرادات"]
[null,null,"الصندوق","الايرادات"]
[null,null,"الصندوق","الايرادات"]
[null,null,"الصندوق","الايرادات"]
[null,null,"الصندوق","الايرادات"]
[null,null,"الصندوق","الايرادات"]
[null,null,"الصندوق","الايرادات"]
[null,null,"الصندوق","الايرادات"]
[null,null,"الصندوق","الايرادات"]
[null,null,"الصندوق","الايرادات"]
[null,null,"الصندوق","الايرادات"]
[null,null,"الصندوق","الايرادات"]
[null,null,"الصندوق","الايرادات"]
[null,null,"الصندوق","الايرادات"]
[null,null,"الصندوق","الايرادات"]
[null,null,"الصندوق","الايرادات"]
[null,null,"الصندوق","الايرادات"]
[null,null,"الصندوق","الايرادات"]
[null,null,"الصندوق","الايرادات"]
[null,null,"الصندوق","الايرادات"]
[null,null,"الصندوق","الايرادات"]
[null,null,"الصندوق","الايرادات"]
[null,null,"الصندوق","الايرادات"]
[null,null,"الصندوق","الايرادات"]
[null,null,"الصندوق","الايرادات"]
[null,null,"الصندوق","الايرادات"]
[null,null,"الصندوق","الايرادات"]
[null,null,"الصندوق","الايرادات"]
[null,null,"الصندوق","الايرادات"]
[null,null,"الصندوق","الايرادات"]
[null,null,"الصندوق","الايرادات"]
[null,null,"الصندوق","الايرادات"]
[null,null,"الصندوق","الايرادات"]
[null,null,"الصندوق","الايرادات"]
[null,null,"الصندوق","الايرادات"]
[null,null,"الصندوق","الايرادات"]
[null,null,"الصندوق","الايرادات"]
[null,null,"الصندوق","الايرادات"]
[null,null,"الصندوق","الايرادات"]
[null,null,"الصندوق","الايرادات"]
[null,null,"الصندوق","الايرادات"]
[null,null,"الصندوق","الايرادات"]
[null,null,"الصندوق","الايرادات"]
[null,null,"الصندوق","الايرادات"]
[null,null,"الصندوق","الايرادات"]
[null,null,"الصندوق","الايرادات"]
[null,null,"الصندوق","الايرادات"]
[null,null,"الصندوق","الايرادات"]
[null,null,"الصندوق","الايرادات"]
[null,null,"الصندوق","الايرادات"]
[null,null,"الصندوق","الايرادات"]
[null,null,"الصندوق","الايرادات"]
[null,null,"الصندوق","الايرادات"]
[null,null,"الصندوق","الايرادات"]
[null,null,"الصندوق","الايرادات"]
[null,null,"الصندوق","الايرادات"]
[null,null,"الصندوق","الايرادات"]
[null,null,"الصندوق","الايرادات"]
[null,null,"الصندوق","الايرادات"]
[null,null,"الصندوق","الايرادات"]
[null,null,"الصندوق","الايرادات"]
[null,null,"الصندوق","الايرادات"]
[null,null,"الصندوق","الايرادات"]
[null,null,"الصندوق","الايرادات"]
[null,null,"الصندوق","الايرادات"]
[null,null,"الصندوق","الايرادات"]
[null,null,"الصندوق","الايرادات"]
[null,null,"الصندوق","الايرادات"]
[null,null,"الصندوق","الايرادات"]
[null,null,"الصندوق","الايرادات"]
[null,null,"الصندوق","الايرادات"]
[null,null,"الصندوق","الايرادات"]
[null,null,"الصندوق","الايرادات"]
[null,null,"الصندوق","الايرادات"]
[null,null,"الصندوق","الايرادات"]
[null,null,"الصندوق","الايرادات"]
[null,null,"الصندوق","الايرادات"]
[null,null,"الصندوق","الايرادات"]
[null,null,"الصندوق","الايرادات"]
[null,null,"الصندوق","الايرادات"]
[null,null,"الصندوق","الايرادات"]
[null,null,"الصندوق","الايرادات"]
[null,null,"الصندوق","الايرادات"]
[null,null,"الصندوق","الايرادات"]
[null,null,"الصندوق","الايرادات"]
[null,null,"الصندوق","الايرادات"]
[null,null,"الصندوق","الايرادات"]
[null,null,"الصندوق","الايرادات"]
[null,null,"الصندوق","الايرادات"]
[null,null,"الصندوق","الايرادات"]
[null,null,"الصندوق","الايرادات"]
[null,null,"الصندوق","الايرادات"]
[null,null,"الصندوق","الايرادات"]
[null,null,"الصندوق","الايرادات"]
[null,null,"الصندوق","الايرادات"]
[null,null,"الصندوق","الايرادات"]

{"sheet":"Sheet2","index":1,"n_rows":0,"n_cols":0,"rows_kept":0,"cut":false,"hidden":false,"merged":[]}

{"sheet":"Sheet3","index":2,"n_rows":0,"n_cols":0,"rows_kept":0,"cut":false,"hidden":false,"merged":[]}